{"text_format":"1","workbook":"xlsx","n_sheets":15,"sheets":["PORTADA","DEFINICION INDICADORES","ENLACES DATOS","HOJA DIAGNOSTICO","INFORME DIAGNOSTICO","GRAFICOS INFORME","CRITERIOS CALIFICACION","DEFINIR TOMAS DE MUESTRAS","INFORME TOMA DE MUESTRAS","CALENDARIO TOMA DE MUESTRAS","MEDICACIONES AGUA","HOJA DIAGNOSTICO REDUCE","HOJA DE AYUDA","INFORME EXPLOTACION CREAR","INFORME EXPLOTACION DEF"],"not_rendered":{"charts":10,"images":22,"macros":1,"external_links":1,"defined_names":12,"comments":1,"pivot_tables":0},"unopened":[],"bounds":{"document_bytes":16777216,"sheet_cells":100000,"rows_first":2000,"rows_last":500,"rows_between":2000,"halvings":0,"cell_chars":16384,"cell_head_chars":4096},"cells_cut":0,"cells_raw":0,"read":"whole","date_system":"1900"}

{"sheet":"PORTADA","index":0,"n_rows":0,"n_cols":0,"rows_kept":0,"cut":false,"hidden":false,"merged":[]}

{"sheet":"DEFINICION INDICADORES","index":1,"n_rows":61,"n_cols":19,"rows_kept":61,"cut":false,"hidden":false,"merged":[[55,1,59,1],[32,17,36,17],[32,18,36,18],[37,17,41,17],[37,18,41,18],[32,7,36,7],[32,8,36,8],[37,7,41,7],[37,8,41,8],[17,17,21,17],[17,18,21,18],[22,17,26,17],[22,18,26,18],[27,17,31,17],[27,18,31,18],[17,10,21,10],[22,10,26,10],[27,10,31,10],[32,10,36,10],[37,10,41,10],[17,1,21,1],[22,1,26,1],[27,1,31,1],[32,1,36,1],[37,1,41,1],[17,0,21,0],[22,0,26,0],[27,0,31,0],[32,0,36,0],[37,0,41,0],[17,9,21,9],[22,9,26,9],[27,9,31,9],[32,9,36,9],[37,9,41,9],[17,7,21,7],[17,8,21,8],[22,7,26,7],[22,8,26,8],[27,7,31,7],[27,8,31,8],[17,14,21,14],[22,14,26,14],[27,14,31,14],[32,14,36,14],[37,14,41,14]]}
[]
[]
[]
[]
[]
[null,"DEFINICION BASES E INDICADORES"]
[]
["Nº","TRONCOS-BASES",null,null,"% UMBRAL"]
[1,"ALIMENTACION",null,null,0.75]
[2,"SANIDAD",null,null,0.8]
[3,"INSTALACIONES",null,null,0.75]
[4,"BIENESTAR",null,null,0.7]
[5,"FORMACION Y REGISTRO",null,null,0.65]
[]
[null,"EXPLOTACION",null,null,"CEBO CORDEROS"]
[]
[null,"BASES","Nº SE","Nº TR","INDICADORES","POND",null,null,null,"PESO","UMBRAL","MINIMO EXIG","MIN POND","MAX PON","UMBRAL","MEDIA","MEDIA POND","MIN","MAX"]
[{"$f":"A9","v":1},{"$f":"IF(B9=\"\",\"\",B9)","v":"ALIMENTACION"},1,1,"Programa adecuado y adaptado",6,null,{"$f":"IF(A18=\"\",\"\",A18)","v":1},{"$f":"IF(B18=\"\",\"\",B18)","v":"ALIMENTACION"},{"$f":"SUM(F18:F22)","v":23},{"$f":"IF(E9=\"\",\"\",E9)","v":0.75},3,{"$f":"L18*F18","v":18},{"$f":"F18*4","v":24},{"$f":"R18/S18","v":0.74999999999999989},{"$f":"'[1]VALORES MEDIOS'!C6","v":2.9126984126984126},{"$f":"IF(P18=\"\",\"\",P18*F18)","v":17.476190476190474},{"$f":"SUM(M18:M22)/100","v":0.69},{"$f":"SUM(N18:N22)/100","v":0.92}]
[null,null,2,1,"Depósitos y silos pienso",4,null,null,null,null,"",3,{"$f":"L19*F19","v":12},{"$f":"F19*4","v":16},null,{"$f":"'[1]VALORES MEDIOS'!C7","v":3.0555555555555554},{"$f":"IF(P19=\"\",\"\",P19*F19)","v":12.222222222222221}]
[null,null,3,1,"Agua de bebida",5,null,null,null,null,"",3,15,20,null,{"$f":"'[1]VALORES MEDIOS'!C8","v":2.753968253968254},13.769841269841269]
[null,null,4,1,"Depósitos y conducción de agua",4,null,null,null,null,"",3,12,16,null,{"$f":"'[1]VALORES MEDIOS'!C9","v":2.373015873015873},9.4920634920634921]
[null,null,5,1,"Automatización adecuada",4,null,null,null,null,"",3,12,16,null,{"$f":"'[1]VALORES MEDIOS'!C10","v":2.7380952380952381},10.952380952380953]
[{"$f":"A10","v":2},{"$f":"IF(B10=\"\",\"\",B10)","v":"SANIDAD"},1,2,"Ratios mortalidad y desvieje",6,null,{"$f":"IF(A23=\"\",\"\",A23)","v":2},{"$f":"IF(B23=\"\",\"\",B23)","v":"SANIDAD"},{"$f":"SUM(F23:F27)","v":25},{"$f":"IF(E10=\"\",\"\",E10)","v":0.8},3,18,24,{"$f":"R23/S23","v":0.7},{"$f":"'[1]VALORES MEDIOS'!C11","v":2.6984126984126986},16.19047619047619,{"$f":"SUM(M23:M27)/100","v":0.7},1]
[null,null,2,2,"Incidencia de abortos",6,null,null,null,null,"",3,18,24,null,{"$f":"'[1]VALORES MEDIOS'!C12","v":2.8492063492063493},17.095238095238095]
[null,null,3,2,"Plan Sanitario",5,null,null,null,null,"",3,15,20,null,{"$f":"'[1]VALORES MEDIOS'!C13","v":2.7142857142857144},13.571428571428573]
[null,null,4,2,"Incidencia de enfermedades crónicas",5,null,null,null,null,"",2,10,20,null,{"$f":"'[1]VALORES MEDIOS'!C14","v":2.373015873015873},11.865079365079366]
[null,null,5,2,"Control animales extraños",3,null,null,null,null,"",3,9,12,null,{"$f":"'[1]VALORES MEDIOS'!C15","v":2.5396825396825395},7.6190476190476186]
[{"$f":"A11","v":3},{"$f":"IF(B11=\"\",\"\",B11)","v":"INSTALACIONES"},1,3,"Comederos y forrajeras",4,null,{"$f":"IF(A28=\"\",\"\",A28)","v":3},{"$f":"IF(B28=\"\",\"\",B28)","v":"INSTALACIONES"},{"$f":"SUM(F28:F32)","v":21},{"$f":"IF(E11=\"\",\"\",E11)","v":0.75},2,8,16,{"$f":"R28/S28","v":0.61904761904761907},{"$f":"'[1]VALORES MEDIOS'!C16","v":3.0793650793650795},12.317460317460318,{"$f":"SUM(M28:M32)/100","v":0.52},0.84]
[null,null,2,3,"Bebederos",3,null,null,null,null,"",2,6,12,null,{"$f":"'[1]VALORES MEDIOS'!C17","v":2.746031746031746},8.2380952380952372]
[null,null,3,3,"Carga Ambiental",4,null,null,null,null,"",2,8,16,null,{"$f":"'[1]VALORES MEDIOS'!C18","v":2.5158730158730158},10.063492063492063]
[null,null,4,3,"Aislamiento cubierta",5,null,null,null,null,"",3,15,20,null,{"$f":"'[1]VALORES MEDIOS'!C19","v":2.5079365079365079},12.53968253968254]
[null,null,5,3,"Dimensionado y Ventilación",5,null,null,null,null,"",3,15,20,null,{"$f":"'[1]VALORES MEDIOS'!C20","v":2.5634920634920637},12.817460317460318]
[{"$f":"A12","v":4},{"$f":"IF(B12=\"\",\"\",B12)","v":"BIENESTAR"},1,4,"Densidad animal",5,null,{"$f":"IF(A33=\"\",\"\",A33)","v":4},{"$f":"IF(B33=\"\",\"\",B33)","v":"BIENESTAR"},{"$f":"SUM(F33:F37)","v":19},{"$f":"IF(E12=\"\",\"\",E12)","v":0.7},2,10,20,{"$f":"R33/S33","v":0.53947368421052633},{"$f":"'[1]VALORES MEDIOS'!C21","v":2.7301587301587302},13.650793650793652,{"$f":"SUM(M33:M37)/100","v":0.41},0.76]
[null,null,2,4,"Calidad de cama",4,null,null,null,null,"",2,8,16,null,{"$f":"'[1]VALORES MEDIOS'!C22","v":2.6746031746031744},10.698412698412698]
[null,null,3,4,"Alteración conducta. Estrés",3,null,null,null,null,"",3,9,12,null,{"$f":"'[1]VALORES MEDIOS'!C23","v":2.8095238095238093},8.428571428571427]
[null,null,4,4,"Estado de lana y pezuñas",3,null,null,null,null,"",2,6,12,null,{"$f":"'[1]VALORES MEDIOS'!C24","v":3.1190476190476191},9.3571428571428577]
[null,null,5,4,"Estado externo animales, CC",4,null,null,null,null,"",2,8,16,null,{"$f":"'[1]VALORES MEDIOS'!C25","v":2.9682539682539684},11.873015873015873]
[{"$f":"A13","v":5},{"$f":"IF(B13=\"\",\"\",B13)","v":"FORMACION Y REGISTRO"},1,5,"Libro de Explotación actualizado",2,null,{"$f":"IF(A38=\"\",\"\",A38)","v":5},{"$f":"IF(B38=\"\",\"\",B38)","v":"FORMACION Y REGISTRO"},{"$f":"SUM(F38:F42)","v":12},{"$f":"IF(E13=\"\",\"\",E13)","v":0.65},3,6,8,{"$f":"R38/S38","v":0.66666666666666674},{"$f":"'[1]VALORES MEDIOS'!C26","v":3.2063492063492065},6.412698412698413,{"$f":"SUM(M38:M42)/100","v":0.32},0.48]
[null,null,2,5,"Formación del Ganadero",1,null,null,null,null,"",2,2,4,null,{"$f":"'[1]VALORES MEDIOS'!C27","v":2.6984126984126986},2.6984126984126986]
[null,null,3,5,"Gestión Medioambiental",1,null,null,null,null,"",3,3,4,null,{"$f":"'[1]VALORES MEDIOS'!C28","v":2.2936507936507935},2.2936507936507935]
[null,null,4,5,"Bioseguridad",3,null,null,null,null,"",2,6,12,null,{"$f":"'[1]VALORES MEDIOS'!C29","v":2.1428571428571428},6.4285714285714288]
[null,null,5,5,"Carga de Trabajo",5,null,null,null,null,"",3,15,20,null,{"$f":"'[1]VALORES MEDIOS'!C30","v":2.8095238095238093},14.047619047619047]
[null,{"$f":"SUM(F18:F42)","v":100}]
[]
[]
[]
[]
[]
[]
[]
[]
[]
[null,"TRONCO \"REDUCE\""]
[]
[null,"BASES","Nº SE","Nº TR","INDICADORES","POND","MIN"]
[null,"TRONCO \"REDUCE\"",1,"R","Disminucion del uso de piensos medicamentosos",1,3]
[null,null,2,"R","Uso de antibióticos CATEGORIA D",1,3]
[null,null,3,"R","Plan-Informe sanitario. Auditorías anuales",1,3]
[null,null,4,"R","%  de animales con tratamiento metafiláctico",1,3]
[null,null,5,"R","Monitorización de explotación",1,3]
[null,null,null,null,null,{"$f":"IF(F56=\"\",\"\",SUM(F56:F60)*4)","v":20},{"$f":"IF(G56=\"\",\"\",SUM(G56:G60))","v":15},{"$f":"G61/F61","v":0.75}]

{"sheet":"ENLACES DATOS","index":2,"n_rows":156,"n_cols":37,"rows_kept":156,"cut":false,"hidden":false,"merged":[[98,0,102,0],[13,11,17,11],[18,11,22,11],[23,11,27,11],[28,11,32,11],[33,11,37,11],[13,9,17,9],[18,9,22,9],[23,9,27,9],[28,9,32,9],[33,9,37,9],[13,0,17,0],[18,0,22,0],[23,0,27,0],[28,0,32,0],[33,0,37,0],[13,13,17,13],[18,13,22,13],[23,13,27,13],[28,13,32,13],[33,13,37,13],[13,10,17,10],[18,10,22,10],[23,10,27,10],[28,10,32,10],[33,10,37,10],[13,14,17,14],[18,14,22,14],[23,14,27,14],[28,14,32,14],[33,14,37,14],[13,12,17,12],[18,12,22,12],[23,12,27,12],[28,12,32,12],[33,12,37,12]]}
[]
[null,null,null,null,null,null,null,null,null,null,null,null,null,null,null,null,null,"GRANJA","MAXIMO","MEDIO",null,null,{"$f":"IF('INFORME DIAGNOSTICO'!AB13=\"\",\"\",'INFORME DIAGNOSTICO'!AB13)","v":"INSTALACIONES"},{"$f":"IF(W2=\"\",\"\",VLOOKUP(W2,$Q$3:$V$7,6,FALSE))","v":3},null,null,null,"GRANJA","MAXIMO","MEDIO",null,null,"INFORME EXPLOTACION",null,"TEXTO PROPUESTO","TEXTO ALTERNATIVO","TEXTO DEFINITIVO"]
[null,null,null,null,null,null,null,null,null,null,null,null,null,null,null,{"$f":"IF('DEFINICION INDICADORES'!A9=\"\",\"\",'DEFINICION INDICADORES'!A9)","v":1},{"$f":"IF('DEFINICION INDICADORES'!B9=\"\",\"\",'DEFINICION INDICADORES'!B9)","v":"ALIMENTACION"},{"$f":"IF(J14=\"\",\"\",J14)","v":80},{"$f":"IF(K14=\"\",\"\",K14)","v":92},{"$f":"IF(L14=\"\",\"\",L14)","v":63.912698412698404},null,{"$f":"P3","v":1},null,null,1,{"$f":"IF($X$2=\"\",\"\",CONCATENATE(Y3,$X$2))","v":"13"},{"$f":"VLOOKUP(Z3,$D$14:$H$38,2,FALSE)","v":"Comederos y forrajeras"},{"$f":"VLOOKUP(Z3,$D$14:$H$38,4,FALSE)","v":12},{"$f":"VLOOKUP(Z3,$D$14:$H$38,5,FALSE)","v":16},{"$f":"VLOOKUP(Z3,$D$14:$I$38,6,FALSE)","v":12.317460317460318},null,null,{"$f":"IF(E14=\"\",\"\",E14)","v":"Programa adecuado y adaptado"},{"$f":"IF(F14=\"\",\"\",F14)","v":4},{"$f":"IF(AH3=\"\",\"\",VLOOKUP(AH3,AH33:AI37,2,FALSE))","v":"Piensos adecuados y suficientes. Buen manejo. Adaptados a las diferentes producciones. Equilibrio nutricional. Cobertura necesidades. Separa machos y hembras"},{"$f":"IF('INFORME EXPLOTACION CREAR'!D8=\"\",\"\",'INFORME EXPLOTACION CREAR'!D8)","v":""},{"$f":"IF(AJ3=\"\",AI3,AJ3)","v":"Piensos adecuados y suficientes. Buen manejo. Adaptados a las diferentes producciones. Equilibrio nutricional. Cobertura necesidades. Separa machos y hembras"}]
[null,null,null,null,null,null,null,null,null,null,null,null,null,null,null,{"$f":"IF('DEFINICION INDICADORES'!A10=\"\",\"\",'DEFINICION INDICADORES'!A10)","v":2},{"$f":"IF('DEFINICION INDICADORES'!B10=\"\",\"\",'DEFINICION INDICADORES'!B10)","v":"SANIDAD"},{"$f":"IF(J19=\"\",\"\",J19)","v":46},{"$f":"IF(K19=\"\",\"\",K19)","v":100},{"$f":"IF(L19=\"\",\"\",L19)","v":66.341269841269849},null,{"$f":"P4","v":2},null,null,2,{"$f":"IF($X$2=\"\",\"\",CONCATENATE(Y4,$X$2))","v":"23"},{"$f":"VLOOKUP(Z4,$D$14:$H$38,2,FALSE)","v":"Bebederos"},{"$f":"VLOOKUP(Z4,$D$14:$H$38,4,FALSE)","v":6},{"$f":"VLOOKUP(Z4,$D$14:$H$38,5,FALSE)","v":12},{"$f":"VLOOKUP(Z4,$D$14:$I$38,6,FALSE)","v":8.2380952380952372},null,null,{"$f":"IF(E15=\"\",\"\",E15)","v":"Depósitos y silos pienso"},{"$f":"IF(F15=\"\",\"\",F15)","v":4},{"$f":"IF(AH4=\"\",\"\",VLOOKUP(AH4,AH38:AI42,2,FALSE))","v":"Suficientes depósitos o silos. Limpieza periódica de los mismos."},{"$f":"IF('INFORME EXPLOTACION CREAR'!D9=\"\",\"\",'INFORME EXPLOTACION CREAR'!D9)","v":""},{"$f":"IF(AJ4=\"\",AI4,AJ4)","v":"Suficientes depósitos o silos. Limpieza periódica de los mismos."}]
[null,null,null,null,null,null,null,null,null,null,null,null,null,null,null,{"$f":"IF('DEFINICION INDICADORES'!A11=\"\",\"\",'DEFINICION INDICADORES'!A11)","v":3},{"$f":"IF('DEFINICION INDICADORES'!B11=\"\",\"\",'DEFINICION INDICADORES'!B11)","v":"INSTALACIONES"},{"$f":"IF(J24=\"\",\"\",J24)","v":51},{"$f":"IF(K24=\"\",\"\",K24)","v":84},{"$f":"IF(L24=\"\",\"\",L24)","v":55.976190476190474},null,3,null,null,3,"33","Carga Ambiental",8,16,10.063492063492063,null,null,"Agua de bebida",4,{"$f":"IF(AH5=\"\",\"\",VLOOKUP(AH5,AH43:AI47,2,FALSE))","v":"Calidad química y bacteriológica del agua. Acuíferos. Análisis y control periódicos. Sistema de tratamiento de aguas."},{"$f":"IF('INFORME EXPLOTACION CREAR'!D10=\"\",\"\",'INFORME EXPLOTACION CREAR'!D10)","v":"Recomendamos analiticas cada 6 meses de agua"},"Recomendamos analiticas cada 6 meses de agua"]
[null,null,null,null,null,null,null,null,null,null,null,null,null,null,null,{"$f":"IF('DEFINICION INDICADORES'!A12=\"\",\"\",'DEFINICION INDICADORES'!A12)","v":4},{"$f":"IF('DEFINICION INDICADORES'!B12=\"\",\"\",'DEFINICION INDICADORES'!B12)","v":"BIENESTAR"},{"$f":"IF(J29=\"\",\"\",J29)","v":60},{"$f":"IF(K29=\"\",\"\",K29)","v":76},{"$f":"IF(L29=\"\",\"\",L29)","v":54.007936507936506},null,4,null,null,4,"43","Aislamiento cubierta",10,20,12.53968253968254,null,null,"Depósitos y conducción de agua",3,{"$f":"IF(AH6=\"\",\"\",VLOOKUP(AH6,AH48:AI52,2,FALSE))","v":"Suficientes depósitos adpatados al tamaño de la explotación.Doble via para tratamientos en algunas cuadras Limpieza periódica de tuberías. Ausencia de biofilm"},{"$f":"IF('INFORME EXPLOTACION CREAR'!D11=\"\",\"\",'INFORME EXPLOTACION CREAR'!D11)","v":""},"Suficientes depósitos adpatados al tamaño de la explotación.Doble via para tratamientos en algunas cuadras Limpieza periódica de tuberías. Ausencia de biofilm"]
[null,null,null,null,null,null,null,null,null,null,null,null,null,null,null,{"$f":"IF('DEFINICION INDICADORES'!A13=\"\",\"\",'DEFINICION INDICADORES'!A13)","v":5},{"$f":"IF('DEFINICION INDICADORES'!B13=\"\",\"\",'DEFINICION INDICADORES'!B13)","v":"FORMACION Y REGISTRO"},{"$f":"IF(J34=\"\",\"\",J34)","v":33},{"$f":"IF(K34=\"\",\"\",K34)","v":48},{"$f":"IF(L34=\"\",\"\",L34)","v":31.880952380952383},null,5,null,null,5,"53","Dimensionado y Ventilación",15,20,12.817460317460318,null,null,"Automatización adecuada",2,{"$f":"IF(AH7=\"\",\"\",VLOOKUP(AH7,AH53:AI57,2,FALSE))","v":"Alimentación automatizada que asegure suministro de alimento suficiente. Tiempo empleado en suministro corto. Algo de finos. No limpieza diaria"},{"$f":"IF('INFORME EXPLOTACION CREAR'!D12=\"\",\"\",'INFORME EXPLOTACION CREAR'!D12)","v":""},"Alimentación automatizada que asegure suministro de alimento suficiente. Tiempo empleado en suministro corto. Algo de finos. No limpieza diaria"]
[null,null,null,null,null,null,null,null,null,"CONFORME",1,null,null,null,null,null,null,null,null,null,null,null,null,null,6,"63",{"$error":"#N/A"},{"$error":"#N/A"},{"$error":"#N/A"},null,null,null,"Ratios mortalidad y desvieje",4,{"$f":"IF(AH8=\"\",\"\",VLOOKUP(AH8,AH58:AI62,2,FALSE))","v":"Mortalidad adultas y desvieje <15% "},{"$f":"IF('INFORME EXPLOTACION CREAR'!D13=\"\",\"\",'INFORME EXPLOTACION CREAR'!D13)","v":""},"Mortalidad adultas y desvieje <15% "]
[null,null,null,null,null,null,null,null,null,"NO CONFORME",0,null,null,null,null,null,null,null,null,null,null,null,null,null,7,"73",{"$error":"#N/A"},{"$error":"#N/A"},{"$error":"#N/A"},null,null,null,"Incidencia de abortos",1,{"$f":"IF(AH9=\"\",\"\",VLOOKUP(AH9,AH63:AI67,2,FALSE))","v":"Abortos habituales con dfagnostico claro de varios procesos"},{"$f":"IF('INFORME EXPLOTACION CREAR'!D14=\"\",\"\",'INFORME EXPLOTACION CREAR'!D14)","v":""},"Abortos habituales con dfagnostico claro de varios procesos"]
[null,null,null,null,null,null,null,null,null,null,null,null,null,null,null,null,null,null,null,null,null,null,null,null,8,"83",{"$error":"#N/A"},{"$error":"#N/A"},{"$error":"#N/A"},null,null,null,"Plan Sanitario",1,{"$f":"IF(AH10=\"\",\"\",VLOOKUP(AH10,AH68:AI72,2,FALSE))","v":"Vacunación o desparasitación ocasional"},{"$f":"IF('INFORME EXPLOTACION CREAR'!D15=\"\",\"\",'INFORME EXPLOTACION CREAR'!D15)","v":""},"Vacunación o desparasitación ocasional"]
["EXPLOTACION",null,null,null,{"$f":"IF('DEFINICION INDICADORES'!E15=\"\",\"\",'DEFINICION INDICADORES'!E15)","v":"CEBO CORDEROS"},null,null,null,null,null,null,null,null,null,null,null,null,null,null,null,null,null,null,null,null,null,null,null,null,null,null,null,"Incidencia de enfermedades crónicas",1,{"$f":"IF(AH11=\"\",\"\",VLOOKUP(AH11,AH73:AI77,2,FALSE))","v":"Incidencia media de enfermedades crónicas con diagnostico"},{"$f":"IF('INFORME EXPLOTACION CREAR'!D16=\"\",\"\",'INFORME EXPLOTACION CREAR'!D16)","v":""},"Incidencia media de enfermedades crónicas con diagnostico"]
[null,null,null,null,null,null,null,null,null,null,null,null,null,null,null,null,null,null,null,null,null,null,null,null,null,null,null,null,null,null,null,null,"Control animales extraños",2,{"$f":"IF(AH12=\"\",\"\",VLOOKUP(AH12,AH78:AI82,2,FALSE))","v":"Programa DDD y su cumplimiento. Vigila perros y gatos de la explotación. No desparasita perros siempre. No controla siempre animales externos"},{"$f":"IF('INFORME EXPLOTACION CREAR'!D17=\"\",\"\",'INFORME EXPLOTACION CREAR'!D17)","v":""},"Programa DDD y su cumplimiento. Vigila perros y gatos de la explotación. No desparasita perros siempre. No controla siempre animales externos"]
["BASES",null,null,null,"INDICADORES","PUNTUACION","PONDERADO","MAXIMO","MEDIO","NOTA","MAXIMO","MEDIO","%CUMPLIMIENTO","% UMBRAL","COMENTARIO",null,null,null,null,null,null,null,null,null,null,null,null,null,null,null,null,null,"Comederos y forrajeras",3,{"$f":"IF(AH13=\"\",\"\",VLOOKUP(AH13,AH83:AI87,2,FALSE))","v":"Disponibilidad sobrada de comederos y pajeras , limpios y situados solo en una parte de la cuadra. Suelo limpio y seco."},{"$f":"IF('INFORME EXPLOTACION CREAR'!D18=\"\",\"\",'INFORME EXPLOTACION CREAR'!D18)","v":""},"Disponibilidad sobrada de comederos y pajeras , limpios y situados solo en una parte de la cuadra. Suelo limpio y seco."]
[{"$f":"IF('DEFINICION INDICADORES'!B9=\"\",\"\",'DEFINICION INDICADORES'!B9)","v":"ALIMENTACION"},1,{"$f":"IF('DEFINICION INDICADORES'!D18=\"\",\"\",'DEFINICION INDICADORES'!D18)","v":1},{"$f":"IF(C14=\"\",\"\",CONCATENATE(B14,C14))","v":"11"},{"$f":"IF('DEFINICION INDICADORES'!E18=\"\",\"\",'DEFINICION INDICADORES'!E18)","v":"Programa adecuado y adaptado"},{"$f":"IF('HOJA DIAGNOSTICO'!D14=\"\",\"\",'HOJA DIAGNOSTICO'!D14)","v":4},{"$f":"IF(F14=\"\",\"\",F14*'DEFINICION INDICADORES'!F18)","v":24},{"$f":"IF(F14=\"\",\"\",('DEFINICION INDICADORES'!F18*4))","v":24},{"$f":"IF(F14=\"\",\"\",'DEFINICION INDICADORES'!Q18)","v":17.476190476190474},{"$f":"IF(G18=\"\",\"\",SUM(G14:G18))","v":80},{"$f":"IF(H18=\"\",\"\",SUM(H14:H18))","v":92},{"$f":"IF(I18=\"\",\"\",SUM(I14:I18))","v":63.912698412698404},{"$f":"IF(J14=\"\",\"\",J14/K14)","v":0.86956521739130432},{"$f":"IF('DEFINICION INDICADORES'!E9=\"\",\"\",'DEFINICION INDICADORES'!E9)","v":0.75},{"$f":"IF(K14=\"\",\"\",IF(M14>N14,\"CONFORME. Intentar mejorar aspectos negativos\",\"NO CONFORME: Es fundamental corregir los aspectos negativos\"))","v":"CONFORME. Intentar mejorar aspectos negativos"},null,null,null,null,null,null,null,null,null,null,null,null,null,null,null,null,null,"Bebederos",2,{"$f":"IF(AH14=\"\",\"\",VLOOKUP(AH14,AH88:AI92,2,FALSE))","v":"Número y/o superficie de bebederos adecuado respecto  a la densidad de los animales. Bebederos limpios en un solo emplazamiento. Suelo seco"},{"$f":"IF('INFORME EXPLOTACION CREAR'!D19=\"\",\"\",'INFORME EXPLOTACION CREAR'!D19)","v":""},"Número y/o superficie de bebederos adecuado respecto  a la densidad de los animales. Bebederos limpios en un solo emplazamiento. Suelo seco"]
[null,2,{"$f":"IF('DEFINICION INDICADORES'!D19=\"\",\"\",'DEFINICION INDICADORES'!D19)","v":1},{"$f":"IF(C15=\"\",\"\",CONCATENATE(B15,C15))","v":"21"},{"$f":"IF('DEFINICION INDICADORES'!E19=\"\",\"\",'DEFINICION INDICADORES'!E19)","v":"Depósitos y silos pienso"},{"$f":"IF('HOJA DIAGNOSTICO'!D15=\"\",\"\",'HOJA DIAGNOSTICO'!D15)","v":4},{"$f":"IF(F15=\"\",\"\",F15*'DEFINICION INDICADORES'!F19)","v":16},{"$f":"IF(F15=\"\",\"\",('DEFINICION INDICADORES'!F19*4))","v":16},{"$f":"IF(F15=\"\",\"\",'DEFINICION INDICADORES'!Q19)","v":12.222222222222221},null,null,null,null,null,null,null,null,null,null,null,null,null,null,null,null,null,null,null,null,null,null,null,"Carga Ambiental",2,{"$f":"IF(AH15=\"\",\"\",VLOOKUP(AH15,AH93:AI97,2,FALSE))","v":"Olor ligeramente perceptible pero que no queda impregnado en la ropa"},{"$f":"IF('INFORME EXPLOTACION CREAR'!D20=\"\",\"\",'INFORME EXPLOTACION CREAR'!D20)","v":""},"Olor ligeramente perceptible pero que no queda impregnado en la ropa"]
[null,3,{"$f":"IF('DEFINICION INDICADORES'!D20=\"\",\"\",'DEFINICION INDICADORES'!D20)","v":1},"31",{"$f":"IF('DEFINICION INDICADORES'!E20=\"\",\"\",'DEFINICION INDICADORES'!E20)","v":"Agua de bebida"},{"$f":"IF('HOJA DIAGNOSTICO'!D16=\"\",\"\",'HOJA DIAGNOSTICO'!D16)","v":4},{"$f":"IF(F16=\"\",\"\",F16*'DEFINICION INDICADORES'!F20)","v":20},{"$f":"IF(F16=\"\",\"\",('DEFINICION INDICADORES'!F20*4))","v":20},{"$f":"IF(F16=\"\",\"\",'DEFINICION INDICADORES'!Q20)","v":13.769841269841269},null,null,null,null,null,null,null,null,null,null,null,null,null,null,null,null,null,null,null,null,null,null,null,"Aislamiento cubierta",2,{"$f":"IF(AH16=\"\",\"\",VLOOKUP(AH16,AH98:AI102,2,FALSE))","v":"Cubierta aislada pero con algún defecto. En general buenas coindiciones ambientales pero se nota el calor o frío extremo."},{"$f":"IF('INFORME EXPLOTACION CREAR'!D21=\"\",\"\",'INFORME EXPLOTACION CREAR'!D21)","v":""},"Cubierta aislada pero con algún defecto. En general buenas coindiciones ambientales pero se nota el calor o frío extremo."]
[null,4,{"$f":"IF('DEFINICION INDICADORES'!D21=\"\",\"\",'DEFINICION INDICADORES'!D21)","v":1},"41",{"$f":"IF('DEFINICION INDICADORES'!E21=\"\",\"\",'DEFINICION INDICADORES'!E21)","v":"Depósitos y conducción de agua"},{"$f":"IF('HOJA DIAGNOSTICO'!D17=\"\",\"\",'HOJA DIAGNOSTICO'!D17)","v":3},{"$f":"IF(F17=\"\",\"\",F17*'DEFINICION INDICADORES'!F21)","v":12},{"$f":"IF(F17=\"\",\"\",('DEFINICION INDICADORES'!F21*4))","v":16},{"$f":"IF(F17=\"\",\"\",'DEFINICION INDICADORES'!Q21)","v":9.4920634920634921},null,null,null,null,null,null,null,null,null,null,null,null,null,null,null,null,null,null,null,null,null,null,null,"Dimensionado y Ventilación",3,{"$f":"IF(AH17=\"\",\"\",VLOOKUP(AH17,AH103:AI107,2,FALSE))","v":"Volumen estático, entradas y salidas de aire y velocidad del aire adecuadas. "},{"$f":"IF('INFORME EXPLOTACION CREAR'!D22=\"\",\"\",'INFORME EXPLOTACION CREAR'!D22)","v":""},"Volumen estático, entradas y salidas de aire y velocidad del aire adecuadas. "]
[null,5,{"$f":"IF('DEFINICION INDICADORES'!D22=\"\",\"\",'DEFINICION INDICADORES'!D22)","v":1},"51",{"$f":"IF('DEFINICION INDICADORES'!E22=\"\",\"\",'DEFINICION INDICADORES'!E22)","v":"Automatización adecuada"},{"$f":"IF('HOJA DIAGNOSTICO'!D18=\"\",\"\",'HOJA DIAGNOSTICO'!D18)","v":2},{"$f":"IF(F18=\"\",\"\",F18*'DEFINICION INDICADORES'!F22)","v":8},{"$f":"IF(F18=\"\",\"\",('DEFINICION INDICADORES'!F22*4))","v":16},{"$f":"IF(F18=\"\",\"\",'DEFINICION INDICADORES'!Q22)","v":10.952380952380953},null,null,null,null,null,null,null,null,null,null,null,null,null,null,null,null,null,null,null,null,null,null,null,"Densidad animal",3,{"$f":"IF(AH18=\"\",\"\",VLOOKUP(AH18,AH108:AI112,2,FALSE))","v":"Entre 1.5 y 2 m2 por oveja"},{"$f":"IF('INFORME EXPLOTACION CREAR'!D23=\"\",\"\",'INFORME EXPLOTACION CREAR'!D23)","v":""},"Entre 1.5 y 2 m2 por oveja"]
[{"$f":"IF('DEFINICION INDICADORES'!B10=\"\",\"\",'DEFINICION INDICADORES'!B10)","v":"SANIDAD"},1,{"$f":"IF('DEFINICION INDICADORES'!D23=\"\",\"\",'DEFINICION INDICADORES'!D23)","v":2},"12",{"$f":"IF('DEFINICION INDICADORES'!E23=\"\",\"\",'DEFINICION INDICADORES'!E23)","v":"Ratios mortalidad y desvieje"},{"$f":"IF('HOJA DIAGNOSTICO'!D19=\"\",\"\",'HOJA DIAGNOSTICO'!D19)","v":4},{"$f":"IF(F19=\"\",\"\",F19*'DEFINICION INDICADORES'!F23)","v":24},{"$f":"IF(F19=\"\",\"\",('DEFINICION INDICADORES'!F23*4))","v":24},{"$f":"IF(F19=\"\",\"\",'DEFINICION INDICADORES'!Q23)","v":16.19047619047619},{"$f":"IF(G23=\"\",\"\",SUM(G19:G23))","v":46},{"$f":"IF(H23=\"\",\"\",SUM(H19:H23))","v":100},{"$f":"IF(I23=\"\",\"\",SUM(I19:I23))","v":66.341269841269849},{"$f":"IF(J19=\"\",\"\",J19/K19)","v":0.46},{"$f":"IF('DEFINICION INDICADORES'!E10=\"\",\"\",'DEFINICION INDICADORES'!E10)","v":0.8},{"$f":"IF(K19=\"\",\"\",IF(M19>N19,\"CONFORME. Intentar mejorar aspectos negativos\",\"NO CONFORME: Es fundamental corregir los aspectos negativos\"))","v":"NO CONFORME: Es fundamental corregir los aspectos negativos"},null,null,null,null,null,null,null,null,null,null,null,null,null,null,null,null,null,"Calidad de cama",3,{"$f":"IF(AH19=\"\",\"\",VLOOKUP(AH19,AH113:AI117,2,FALSE))","v":"Cama limpia, seca y abundante y de renovado no diario"},{"$f":"IF('INFORME EXPLOTACION CREAR'!D24=\"\",\"\",'INFORME EXPLOTACION CREAR'!D24)","v":""},"Cama limpia, seca y abundante y de renovado no diario"]
[null,2,{"$f":"IF('DEFINICION INDICADORES'!D24=\"\",\"\",'DEFINICION INDICADORES'!D24)","v":2},"22",{"$f":"IF('DEFINICION INDICADORES'!E24=\"\",\"\",'DEFINICION INDICADORES'!E24)","v":"Incidencia de abortos"},{"$f":"IF('HOJA DIAGNOSTICO'!D20=\"\",\"\",'HOJA DIAGNOSTICO'!D20)","v":1},{"$f":"IF(F20=\"\",\"\",F20*'DEFINICION INDICADORES'!F24)","v":6},{"$f":"IF(F20=\"\",\"\",('DEFINICION INDICADORES'!F24*4))","v":24},{"$f":"IF(F20=\"\",\"\",'DEFINICION INDICADORES'!Q24)","v":17.095238095238095},null,null,null,null,null,null,null,null,null,null,null,null,null,null,null,null,null,null,null,null,null,null,null,"Alteración conducta. Estrés",3,{"$f":"IF(AH20=\"\",\"\",VLOOKUP(AH20,AH118:AI122,2,FALSE))","v":"Entre 80 y 90% de animales tumbados. No esterotipias"},{"$f":"IF('INFORME EXPLOTACION CREAR'!D25=\"\",\"\",'INFORME EXPLOTACION CREAR'!D25)","v":""},"Entre 80 y 90% de animales tumbados. No esterotipias"]
[null,3,{"$f":"IF('DEFINICION INDICADORES'!D25=\"\",\"\",'DEFINICION INDICADORES'!D25)","v":2},"32",{"$f":"IF('DEFINICION INDICADORES'!E25=\"\",\"\",'DEFINICION INDICADORES'!E25)","v":"Plan Sanitario"},{"$f":"IF('HOJA DIAGNOSTICO'!D21=\"\",\"\",'HOJA DIAGNOSTICO'!D21)","v":1},{"$f":"IF(F21=\"\",\"\",F21*'DEFINICION INDICADORES'!F25)","v":5},{"$f":"IF(F21=\"\",\"\",('DEFINICION INDICADORES'!F25*4))","v":20},{"$f":"IF(F21=\"\",\"\",'DEFINICION INDICADORES'!Q25)","v":13.571428571428573},null,null,null,null,null,null,null,null,null,null,null,null,null,null,null,null,null,null,null,null,null,null,null,"Estado de lana y pezuñas",4,{"$f":"IF(AH21=\"\",\"\",VLOOKUP(AH21,AH123:AI127,2,FALSE))","v":"Nula incidencia de cojeras. Lana perfecta"},{"$f":"IF('INFORME EXPLOTACION CREAR'!D26=\"\",\"\",'INFORME EXPLOTACION CREAR'!D26)","v":""},"Nula incidencia de cojeras. Lana perfecta"]
[null,4,{"$f":"IF('DEFINICION INDICADORES'!D26=\"\",\"\",'DEFINICION INDICADORES'!D26)","v":2},"42",{"$f":"IF('DEFINICION INDICADORES'!E26=\"\",\"\",'DEFINICION INDICADORES'!E26)","v":"Incidencia de enfermedades crónicas"},{"$f":"IF('HOJA DIAGNOSTICO'!D22=\"\",\"\",'HOJA DIAGNOSTICO'!D22)","v":1},{"$f":"IF(F22=\"\",\"\",F22*'DEFINICION INDICADORES'!F26)","v":5},{"$f":"IF(F22=\"\",\"\",('DEFINICION INDICADORES'!F26*4))","v":20},{"$f":"IF(F22=\"\",\"\",'DEFINICION INDICADORES'!Q26)","v":11.865079365079366},null,null,null,null,null,null,null,null,null,null,null,null,null,null,null,null,null,null,null,null,null,null,null,"Estado externo animales, CC",3,{"$f":"IF(AH22=\"\",\"\",VLOOKUP(AH22,AH128:AI132,2,FALSE))","v":"Capa limpia y suciedad solo en pezuñas.. Buen estado corporal"},{"$f":"IF('INFORME EXPLOTACION CREAR'!D27=\"\",\"\",'INFORME EXPLOTACION CREAR'!D27)","v":""},"Capa limpia y suciedad solo en pezuñas.. Buen estado corporal"]
[null,5,{"$f":"IF('DEFINICION INDICADORES'!D27=\"\",\"\",'DEFINICION INDICADORES'!D27)","v":2},"52",{"$f":"IF('DEFINICION INDICADORES'!E27=\"\",\"\",'DEFINICION INDICADORES'!E27)","v":"Control animales extraños"},{"$f":"IF('HOJA DIAGNOSTICO'!D23=\"\",\"\",'HOJA DIAGNOSTICO'!D23)","v":2},{"$f":"IF(F23=\"\",\"\",F23*'DEFINICION INDICADORES'!F27)","v":6},{"$f":"IF(F23=\"\",\"\",('DEFINICION INDICADORES'!F27*4))","v":12},{"$f":"IF(F23=\"\",\"\",'DEFINICION INDICADORES'!Q27)","v":7.6190476190476186},null,null,null,null,null,null,null,null,null,null,null,null,null,null,null,null,null,null,null,null,null,null,null,"Libro de Explotación actualizado",3,{"$f":"IF(AH23=\"\",\"\",VLOOKUP(AH23,AH133:AI137,2,FALSE))","v":"Libro de esxplotación en el que figure el censo actualizado y movimientos de los animales. Entradas y salidas y tratamientos veterinarios."},{"$f":"IF('INFORME EXPLOTACION CREAR'!D28=\"\",\"\",'INFORME EXPLOTACION CREAR'!D28)","v":""},"Libro de esxplotación en el que figure el censo actualizado y movimientos de los animales. Entradas y salidas y tratamientos veterinarios."]
[{"$f":"IF('DEFINICION INDICADORES'!B11=\"\",\"\",'DEFINICION INDICADORES'!B11)","v":"INSTALACIONES"},1,{"$f":"IF('DEFINICION INDICADORES'!D28=\"\",\"\",'DEFINICION INDICADORES'!D28)","v":3},"13",{"$f":"IF('DEFINICION INDICADORES'!E28=\"\",\"\",'DEFINICION INDICADORES'!E28)","v":"Comederos y forrajeras"},{"$f":"IF('HOJA DIAGNOSTICO'!D24=\"\",\"\",'HOJA DIAGNOSTICO'!D24)","v":3},{"$f":"IF(F24=\"\",\"\",F24*'DEFINICION INDICADORES'!F28)","v":12},{"$f":"IF(F24=\"\",\"\",('DEFINICION INDICADORES'!F28*4))","v":16},{"$f":"IF(F24=\"\",\"\",'DEFINICION INDICADORES'!Q28)","v":12.317460317460318},{"$f":"IF(G28=\"\",\"\",SUM(G24:G28))","v":51},{"$f":"IF(H28=\"\",\"\",SUM(H24:H28))","v":84},{"$f":"IF(I28=\"\",\"\",SUM(I24:I28))","v":55.976190476190474},{"$f":"IF(J24=\"\",\"\",J24/K24)","v":0.6071428571428571},{"$f":"IF('DEFINICION INDICADORES'!E11=\"\",\"\",'DEFINICION INDICADORES'!E11)","v":0.75},{"$f":"IF(K24=\"\",\"\",IF(M24>N24,\"CONFORME. Intentar mejorar aspectos negativos\",\"NO CONFORME: Es fundamental corregir los aspectos negativos\"))","v":"NO CONFORME: Es fundamental corregir los aspectos negativos"},null,null,null,null,null,null,null,null,null,null,null,null,null,null,null,null,null,"Formación del Ganadero",3,{"$f":"IF(AH24=\"\",\"\",VLOOKUP(AH24,AH138:AI142,2,FALSE))","v":"Titulación obligatoria y algunas titulaciones complementarias"},{"$f":"IF('INFORME EXPLOTACION CREAR'!D29=\"\",\"\",'INFORME EXPLOTACION CREAR'!D29)","v":""},"Titulación obligatoria y algunas titulaciones complementarias"]
[null,2,{"$f":"IF('DEFINICION INDICADORES'!D29=\"\",\"\",'DEFINICION INDICADORES'!D29)","v":3},"23",{"$f":"IF('DEFINICION INDICADORES'!E29=\"\",\"\",'DEFINICION INDICADORES'!E29)","v":"Bebederos"},{"$f":"IF('HOJA DIAGNOSTICO'!D25=\"\",\"\",'HOJA DIAGNOSTICO'!D25)","v":2},{"$f":"IF(F25=\"\",\"\",F25*'DEFINICION INDICADORES'!F29)","v":6},{"$f":"IF(F25=\"\",\"\",('DEFINICION INDICADORES'!F29*4))","v":12},{"$f":"IF(F25=\"\",\"\",'DEFINICION INDICADORES'!Q29)","v":8.2380952380952372},null,null,null,null,null,null,null,null,null,null,null,null,null,null,null,null,null,null,null,null,null,null,null,"Gestión Medioambiental",3,{"$f":"IF(AH25=\"\",\"\",VLOOKUP(AH25,AH143:AI147,2,FALSE))","v":"Documentación ajustada a la normativa y actualizada."},{"$f":"IF('INFORME EXPLOTACION CREAR'!D30=\"\",\"\",'INFORME EXPLOTACION CREAR'!D30)","v":""},"Documentación ajustada a la normativa y actualizada."]
[null,3,{"$f":"IF('DEFINICION INDICADORES'!D30=\"\",\"\",'DEFINICION INDICADORES'!D30)","v":3},"33",{"$f":"IF('DEFINICION INDICADORES'!E30=\"\",\"\",'DEFINICION INDICADORES'!E30)","v":"Carga Ambiental"},{"$f":"IF('HOJA DIAGNOSTICO'!D26=\"\",\"\",'HOJA DIAGNOSTICO'!D26)","v":2},{"$f":"IF(F26=\"\",\"\",F26*'DEFINICION INDICADORES'!F30)","v":8},{"$f":"IF(F26=\"\",\"\",('DEFINICION INDICADORES'!F30*4))","v":16},{"$f":"IF(F26=\"\",\"\",'DEFINICION INDICADORES'!Q30)","v":10.063492063492063},null,null,null,null,null,null,null,null,null,null,null,null,null,null,null,null,null,null,null,null,null,null,null,"Bioseguridad",2,{"$f":"IF(AH26=\"\",\"\",VLOOKUP(AH26,AH148:AI152,2,FALSE))","v":"Medidas de bioseguridad   adecuadas en alimentación, control de animales externos, cadaveres."},{"$f":"IF('INFORME EXPLOTACION CREAR'!D31=\"\",\"\",'INFORME EXPLOTACION CREAR'!D31)","v":""},"Medidas de bioseguridad   adecuadas en alimentación, control de animales externos, cadaveres."]
[null,4,{"$f":"IF('DEFINICION INDICADORES'!D31=\"\",\"\",'DEFINICION INDICADORES'!D31)","v":3},"43",{"$f":"IF('DEFINICION INDICADORES'!E31=\"\",\"\",'DEFINICION INDICADORES'!E31)","v":"Aislamiento cubierta"},{"$f":"IF('HOJA DIAGNOSTICO'!D27=\"\",\"\",'HOJA DIAGNOSTICO'!D27)","v":2},{"$f":"IF(F27=\"\",\"\",F27*'DEFINICION INDICADORES'!F31)","v":10},{"$f":"IF(F27=\"\",\"\",('DEFINICION INDICADORES'!F31*4))","v":20},{"$f":"IF(F27=\"\",\"\",'DEFINICION INDICADORES'!Q31)","v":12.53968253968254},null,null,null,null,null,null,null,null,null,null,null,null,null,null,null,null,null,null,null,null,null,null,null,"Carga de Trabajo",3,{"$f":"IF(AH27=\"\",\"\",VLOOKUP(AH27,AH153:AI157,2,FALSE))","v":"Mano de obra suficiente. Horarios laborales flexibles.  Motivación"},{"$f":"IF('INFORME EXPLOTACION CREAR'!D32=\"\",\"\",'INFORME EXPLOTACION CREAR'!D32)","v":""},"Mano de obra suficiente. Horarios laborales flexibles.  Motivación"]
[null,5,{"$f":"IF('DEFINICION INDICADORES'!D32=\"\",\"\",'DEFINICION INDICADORES'!D32)","v":3},"53",{"$f":"IF('DEFINICION INDICADORES'!E32=\"\",\"\",'DEFINICION INDICADORES'!E32)","v":"Dimensionado y Ventilación"},{"$f":"IF('HOJA DIAGNOSTICO'!D28=\"\",\"\",'HOJA DIAGNOSTICO'!D28)","v":3},{"$f":"IF(F28=\"\",\"\",F28*'DEFINICION INDICADORES'!F32)","v":15},{"$f":"IF(F28=\"\",\"\",('DEFINICION INDICADORES'!F32*4))","v":20},{"$f":"IF(F28=\"\",\"\",'DEFINICION INDICADORES'!Q32)","v":12.817460317460318}]
[{"$f":"IF('DEFINICION INDICADORES'!B12=\"\",\"\",'DEFINICION INDICADORES'!B12)","v":"BIENESTAR"},1,{"$f":"IF('DEFINICION INDICADORES'!D33=\"\",\"\",'DEFINICION INDICADORES'!D33)","v":4},"14",{"$f":"IF('DEFINICION INDICADORES'!E33=\"\",\"\",'DEFINICION INDICADORES'!E33)","v":"Densidad animal"},{"$f":"IF('HOJA DIAGNOSTICO'!D29=\"\",\"\",'HOJA DIAGNOSTICO'!D29)","v":3},{"$f":"IF(F29=\"\",\"\",F29*'DEFINICION INDICADORES'!F33)","v":15},{"$f":"IF(F29=\"\",\"\",('DEFINICION INDICADORES'!F33*4))","v":20},{"$f":"IF(F29=\"\",\"\",'DEFINICION INDICADORES'!Q33)","v":13.650793650793652},{"$f":"IF(G33=\"\",\"\",SUM(G29:G33))","v":60},{"$f":"IF(H33=\"\",\"\",SUM(H29:H33))","v":76},{"$f":"IF(I33=\"\",\"\",SUM(I29:I33))","v":54.007936507936506},{"$f":"IF(J29=\"\",\"\",J29/K29)","v":0.78947368421052633},{"$f":"IF('DEFINICION INDICADORES'!E12=\"\",\"\",'DEFINICION INDICADORES'!E12)","v":0.7},{"$f":"IF(K29=\"\",\"\",IF(M29>N29,\"CONFORME. Intentar mejorar aspectos negativos\",\"NO CONFORME: Es fundamental corregir los aspectos negativos\"))","v":"CONFORME. Intentar mejorar aspectos negativos"}]
[null,2,{"$f":"IF('DEFINICION INDICADORES'!D34=\"\",\"\",'DEFINICION INDICADORES'!D34)","v":4},"24",{"$f":"IF('DEFINICION INDICADORES'!E34=\"\",\"\",'DEFINICION INDICADORES'!E34)","v":"Calidad de cama"},{"$f":"IF('HOJA DIAGNOSTICO'!D30=\"\",\"\",'HOJA DIAGNOSTICO'!D30)","v":3},{"$f":"IF(F30=\"\",\"\",F30*'DEFINICION INDICADORES'!F34)","v":12},{"$f":"IF(F30=\"\",\"\",('DEFINICION INDICADORES'!F34*4))","v":16},{"$f":"IF(F30=\"\",\"\",'DEFINICION INDICADORES'!Q34)","v":10.698412698412698}]
[null,3,{"$f":"IF('DEFINICION INDICADORES'!D35=\"\",\"\",'DEFINICION INDICADORES'!D35)","v":4},"34",{"$f":"IF('DEFINICION INDICADORES'!E35=\"\",\"\",'DEFINICION INDICADORES'!E35)","v":"Alteración conducta. Estrés"},{"$f":"IF('HOJA DIAGNOSTICO'!D31=\"\",\"\",'HOJA DIAGNOSTICO'!D31)","v":3},{"$f":"IF(F31=\"\",\"\",F31*'DEFINICION INDICADORES'!F35)","v":9},{"$f":"IF(F31=\"\",\"\",('DEFINICION INDICADORES'!F35*4))","v":12},{"$f":"IF(F31=\"\",\"\",'DEFINICION INDICADORES'!Q35)","v":8.428571428571427}]
[null,4,{"$f":"IF('DEFINICION INDICADORES'!D36=\"\",\"\",'DEFINICION INDICADORES'!D36)","v":4},"44",{"$f":"IF('DEFINICION INDICADORES'!E36=\"\",\"\",'DEFINICION INDICADORES'!E36)","v":"Estado de lana y pezuñas"},{"$f":"IF('HOJA DIAGNOSTICO'!D32=\"\",\"\",'HOJA DIAGNOSTICO'!D32)","v":4},{"$f":"IF(F32=\"\",\"\",F32*'DEFINICION INDICADORES'!F36)","v":12},{"$f":"IF(F32=\"\",\"\",('DEFINICION INDICADORES'!F36*4))","v":12},{"$f":"IF(F32=\"\",\"\",'DEFINICION INDICADORES'!Q36)","v":9.3571428571428577}]
[null,5,{"$f":"IF('DEFINICION INDICADORES'!D37=\"\",\"\",'DEFINICION INDICADORES'!D37)","v":4},"54",{"$f":"IF('DEFINICION INDICADORES'!E37=\"\",\"\",'DEFINICION INDICADORES'!E37)","v":"Estado externo animales, CC"},{"$f":"IF('HOJA DIAGNOSTICO'!D33=\"\",\"\",'HOJA DIAGNOSTICO'!D33)","v":3},{"$f":"IF(F33=\"\",\"\",F33*'DEFINICION INDICADORES'!F37)","v":12},{"$f":"IF(F33=\"\",\"\",('DEFINICION INDICADORES'!F37*4))","v":16},{"$f":"IF(F33=\"\",\"\",'DEFINICION INDICADORES'!Q37)","v":11.873015873015873},null,null,null,null,null,null,null,null,null,null,null,null,null,null,null,null,null,null,null,null,null,null,null,{"$f":"IF(AG3=\"\",\"\",AG3)","v":"Programa adecuado y adaptado"},4,{"$f":"IF('CRITERIOS CALIFICACION'!D5=\"\",\"\",'CRITERIOS CALIFICACION'!D5)","v":"Piensos adecuados y suficientes. Buen manejo. Adaptados a las diferentes producciones. Equilibrio nutricional. Cobertura necesidades. Separa machos y hembras"}]
[{"$f":"IF('DEFINICION INDICADORES'!B13=\"\",\"\",'DEFINICION INDICADORES'!B13)","v":"FORMACION Y REGISTRO"},1,{"$f":"IF('DEFINICION INDICADORES'!D38=\"\",\"\",'DEFINICION INDICADORES'!D38)","v":5},"15",{"$f":"IF('DEFINICION INDICADORES'!E38=\"\",\"\",'DEFINICION INDICADORES'!E38)","v":"Libro de Explotación actualizado"},{"$f":"IF('HOJA DIAGNOSTICO'!D34=\"\",\"\",'HOJA DIAGNOSTICO'!D34)","v":3},{"$f":"IF(F34=\"\",\"\",F34*'DEFINICION INDICADORES'!F38)","v":6},{"$f":"IF(F34=\"\",\"\",('DEFINICION INDICADORES'!F38*4))","v":8},{"$f":"IF(F34=\"\",\"\",'DEFINICION INDICADORES'!Q38)","v":6.412698412698413},{"$f":"IF(G38=\"\",\"\",SUM(G34:G38))","v":33},{"$f":"IF(H38=\"\",\"\",SUM(H34:H38))","v":48},{"$f":"IF(I38=\"\",\"\",SUM(I34:I38))","v":31.880952380952383},{"$f":"IF(J34=\"\",\"\",J34/K34)","v":0.6875},{"$f":"IF('DEFINICION INDICADORES'!E13=\"\",\"\",'DEFINICION INDICADORES'!E13)","v":0.65},{"$f":"IF(K34=\"\",\"\",IF(M34>N34,\"CONFORME. Intentar mejorar aspectos negativos\",\"NO CONFORME: Es fundamental corregir los aspectos negativos\"))","v":"CONFORME. Intentar mejorar aspectos negativos"},null,null,null,null,null,null,null,null,null,null,null,null,null,null,null,null,null,null,3,{"$f":"IF('CRITERIOS CALIFICACION'!D6=\"\",\"\",'CRITERIOS CALIFICACION'!D6)","v":"Piensos adecuados y suficientes. Buen manejo. Adaptados a las diferentes producciones. Equilibrio nutricional. Cobertura necesidades. "}]
[null,2,{"$f":"IF('DEFINICION INDICADORES'!D39=\"\",\"\",'DEFINICION INDICADORES'!D39)","v":5},"25",{"$f":"IF('DEFINICION INDICADORES'!E39=\"\",\"\",'DEFINICION INDICADORES'!E39)","v":"Formación del Ganadero"},{"$f":"IF('HOJA DIAGNOSTICO'!D35=\"\",\"\",'HOJA DIAGNOSTICO'!D35)","v":3},{"$f":"IF(F35=\"\",\"\",F35*'DEFINICION INDICADORES'!F39)","v":3},{"$f":"IF(F35=\"\",\"\",('DEFINICION INDICADORES'!F39*4))","v":4},{"$f":"IF(F35=\"\",\"\",'DEFINICION INDICADORES'!Q39)","v":2.6984126984126986},null,null,null,null,null,null,null,null,null,null,null,null,null,null,null,null,null,null,null,null,null,null,null,null,2,{"$f":"IF('CRITERIOS CALIFICACION'!D7=\"\",\"\",'CRITERIOS CALIFICACION'!D7)","v":"Piensos equlibrados con cobertura nutricional. Tiene que adpatar los piensos a los lotes"}]
[null,3,{"$f":"IF('DEFINICION INDICADORES'!D40=\"\",\"\",'DEFINICION INDICADORES'!D40)","v":5},"35",{"$f":"IF('DEFINICION INDICADORES'!E40=\"\",\"\",'DEFINICION INDICADORES'!E40)","v":"Gestión Medioambiental"},{"$f":"IF('HOJA DIAGNOSTICO'!D36=\"\",\"\",'HOJA DIAGNOSTICO'!D36)","v":3},{"$f":"IF(F36=\"\",\"\",F36*'DEFINICION INDICADORES'!F40)","v":3},{"$f":"IF(F36=\"\",\"\",('DEFINICION INDICADORES'!F40*4))","v":4},{"$f":"IF(F36=\"\",\"\",'DEFINICION INDICADORES'!Q40)","v":2.2936507936507935},null,null,null,null,null,null,null,null,null,null,null,null,null,null,null,null,null,null,null,null,null,null,null,null,1,{"$f":"IF('CRITERIOS CALIFICACION'!D8=\"\",\"\",'CRITERIOS CALIFICACION'!D8)","v":"Manejo y grupos adaptados a los piensos."}]
[null,4,{"$f":"IF('DEFINICION INDICADORES'!D41=\"\",\"\",'DEFINICION INDICADORES'!D41)","v":5},"45",{"$f":"IF('DEFINICION INDICADORES'!E41=\"\",\"\",'DEFINICION INDICADORES'!E41)","v":"Bioseguridad"},{"$f":"IF('HOJA DIAGNOSTICO'!D37=\"\",\"\",'HOJA DIAGNOSTICO'!D37)","v":2},{"$f":"IF(F37=\"\",\"\",F37*'DEFINICION INDICADORES'!F41)","v":6},{"$f":"IF(F37=\"\",\"\",('DEFINICION INDICADORES'!F41*4))","v":12},{"$f":"IF(F37=\"\",\"\",'DEFINICION INDICADORES'!Q41)","v":6.4285714285714288},null,null,null,null,null,null,null,null,null,null,null,null,null,null,null,null,null,null,null,null,null,null,null,null,0,{"$f":"IF('CRITERIOS CALIFICACION'!D9=\"\",\"\",'CRITERIOS CALIFICACION'!D9)","v":"Desequilibrio nutricional o no cobertura de necesidades."}]
[null,5,{"$f":"IF('DEFINICION INDICADORES'!D42=\"\",\"\",'DEFINICION INDICADORES'!D42)","v":5},"55",{"$f":"IF('DEFINICION INDICADORES'!E42=\"\",\"\",'DEFINICION INDICADORES'!E42)","v":"Carga de Trabajo"},{"$f":"IF('HOJA DIAGNOSTICO'!D38=\"\",\"\",'HOJA DIAGNOSTICO'!D38)","v":3},{"$f":"IF(F38=\"\",\"\",F38*'DEFINICION INDICADORES'!F42)","v":15},{"$f":"IF(F38=\"\",\"\",('DEFINICION INDICADORES'!F42*4))","v":20},{"$f":"IF(F38=\"\",\"\",'DEFINICION INDICADORES'!Q42)","v":14.047619047619047},null,null,null,null,null,null,null,null,null,null,null,null,null,null,null,null,null,null,null,null,null,null,null,"Depósitos y silos pienso",4,{"$f":"IF('CRITERIOS CALIFICACION'!D10=\"\",\"\",'CRITERIOS CALIFICACION'!D10)","v":"Suficientes depósitos o silos. Limpieza periódica de los mismos."}]
[null,null,null,null,null,"TOTAL",{"$f":"IF(G38=\"\",\"\",SUM(G14:G38))","v":270},{"$f":"IF(H38=\"\",\"\",SUM(H14:H38))","v":400},null,{"$f":"IF(G39=\"\",\"\",SUM(J14:J38))","v":270},{"$f":"IF(H39=\"\",\"\",SUM(K14:K38))","v":400},null,{"$f":"IF(M14=\"\",\"\",AVERAGE(M14:M38))","v":0.68273635174893754},{"$f":"IF(N14=\"\",\"\",AVERAGE(N14:N38))","v":0.73},{"$f":"IF(K39=\"\",\"\",IF(M39>N39,\"CONFORME. Intentar mejorar aspectos negativos\",\"NO CONFORME: Es fundamental corregir los aspectos negativos\"))","v":"NO CONFORME: Es fundamental corregir los aspectos negativos"},null,null,null,null,null,null,null,null,null,null,null,null,null,null,null,null,null,null,3,{"$f":"IF('CRITERIOS CALIFICACION'!D11=\"\",\"\",'CRITERIOS CALIFICACION'!D11)","v":"Suficientes depósitos o silos pero limpieza no planificada"}]
[null,null,null,null,null,null,null,null,null,null,null,null,null,null,null,null,null,null,null,null,null,null,null,null,null,null,null,null,null,null,null,null,null,2,{"$f":"IF('CRITERIOS CALIFICACION'!D12=\"\",\"\",'CRITERIOS CALIFICACION'!D12)","v":"Silos limpios pero insuficientes"}]
[null,null,null,null,null,null,null,null,null,null,null,null,null,null,null,null,null,null,null,null,null,null,null,null,null,null,null,null,null,null,null,null,null,1,{"$f":"IF('CRITERIOS CALIFICACION'!D13=\"\",\"\",'CRITERIOS CALIFICACION'!D13)","v":"Insuficientes silos. Limpieza no planificada"}]
[null,null,null,null,null,null,null,null,null,null,null,null,null,null,null,null,null,null,null,null,null,null,null,null,null,null,null,null,null,null,null,null,null,0,{"$f":"IF('CRITERIOS CALIFICACION'!D14=\"\",\"\",'CRITERIOS CALIFICACION'!D14)","v":"Silos claramente  sucios e insuficientes"}]
[null,null,null,null,null,null,null,null,null,null,null,null,null,null,null,null,null,null,null,null,null,null,null,null,null,null,null,null,null,null,null,null,"Agua de bebida",4,{"$f":"IF('CRITERIOS CALIFICACION'!D15=\"\",\"\",'CRITERIOS CALIFICACION'!D15)","v":"Calidad química y bacteriológica del agua. Acuíferos. Análisis y control periódicos. Sistema de tratamiento de aguas."}]
[null,null,null,null,null,null,null,null,null,null,null,null,null,null,null,null,null,null,null,null,null,null,null,null,null,null,null,null,null,null,null,null,null,3,{"$f":"IF('CRITERIOS CALIFICACION'!D16=\"\",\"\",'CRITERIOS CALIFICACION'!D16)","v":"Calidad química y bacteriológica del agua. Acuíferos. Sistema de tratamiento de aguas."}]
[null,null,null,null,null,null,null,null,null,null,null,null,null,null,null,null,null,null,null,null,null,null,null,null,null,null,null,null,null,null,null,null,null,2,{"$f":"IF('CRITERIOS CALIFICACION'!D17=\"\",\"\",'CRITERIOS CALIFICACION'!D17)","v":"Calidad química y bacteriológica del agua. Sistema de tratamiento de aguas."}]
[null,null,null,null,null,null,null,null,null,null,null,null,null,null,null,null,null,null,null,null,null,null,null,null,null,null,null,null,null,null,null,null,null,1,{"$f":"IF('CRITERIOS CALIFICACION'!D18=\"\",\"\",'CRITERIOS CALIFICACION'!D18)","v":"Calidad química y bacteriológica del agua insuficiente. Sistema de tratamiento de aguas."}]
[null,null,null,null,null,null,null,null,null,null,null,null,null,null,null,null,null,null,null,null,null,null,null,null,null,null,null,null,null,null,null,null,null,0,{"$f":"IF('CRITERIOS CALIFICACION'!D19=\"\",\"\",'CRITERIOS CALIFICACION'!D19)","v":"Calidad química y bacteriológica del agua insuficiente. Sistema de tratamiento de aguas no existe o insuficiente"}]
[null,null,null,null,null,null,null,null,null,null,null,null,null,null,null,null,null,null,null,null,null,null,null,null,null,null,null,null,null,null,null,null,"Depósitos y conducción de agua",4,{"$f":"IF('CRITERIOS CALIFICACION'!D20=\"\",\"\",'CRITERIOS CALIFICACION'!D20)","v":"Suficientes depósitos adpatados al tamaño de la explotación.Doble via para tratamientos en todas las cuadras Limpieza periódica de tuberías. Ausencia de biofilm"}]
["TOMA DE MUESTRAS",null,null,null,null,null,null,null,null,null,null,null,null,null,null,null,null,null,null,null,null,null,null,null,null,null,null,null,null,null,null,null,null,3,{"$f":"IF('CRITERIOS CALIFICACION'!D21=\"\",\"\",'CRITERIOS CALIFICACION'!D21)","v":"Suficientes depósitos adpatados al tamaño de la explotación.Doble via para tratamientos en algunas cuadras Limpieza periódica de tuberías. Ausencia de biofilm"}]
[null,null,null,null,null,null,null,null,null,null,null,null,null,null,null,null,null,null,null,null,null,null,null,null,null,null,null,null,null,null,null,null,null,2,{"$f":"IF('CRITERIOS CALIFICACION'!D22=\"\",\"\",'CRITERIOS CALIFICACION'!D22)","v":"Depósitos adecuado y limpios pero con una sola linea de agua. Limpieza periódica de tuberías. Ausencia de biofilm"}]
[null,null,null,null,null,null,null,null,null,null,null,null,null,null,null,null,null,null,null,null,null,null,null,null,null,null,null,null,null,null,null,null,null,1,{"$f":"IF('CRITERIOS CALIFICACION'!D23=\"\",\"\",'CRITERIOS CALIFICACION'!D23)","v":"Depósitos adecuado y limpios pero con una sola linea de agua. Limpieza no planificada de tuberías. Ausencia de biofilm"}]
[null,null,null,null,null,null,{"$f":"IF('INFORME TOMA DE MUESTRAS'!D8=\"\",\"\",'INFORME TOMA DE MUESTRAS'!D8)","v":""},null,null,null,null,null,null,null,null,null,null,null,null,null,null,null,null,null,null,null,null,null,null,null,null,null,null,0,{"$f":"IF('CRITERIOS CALIFICACION'!D24=\"\",\"\",'CRITERIOS CALIFICACION'!D24)","v":"Depósitos poco adecuados o sucios. Limpieza no planificada de tuberías. Presencia de biofilm"}]
[1,2,null,null,5,6,7,null,null,10,11,null,null,null,null,null,null,null,null,null,null,null,null,null,null,null,null,null,null,null,null,null,"Automatización adecuada",4,{"$f":"IF('CRITERIOS CALIFICACION'!D25=\"\",\"\",'CRITERIOS CALIFICACION'!D25)","v":"Alimentación automatizada que asegure suministro de alimento suficiente. Tiempo empleado en suministro corto. No hay finos . Limpieza diaria"}]
[{"$f":"IF('DEFINIR TOMAS DE MUESTRAS'!A34=\"\",\"\",'DEFINIR TOMAS DE MUESTRAS'!A34)","v":""},{"$f":"IF('DEFINIR TOMAS DE MUESTRAS'!B34=\"\",\"\",'DEFINIR TOMAS DE MUESTRAS'!B34)","v":""},null,null,{"$f":"IF('DEFINIR TOMAS DE MUESTRAS'!C34=\"\",\"\",'DEFINIR TOMAS DE MUESTRAS'!C34)","v":""},{"$f":"IF('DEFINIR TOMAS DE MUESTRAS'!D34=\"\",\"\",'DEFINIR TOMAS DE MUESTRAS'!D34)","v":""},{"$f":"IF('DEFINIR TOMAS DE MUESTRAS'!E34=\"\",\"\",'DEFINIR TOMAS DE MUESTRAS'!E34)","v":""},null,null,{"$f":"IF('DEFINIR TOMAS DE MUESTRAS'!F34=\"\",\"\",'DEFINIR TOMAS DE MUESTRAS'!F34)","v":""},{"$f":"IF('DEFINIR TOMAS DE MUESTRAS'!G34=\"\",\"\",'DEFINIR TOMAS DE MUESTRAS'!G34)","v":""},null,null,{"$f":"IF('DEFINIR TOMAS DE MUESTRAS'!H34=\"\",\"\",'DEFINIR TOMAS DE MUESTRAS'!H34)","v":""},{"$f":"IF('DEFINIR TOMAS DE MUESTRAS'!I34=\"\",\"\",'DEFINIR TOMAS DE MUESTRAS'!I34)","v":""},null,null,null,null,null,null,null,null,null,null,null,null,null,null,null,null,null,null,3,{"$f":"IF('CRITERIOS CALIFICACION'!D26=\"\",\"\",'CRITERIOS CALIFICACION'!D26)","v":"Alimentación automatizada que asegure suministro de alimento suficiente. Tiempo empleado en suministro corto. Algo de finos pero limpieza diaria"}]
[{"$f":"IF('DEFINIR TOMAS DE MUESTRAS'!A35=\"\",\"\",'DEFINIR TOMAS DE MUESTRAS'!A35)","v":""},{"$f":"IF('DEFINIR TOMAS DE MUESTRAS'!B35=\"\",\"\",'DEFINIR TOMAS DE MUESTRAS'!B35)","v":""},null,null,{"$f":"IF('DEFINIR TOMAS DE MUESTRAS'!C35=\"\",\"\",'DEFINIR TOMAS DE MUESTRAS'!C35)","v":""},{"$f":"IF('DEFINIR TOMAS DE MUESTRAS'!D35=\"\",\"\",'DEFINIR TOMAS DE MUESTRAS'!D35)","v":""},{"$f":"IF('DEFINIR TOMAS DE MUESTRAS'!E35=\"\",\"\",'DEFINIR TOMAS DE MUESTRAS'!E35)","v":""},null,null,{"$f":"IF('DEFINIR TOMAS DE MUESTRAS'!F35=\"\",\"\",'DEFINIR TOMAS DE MUESTRAS'!F35)","v":""},{"$f":"IF('DEFINIR TOMAS DE MUESTRAS'!G35=\"\",\"\",'DEFINIR TOMAS DE MUESTRAS'!G35)","v":""},null,null,null,null,null,null,null,null,null,null,null,null,null,null,null,null,null,null,null,null,null,null,2,{"$f":"IF('CRITERIOS CALIFICACION'!D27=\"\",\"\",'CRITERIOS CALIFICACION'!D27)","v":"Alimentación automatizada que asegure suministro de alimento suficiente. Tiempo empleado en suministro corto. Algo de finos. No limpieza diaria"}]
[{"$f":"IF('DEFINIR TOMAS DE MUESTRAS'!A36=\"\",\"\",'DEFINIR TOMAS DE MUESTRAS'!A36)","v":""},{"$f":"IF('DEFINIR TOMAS DE MUESTRAS'!B36=\"\",\"\",'DEFINIR TOMAS DE MUESTRAS'!B36)","v":""},null,null,{"$f":"IF('DEFINIR TOMAS DE MUESTRAS'!C36=\"\",\"\",'DEFINIR TOMAS DE MUESTRAS'!C36)","v":""},{"$f":"IF('DEFINIR TOMAS DE MUESTRAS'!D36=\"\",\"\",'DEFINIR TOMAS DE MUESTRAS'!D36)","v":""},{"$f":"IF('DEFINIR TOMAS DE MUESTRAS'!E36=\"\",\"\",'DEFINIR TOMAS DE MUESTRAS'!E36)","v":""},null,null,{"$f":"IF('DEFINIR TOMAS DE MUESTRAS'!F36=\"\",\"\",'DEFINIR TOMAS DE MUESTRAS'!F36)","v":""},{"$f":"IF('DEFINIR TOMAS DE MUESTRAS'!G36=\"\",\"\",'DEFINIR TOMAS DE MUESTRAS'!G36)","v":""},null,null,null,null,null,null,null,null,null,null,null,null,null,null,null,null,null,null,null,null,null,null,1,{"$f":"IF('CRITERIOS CALIFICACION'!D28=\"\",\"\",'CRITERIOS CALIFICACION'!D28)","v":"Alimentación automatizada que asegure suministro de alimento suficiente. Tiempo empleado en suministro corto. Evidente presencia de finos que afectan al consumo"}]
[{"$f":"IF('DEFINIR TOMAS DE MUESTRAS'!A37=\"\",\"\",'DEFINIR TOMAS DE MUESTRAS'!A37)","v":""},{"$f":"IF('DEFINIR TOMAS DE MUESTRAS'!B37=\"\",\"\",'DEFINIR TOMAS DE MUESTRAS'!B37)","v":""},null,null,{"$f":"IF('DEFINIR TOMAS DE MUESTRAS'!C37=\"\",\"\",'DEFINIR TOMAS DE MUESTRAS'!C37)","v":""},{"$f":"IF('DEFINIR TOMAS DE MUESTRAS'!D37=\"\",\"\",'DEFINIR TOMAS DE MUESTRAS'!D37)","v":""},{"$f":"IF('DEFINIR TOMAS DE MUESTRAS'!E37=\"\",\"\",'DEFINIR TOMAS DE MUESTRAS'!E37)","v":""},null,null,{"$f":"IF('DEFINIR TOMAS DE MUESTRAS'!F37=\"\",\"\",'DEFINIR TOMAS DE MUESTRAS'!F37)","v":""},{"$f":"IF('DEFINIR TOMAS DE MUESTRAS'!G37=\"\",\"\",'DEFINIR TOMAS DE MUESTRAS'!G37)","v":""},null,null,null,null,null,null,null,null,null,null,null,null,null,null,null,null,null,null,null,null,null,null,0,{"$f":"IF('CRITERIOS CALIFICACION'!D29=\"\",\"\",'CRITERIOS CALIFICACION'!D29)","v":"Alimentación no  automatizada . Tiempos en que los animales están sin pienso. "}]
[{"$f":"IF('DEFINIR TOMAS DE MUESTRAS'!A38=\"\",\"\",'DEFINIR TOMAS DE MUESTRAS'!A38)","v":""},{"$f":"IF('DEFINIR TOMAS DE MUESTRAS'!B38=\"\",\"\",'DEFINIR TOMAS DE MUESTRAS'!B38)","v":""},null,null,{"$f":"IF('DEFINIR TOMAS DE MUESTRAS'!C38=\"\",\"\",'DEFINIR TOMAS DE MUESTRAS'!C38)","v":""},{"$f":"IF('DEFINIR TOMAS DE MUESTRAS'!D38=\"\",\"\",'DEFINIR TOMAS DE MUESTRAS'!D38)","v":""},{"$f":"IF('DEFINIR TOMAS DE MUESTRAS'!E38=\"\",\"\",'DEFINIR TOMAS DE MUESTRAS'!E38)","v":""},null,null,{"$f":"IF('DEFINIR TOMAS DE MUESTRAS'!F38=\"\",\"\",'DEFINIR TOMAS DE MUESTRAS'!F38)","v":""},{"$f":"IF('DEFINIR TOMAS DE MUESTRAS'!G38=\"\",\"\",'DEFINIR TOMAS DE MUESTRAS'!G38)","v":""},null,null,null,null,null,null,null,null,null,null,null,null,null,null,null,null,null,null,null,null,null,"Ratios mortalidad y morbilidad",4,{"$f":"IF('CRITERIOS CALIFICACION'!D33=\"\",\"\",'CRITERIOS CALIFICACION'!D33)","v":"Mortalidad adultas y desvieje <15% "}]
[{"$f":"IF('DEFINIR TOMAS DE MUESTRAS'!A39=\"\",\"\",'DEFINIR TOMAS DE MUESTRAS'!A39)","v":""},{"$f":"IF('DEFINIR TOMAS DE MUESTRAS'!B39=\"\",\"\",'DEFINIR TOMAS DE MUESTRAS'!B39)","v":""},null,null,{"$f":"IF('DEFINIR TOMAS DE MUESTRAS'!C39=\"\",\"\",'DEFINIR TOMAS DE MUESTRAS'!C39)","v":""},{"$f":"IF('DEFINIR TOMAS DE MUESTRAS'!D39=\"\",\"\",'DEFINIR TOMAS DE MUESTRAS'!D39)","v":""},{"$f":"IF('DEFINIR TOMAS DE MUESTRAS'!E39=\"\",\"\",'DEFINIR TOMAS DE MUESTRAS'!E39)","v":""},null,null,{"$f":"IF('DEFINIR TOMAS DE MUESTRAS'!F39=\"\",\"\",'DEFINIR TOMAS DE MUESTRAS'!F39)","v":""},{"$f":"IF('DEFINIR TOMAS DE MUESTRAS'!G39=\"\",\"\",'DEFINIR TOMAS DE MUESTRAS'!G39)","v":""},null,null,null,null,null,null,null,null,null,null,null,null,null,null,null,null,null,null,null,null,null,null,3,{"$f":"IF('CRITERIOS CALIFICACION'!D34=\"\",\"\",'CRITERIOS CALIFICACION'!D34)","v":"Mortalidad adultas y desvieje entre  15% y 20%"}]
[{"$f":"IF('DEFINIR TOMAS DE MUESTRAS'!A40=\"\",\"\",'DEFINIR TOMAS DE MUESTRAS'!A40)","v":""},{"$f":"IF('DEFINIR TOMAS DE MUESTRAS'!B40=\"\",\"\",'DEFINIR TOMAS DE MUESTRAS'!B40)","v":""},null,null,{"$f":"IF('DEFINIR TOMAS DE MUESTRAS'!C40=\"\",\"\",'DEFINIR TOMAS DE MUESTRAS'!C40)","v":""},{"$f":"IF('DEFINIR TOMAS DE MUESTRAS'!D40=\"\",\"\",'DEFINIR TOMAS DE MUESTRAS'!D40)","v":""},{"$f":"IF('DEFINIR TOMAS DE MUESTRAS'!E40=\"\",\"\",'DEFINIR TOMAS DE MUESTRAS'!E40)","v":""},null,null,{"$f":"IF('DEFINIR TOMAS DE MUESTRAS'!F40=\"\",\"\",'DEFINIR TOMAS DE MUESTRAS'!F40)","v":""},{"$f":"IF('DEFINIR TOMAS DE MUESTRAS'!G40=\"\",\"\",'DEFINIR TOMAS DE MUESTRAS'!G40)","v":""},null,null,null,null,null,null,null,null,null,null,null,null,null,null,null,null,null,null,null,null,null,null,2,{"$f":"IF('CRITERIOS CALIFICACION'!D35=\"\",\"\",'CRITERIOS CALIFICACION'!D35)","v":"Mortalidad adulktas y desvieje entre 20 y 25%"}]
[{"$f":"IF('DEFINIR TOMAS DE MUESTRAS'!A41=\"\",\"\",'DEFINIR TOMAS DE MUESTRAS'!A41)","v":""},{"$f":"IF('DEFINIR TOMAS DE MUESTRAS'!B41=\"\",\"\",'DEFINIR TOMAS DE MUESTRAS'!B41)","v":""},null,null,{"$f":"IF('DEFINIR TOMAS DE MUESTRAS'!C41=\"\",\"\",'DEFINIR TOMAS DE MUESTRAS'!C41)","v":""},{"$f":"IF('DEFINIR TOMAS DE MUESTRAS'!D41=\"\",\"\",'DEFINIR TOMAS DE MUESTRAS'!D41)","v":""},{"$f":"IF('DEFINIR TOMAS DE MUESTRAS'!E41=\"\",\"\",'DEFINIR TOMAS DE MUESTRAS'!E41)","v":""},null,null,{"$f":"IF('DEFINIR TOMAS DE MUESTRAS'!F41=\"\",\"\",'DEFINIR TOMAS DE MUESTRAS'!F41)","v":""},{"$f":"IF('DEFINIR TOMAS DE MUESTRAS'!G41=\"\",\"\",'DEFINIR TOMAS DE MUESTRAS'!G41)","v":""},null,null,null,null,null,null,null,null,null,null,null,null,null,null,null,null,null,null,null,null,null,null,1,{"$f":"IF('CRITERIOS CALIFICACION'!D36=\"\",\"\",'CRITERIOS CALIFICACION'!D36)","v":"Mortalidad adultas y desvieje entre 25 y 40%"}]
[{"$f":"IF('DEFINIR TOMAS DE MUESTRAS'!A42=\"\",\"\",'DEFINIR TOMAS DE MUESTRAS'!A42)","v":""},{"$f":"IF('DEFINIR TOMAS DE MUESTRAS'!B42=\"\",\"\",'DEFINIR TOMAS DE MUESTRAS'!B42)","v":""},null,null,{"$f":"IF('DEFINIR TOMAS DE MUESTRAS'!C42=\"\",\"\",'DEFINIR TOMAS DE MUESTRAS'!C42)","v":""},{"$f":"IF('DEFINIR TOMAS DE MUESTRAS'!D42=\"\",\"\",'DEFINIR TOMAS DE MUESTRAS'!D42)","v":""},{"$f":"IF('DEFINIR TOMAS DE MUESTRAS'!E42=\"\",\"\",'DEFINIR TOMAS DE MUESTRAS'!E42)","v":""},null,null,{"$f":"IF('DEFINIR TOMAS DE MUESTRAS'!F42=\"\",\"\",'DEFINIR TOMAS DE MUESTRAS'!F42)","v":""},{"$f":"IF('DEFINIR TOMAS DE MUESTRAS'!G42=\"\",\"\",'DEFINIR TOMAS DE MUESTRAS'!G42)","v":""},null,null,null,null,null,null,null,null,null,null,null,null,null,null,null,null,null,null,null,null,null,null,0,{"$f":"IF('CRITERIOS CALIFICACION'!D37=\"\",\"\",'CRITERIOS CALIFICACION'!D37)","v":"Alta mortalidad y desvieje. Ambos > 40%"}]
[{"$f":"IF('DEFINIR TOMAS DE MUESTRAS'!A43=\"\",\"\",'DEFINIR TOMAS DE MUESTRAS'!A43)","v":""},{"$f":"IF('DEFINIR TOMAS DE MUESTRAS'!B43=\"\",\"\",'DEFINIR TOMAS DE MUESTRAS'!B43)","v":""},null,null,{"$f":"IF('DEFINIR TOMAS DE MUESTRAS'!C43=\"\",\"\",'DEFINIR TOMAS DE MUESTRAS'!C43)","v":""},{"$f":"IF('DEFINIR TOMAS DE MUESTRAS'!D43=\"\",\"\",'DEFINIR TOMAS DE MUESTRAS'!D43)","v":""},{"$f":"IF('DEFINIR TOMAS DE MUESTRAS'!E43=\"\",\"\",'DEFINIR TOMAS DE MUESTRAS'!E43)","v":""},null,null,{"$f":"IF('DEFINIR TOMAS DE MUESTRAS'!F43=\"\",\"\",'DEFINIR TOMAS DE MUESTRAS'!F43)","v":""},{"$f":"IF('DEFINIR TOMAS DE MUESTRAS'!G43=\"\",\"\",'DEFINIR TOMAS DE MUESTRAS'!G43)","v":""},null,null,null,null,null,null,null,null,null,null,null,null,null,null,null,null,null,null,null,null,null,"Detección enfermos. Enfermería",4,{"$f":"IF('CRITERIOS CALIFICACION'!D38=\"\",\"\",'CRITERIOS CALIFICACION'!D38)","v":"Abortos inferiores al 3% con vacuna de clamidia y mas agentes a la reposicion o/y adultas"}]
[{"$f":"IF('DEFINIR TOMAS DE MUESTRAS'!A44=\"\",\"\",'DEFINIR TOMAS DE MUESTRAS'!A44)","v":""},{"$f":"IF('DEFINIR TOMAS DE MUESTRAS'!B44=\"\",\"\",'DEFINIR TOMAS DE MUESTRAS'!B44)","v":""},null,null,{"$f":"IF('DEFINIR TOMAS DE MUESTRAS'!C44=\"\",\"\",'DEFINIR TOMAS DE MUESTRAS'!C44)","v":""},{"$f":"IF('DEFINIR TOMAS DE MUESTRAS'!D44=\"\",\"\",'DEFINIR TOMAS DE MUESTRAS'!D44)","v":""},{"$f":"IF('DEFINIR TOMAS DE MUESTRAS'!E44=\"\",\"\",'DEFINIR TOMAS DE MUESTRAS'!E44)","v":""},null,null,{"$f":"IF('DEFINIR TOMAS DE MUESTRAS'!F44=\"\",\"\",'DEFINIR TOMAS DE MUESTRAS'!F44)","v":""},{"$f":"IF('DEFINIR TOMAS DE MUESTRAS'!G44=\"\",\"\",'DEFINIR TOMAS DE MUESTRAS'!G44)","v":""},null,null,null,null,null,null,null,null,null,null,null,null,null,null,null,null,null,null,null,null,null,null,3,{"$f":"IF('CRITERIOS CALIFICACION'!D39=\"\",\"\",'CRITERIOS CALIFICACION'!D39)","v":"Abortos inferiores al 3% con vacuna de clamidia a la reposicion"}]
[null,null,null,null,null,null,null,null,null,null,null,null,null,null,null,null,null,null,null,null,null,null,null,null,null,null,null,null,null,null,null,null,null,2,{"$f":"IF('CRITERIOS CALIFICACION'!D40=\"\",\"\",'CRITERIOS CALIFICACION'!D40)","v":"Abortos ocasionales con diagnostico claro y ovejas vacunadas"}]
[{"$f":"IF(F85=\"\",\"\",F85)","v":""},{"$f":"IF($A$66=\"\",\"\",VLOOKUP($A$66,$A$54:$K$64,B53,FALSE))","v":""},null,null,{"$f":"IF($A$66=\"\",\"\",VLOOKUP($A$66,$A$54:$K$64,E53,FALSE))","v":""},{"$f":"IF($A$66=\"\",\"\",VLOOKUP($A$66,$A$54:$K$64,F53,FALSE))","v":""},{"$f":"IF($A$66=\"\",\"\",VLOOKUP($A$66,$A$54:$K$64,G53,FALSE))","v":""},null,null,{"$f":"IF($A$66=\"\",\"\",VLOOKUP($A$66,$A$54:$K$64,J53,FALSE))","v":""},{"$f":"IF($A$66=\"\",\"\",VLOOKUP($A$66,$A$54:$K$64,K53,FALSE))","v":""},null,null,null,null,null,null,null,null,null,null,null,null,null,null,null,null,null,null,null,null,null,null,1,{"$f":"IF('CRITERIOS CALIFICACION'!D41=\"\",\"\",'CRITERIOS CALIFICACION'!D41)","v":"Abortos habituales con dfagnostico claro de varios procesos"}]
[null,null,null,null,null,null,null,null,null,null,null,null,null,null,null,null,null,null,null,null,null,null,null,null,null,null,null,null,null,null,null,null,null,0,{"$f":"IF('CRITERIOS CALIFICACION'!D42=\"\",\"\",'CRITERIOS CALIFICACION'!D42)","v":"Tormentas de abortos no diagnosticados"}]
["CALENDARIO",null,null,null,{"$f":"IF(A66=\"\",\"\",G52+G66)","v":""},{"$f":"IF(E68=\"\",\"\",$F$66)","v":""},null,null,null,{"$f":"IF(E68=\"\",\"\",$J$66)","v":""},null,null,null,null,null,null,null,null,null,null,null,null,null,null,null,null,null,null,null,null,null,null,"Plan Sanitario",4,{"$f":"IF('CRITERIOS CALIFICACION'!D43=\"\",\"\",'CRITERIOS CALIFICACION'!D43)","v":"Establecimiento de protocolos de prevención y curación. Cumplimiento de los mismos. Bioseguridad."}]
[null,null,null,null,{"$f":"IF(E68=\"\",\"\",E68+G66)","v":""},{"$f":"IF(E69=\"\",\"\",$F$66)","v":""},null,null,null,{"$f":"IF(E69=\"\",\"\",$J$66)","v":""},null,null,null,null,null,null,null,null,null,null,null,null,null,null,null,null,null,null,null,null,null,null,null,3,{"$f":"IF('CRITERIOS CALIFICACION'!D44=\"\",\"\",'CRITERIOS CALIFICACION'!D44)","v":"Existe protocolo pero no siempre se cumple"}]
[null,null,null,null,{"$f":"IF(E69=\"\",\"\",E69+G66)","v":""},"",null,null,null,"",null,null,null,null,null,null,null,null,null,null,null,null,null,null,null,null,null,null,null,null,null,null,null,2,{"$f":"IF('CRITERIOS CALIFICACION'!D45=\"\",\"\",'CRITERIOS CALIFICACION'!D45)","v":"No existe protocolo pero obtiene unos resultados aceptables en sanidad."}]
[null,null,null,null,{"$f":"IF(E70=\"\",\"\",E70+G66)","v":""},"",null,null,null,"",null,null,null,null,null,null,null,null,null,null,null,null,null,null,null,null,null,null,null,null,null,null,null,1,{"$f":"IF('CRITERIOS CALIFICACION'!D46=\"\",\"\",'CRITERIOS CALIFICACION'!D46)","v":"Vacunación o desparasitación ocasional"}]
[null,null,null,null,{"$f":"IF(E71=\"\",\"\",E71+G66)","v":""},"",null,null,null,{"$f":"IF(E72=\"\",\"\",$J$66)","v":""},null,null,null,null,null,null,null,null,null,null,null,null,null,null,null,null,null,null,null,null,null,null,null,0,{"$f":"IF('CRITERIOS CALIFICACION'!D47=\"\",\"\",'CRITERIOS CALIFICACION'!D47)","v":"No existe protocolo sanitario y no existe profilaxis ni siquiera ocasionalmente"}]
[null,null,null,null,{"$f":"IF(E72=\"\",\"\",E72+G66)","v":""},"",null,null,null,"",null,null,null,null,null,null,null,null,null,null,null,null,null,null,null,null,null,null,null,null,null,null,"Calidad orígenes",4,{"$f":"IF('CRITERIOS CALIFICACION'!D48=\"\",\"\",'CRITERIOS CALIFICACION'!D48)","v":"Nula incidencia de procesos crónicos y medidas de vacunación y bioseguridad"}]
[null,null,null,null,null,null,null,null,null,null,null,null,null,null,null,null,null,null,null,null,null,null,null,null,null,null,null,null,null,null,null,null,null,3,{"$f":"IF('CRITERIOS CALIFICACION'!D49=\"\",\"\",'CRITERIOS CALIFICACION'!D49)","v":"Escasa incidencia de procesos crónicos y medidas de vacunación y bioseguridad"}]
[null,null,null,null,null,null,null,null,null,null,null,null,null,null,null,null,null,null,null,null,null,null,null,null,null,null,null,null,null,null,null,null,null,2,{"$f":"IF('CRITERIOS CALIFICACION'!D50=\"\",\"\",'CRITERIOS CALIFICACION'!D50)","v":"Baja incidencia de una enfermedad cronica predominante y diagnosticada"}]
[null,null,null,null,null,null,null,null,null,null,null,null,null,null,null,null,null,null,null,null,null,null,null,null,null,null,null,null,null,null,null,null,null,1,{"$f":"IF('CRITERIOS CALIFICACION'!D51=\"\",\"\",'CRITERIOS CALIFICACION'!D51)","v":"Incidencia media de enfermedades crónicas con diagnostico"}]
[null,null,null,null,null,null,null,null,null,null,null,null,null,null,null,null,null,null,null,null,null,null,null,null,null,null,null,null,null,null,null,null,null,0,{"$f":"IF('CRITERIOS CALIFICACION'!D52=\"\",\"\",'CRITERIOS CALIFICACION'!D52)","v":"Alta incidencia de enfermedades crónicas sin diagnostico claro"}]
[null,null,null,null,null,null,null,null,null,null,null,null,null,null,null,null,null,null,null,null,null,null,null,null,null,null,null,null,null,null,null,null,"Control animales extraños",4,{"$f":"IF('CRITERIOS CALIFICACION'!D53=\"\",\"\",'CRITERIOS CALIFICACION'!D53)","v":"Programa DDD y su cumplimiento. Vigila perros y gatos de la explotación. Dersparasitación perros. Control animales externos sistematizado."}]
[null,null,null,null,null,null,null,null,null,null,null,null,null,null,null,null,null,null,null,null,null,null,null,null,null,null,null,null,null,null,null,null,null,3,{"$f":"IF('CRITERIOS CALIFICACION'!D54=\"\",\"\",'CRITERIOS CALIFICACION'!D54)","v":"Programa DDD y su cumplimiento. Vigila perros y gatos de la explotación. Dersparasitación perros. No controla siempre animales externos"}]
[null,null,null,null,null,null,null,null,null,null,null,null,null,null,null,null,null,null,null,null,null,null,null,null,null,null,null,null,null,null,null,null,null,2,{"$f":"IF('CRITERIOS CALIFICACION'!D55=\"\",\"\",'CRITERIOS CALIFICACION'!D55)","v":"Programa DDD y su cumplimiento. Vigila perros y gatos de la explotación. No desparasita perros siempre. No controla siempre animales externos"}]
[null,null,null,null,null,null,null,null,null,null,null,null,null,null,null,null,null,null,null,null,null,null,null,null,null,null,null,null,null,null,null,null,null,1,{"$f":"IF('CRITERIOS CALIFICACION'!D56=\"\",\"\",'CRITERIOS CALIFICACION'!D56)","v":"Programa DDD y su cumplimiento. No vigila perros ni gatos."}]
[null,null,null,null,null,null,null,null,null,null,null,null,null,null,null,null,null,null,null,null,null,null,null,null,null,null,null,null,null,null,null,null,null,0,{"$f":"IF('CRITERIOS CALIFICACION'!D57=\"\",\"\",'CRITERIOS CALIFICACION'!D57)","v":"Ningún control sobre animales externos."}]
[null,null,null,null,null,null,null,null,null,null,null,null,null,null,null,null,null,null,null,null,null,null,null,null,null,null,null,null,null,null,null,null,"Comederos y forrajeras",4,{"$f":"IF('CRITERIOS CALIFICACION'!D64=\"\",\"\",'CRITERIOS CALIFICACION'!D64)","v":"Disponibilidad sobrada de comederos y pajeras , limpios y de facil acceso a los animales. Suelo limpio y seco en espacio de comederos y pajeras."}]
[null,null,null,null,null,null,null,null,null,null,null,null,null,null,null,null,null,null,null,null,null,null,null,null,null,null,null,null,null,null,null,null,null,3,{"$f":"IF('CRITERIOS CALIFICACION'!D65=\"\",\"\",'CRITERIOS CALIFICACION'!D65)","v":"Disponibilidad sobrada de comederos y pajeras , limpios y situados solo en una parte de la cuadra. Suelo limpio y seco."}]
[{"$f":"A54&B54","v":""},{"$f":"IF('CALENDARIO TOMA DE MUESTRAS'!D13=\"\",\"\",'CALENDARIO TOMA DE MUESTRAS'!D13)","v":""},null,null,{"$f":"IF(B85=\"\",\"\",LEFT(B85,1))","v":""},{"$f":"IF(E85=\"\",\"\",VALUE(E85))","v":""},null,null,null,null,null,null,null,null,null,null,null,null,null,null,null,null,null,null,null,null,null,null,null,null,null,null,null,2,{"$f":"IF('CRITERIOS CALIFICACION'!D66=\"\",\"\",'CRITERIOS CALIFICACION'!D66)","v":"Adecuada disponibilidad de comederos y pajeras. Limpios y suelo algo húmedo"}]
[{"$f":"A55&B55","v":""},null,null,null,null,null,null,null,null,null,null,null,null,null,null,null,null,null,null,null,null,null,null,null,null,null,null,null,null,null,null,null,null,1,{"$f":"IF('CRITERIOS CALIFICACION'!D67=\"\",\"\",'CRITERIOS CALIFICACION'!D67)","v":"Adecuada disponibilidad de comederos y pajeras. Sucios."}]
["",null,null,null,null,null,null,null,null,null,null,null,null,null,null,null,null,null,null,null,null,null,null,null,null,null,null,null,null,null,null,null,null,0,{"$f":"IF('CRITERIOS CALIFICACION'!D68=\"\",\"\",'CRITERIOS CALIFICACION'!D68)","v":"Insuficiente  disponibilidad de comederos y pajeras."}]
["",null,null,null,null,null,null,null,null,null,null,null,null,null,null,null,null,null,null,null,null,null,null,null,null,null,null,null,null,null,null,null,"Bebederos",4,{"$f":"IF('CRITERIOS CALIFICACION'!D69=\"\",\"\",'CRITERIOS CALIFICACION'!D69)","v":"Número y/o superficie de bebederos sobrado respecto  a la densidad de los animales. Bebederos limpios y bien repartidos en las cuadras. Suelo seco"}]
["",null,null,null,null,null,null,null,null,null,null,null,null,null,null,null,null,null,null,null,null,null,null,null,null,null,null,null,null,null,null,null,null,3,{"$f":"IF('CRITERIOS CALIFICACION'!D70=\"\",\"\",'CRITERIOS CALIFICACION'!D70)","v":"Número y/o superficie de bebederos adecuado respecto  a la densidad de los animales. Bebederos limpios y bien repartidos en las cuadras. Suelo seco"}]
["",null,null,null,null,null,null,null,null,null,null,null,null,null,null,null,null,null,null,null,null,null,null,null,null,null,null,null,null,null,null,null,null,2,{"$f":"IF('CRITERIOS CALIFICACION'!D71=\"\",\"\",'CRITERIOS CALIFICACION'!D71)","v":"Número y/o superficie de bebederos adecuado respecto  a la densidad de los animales. Bebederos limpios en un solo emplazamiento. Suelo seco"}]
["",null,null,null,null,null,null,null,null,null,null,null,null,null,null,null,null,null,null,null,null,null,null,null,null,null,null,null,null,null,null,null,null,1,{"$f":"IF('CRITERIOS CALIFICACION'!D72=\"\",\"\",'CRITERIOS CALIFICACION'!D72)","v":"Número y/o superficie de bebederos adecuado respecto  a la densidad de los animales. Bebederos sucios o suelo húmedo"}]
["",null,null,null,null,null,null,null,null,null,null,null,null,null,null,null,null,null,null,null,null,null,null,null,null,null,null,null,null,null,null,null,null,0,{"$f":"IF('CRITERIOS CALIFICACION'!D73=\"\",\"\",'CRITERIOS CALIFICACION'!D73)","v":"Número y/o superficie de bebederos inadecuado respecto  a la densidad de los animales. "}]
["",null,null,null,null,null,null,null,null,null,null,null,null,null,null,null,null,null,null,null,null,null,null,null,null,null,null,null,null,null,null,null,"Carga Ambiental",4,{"$f":"IF('CRITERIOS CALIFICACION'!D74=\"\",\"\",'CRITERIOS CALIFICACION'!D74)","v":"Detección de carga de amoniaco cuantificada y sin olor ni carga ambiental"}]
["",null,null,null,null,null,null,null,null,null,null,null,null,null,null,null,null,null,null,null,null,null,null,null,null,null,null,null,null,null,null,null,null,3,{"$f":"IF('CRITERIOS CALIFICACION'!D75=\"\",\"\",'CRITERIOS CALIFICACION'!D75)","v":"No olor ni carga ambiental."}]
["",null,null,null,null,null,null,null,null,null,null,null,null,null,null,null,null,null,null,null,null,null,null,null,null,null,null,null,null,null,null,null,null,2,{"$f":"IF('CRITERIOS CALIFICACION'!D76=\"\",\"\",'CRITERIOS CALIFICACION'!D76)","v":"Olor ligeramente perceptible pero que no queda impregnado en la ropa"}]
[null,null,null,null,null,null,null,null,null,null,null,null,null,null,null,null,null,null,null,null,null,null,null,null,null,null,null,null,null,null,null,null,null,1,{"$f":"IF('CRITERIOS CALIFICACION'!D77=\"\",\"\",'CRITERIOS CALIFICACION'!D77)","v":"Olor claramente perceptible. Quede impregnado en la ropa."}]
[null,null,null,null,null,null,null,null,null,null,null,null,null,null,null,null,null,null,null,null,null,null,null,null,null,null,null,null,null,null,null,null,null,0,{"$f":"IF('CRITERIOS CALIFICACION'!D78=\"\",\"\",'CRITERIOS CALIFICACION'!D78)","v":"Olor y carga ambiental claramente nocivo."}]
[null,null,null,null,null,null,null,null,null,null,null,null,null,null,null,null,null,null,null,null,null,null,null,null,null,null,null,null,null,null,null,null,"Aislamiento cubierta",4,{"$f":"IF('CRITERIOS CALIFICACION'!D79=\"\",\"\",'CRITERIOS CALIFICACION'!D79)","v":"Cubierta bien aislada. Sin condensación en la nave. Diferencias de temperatura y humedad con el exterior adecuadas según estación del año. Instrumentos de control"}]
[{"$f":"IF('DEFINICION INDICADORES'!B56=\"\",\"\",'DEFINICION INDICADORES'!B56)","v":"TRONCO \"REDUCE\""},{"$f":"IF('DEFINICION INDICADORES'!C56=\"\",\"\",'DEFINICION INDICADORES'!C56)","v":1},{"$f":"IF('DEFINICION INDICADORES'!D56=\"\",\"\",'DEFINICION INDICADORES'!D56)","v":"R"},{"$f":"IF('DEFINICION INDICADORES'!E56=\"\",\"\",'DEFINICION INDICADORES'!E56)","v":"Disminucion del uso de piensos medicamentosos"},{"$f":"IF('DEFINICION INDICADORES'!F56=\"\",\"\",'DEFINICION INDICADORES'!F56)","v":1},{"$f":"IF('DEFINICION INDICADORES'!G56=\"\",\"\",'DEFINICION INDICADORES'!G56)","v":3},{"$f":"IF('HOJA DIAGNOSTICO REDUCE'!$E$13=\"\",\"\",'HOJA DIAGNOSTICO REDUCE'!E13)","v":""},{"$f":"IF(G99=\"\",\"\",((G99-F99)/F99)+1)","v":""},null,null,null,null,null,null,null,null,null,null,null,null,null,null,null,null,null,null,null,null,null,null,null,null,null,3,{"$f":"IF('CRITERIOS CALIFICACION'!D80=\"\",\"\",'CRITERIOS CALIFICACION'!D80)","v":"Cubierta bien aislada. Sin condensación en la nave. Diferencias de temperatura y humedad con el exterior adecuadas según estación del año."}]
[{"$f":"IF('DEFINICION INDICADORES'!B57=\"\",\"\",'DEFINICION INDICADORES'!B57)","v":""},{"$f":"IF('DEFINICION INDICADORES'!C57=\"\",\"\",'DEFINICION INDICADORES'!C57)","v":2},{"$f":"IF('DEFINICION INDICADORES'!D57=\"\",\"\",'DEFINICION INDICADORES'!D57)","v":"R"},{"$f":"IF('DEFINICION INDICADORES'!E57=\"\",\"\",'DEFINICION INDICADORES'!E57)","v":"Uso de antibióticos CATEGORIA D"},{"$f":"IF('DEFINICION INDICADORES'!F57=\"\",\"\",'DEFINICION INDICADORES'!F57)","v":1},{"$f":"IF('DEFINICION INDICADORES'!G57=\"\",\"\",'DEFINICION INDICADORES'!G57)","v":3},{"$f":"IF('HOJA DIAGNOSTICO REDUCE'!$E$13=\"\",\"\",'HOJA DIAGNOSTICO REDUCE'!E14)","v":""},{"$f":"IF(G100=\"\",\"\",((G100-F100)/F100)+1)","v":""},null,null,null,null,null,null,null,null,null,null,null,null,null,null,null,null,null,null,null,null,null,null,null,null,null,2,{"$f":"IF('CRITERIOS CALIFICACION'!D81=\"\",\"\",'CRITERIOS CALIFICACION'!D81)","v":"Cubierta aislada pero con algún defecto. En general buenas coindiciones ambientales pero se nota el calor o frío extremo."}]
[{"$f":"IF('DEFINICION INDICADORES'!B58=\"\",\"\",'DEFINICION INDICADORES'!B58)","v":""},{"$f":"IF('DEFINICION INDICADORES'!C58=\"\",\"\",'DEFINICION INDICADORES'!C58)","v":3},{"$f":"IF('DEFINICION INDICADORES'!D58=\"\",\"\",'DEFINICION INDICADORES'!D58)","v":"R"},{"$f":"IF('DEFINICION INDICADORES'!E58=\"\",\"\",'DEFINICION INDICADORES'!E58)","v":"Plan-Informe sanitario. Auditorías anuales"},{"$f":"IF('DEFINICION INDICADORES'!F58=\"\",\"\",'DEFINICION INDICADORES'!F58)","v":1},{"$f":"IF('DEFINICION INDICADORES'!G58=\"\",\"\",'DEFINICION INDICADORES'!G58)","v":3},{"$f":"IF('HOJA DIAGNOSTICO REDUCE'!$E$13=\"\",\"\",'HOJA DIAGNOSTICO REDUCE'!E15)","v":""},"",null,null,null,null,null,null,null,null,null,null,null,null,null,null,null,null,null,null,null,null,null,null,null,null,null,1,{"$f":"IF('CRITERIOS CALIFICACION'!D82=\"\",\"\",'CRITERIOS CALIFICACION'!D82)","v":"Cubierta sin aislar pero no hay condensación y mantiene condiciones ambientales adecuadas"}]
[{"$f":"IF('DEFINICION INDICADORES'!B59=\"\",\"\",'DEFINICION INDICADORES'!B59)","v":""},{"$f":"IF('DEFINICION INDICADORES'!C59=\"\",\"\",'DEFINICION INDICADORES'!C59)","v":4},{"$f":"IF('DEFINICION INDICADORES'!D59=\"\",\"\",'DEFINICION INDICADORES'!D59)","v":"R"},{"$f":"IF('DEFINICION INDICADORES'!E59=\"\",\"\",'DEFINICION INDICADORES'!E59)","v":"%  de animales con tratamiento metafiláctico"},{"$f":"IF('DEFINICION INDICADORES'!F59=\"\",\"\",'DEFINICION INDICADORES'!F59)","v":1},{"$f":"IF('DEFINICION INDICADORES'!G59=\"\",\"\",'DEFINICION INDICADORES'!G59)","v":3},{"$f":"IF('HOJA DIAGNOSTICO REDUCE'!$E$13=\"\",\"\",'HOJA DIAGNOSTICO REDUCE'!E16)","v":""},"",null,null,null,null,null,null,null,null,null,null,null,null,null,null,null,null,null,null,null,null,null,null,null,null,null,0,{"$f":"IF('CRITERIOS CALIFICACION'!D83=\"\",\"\",'CRITERIOS CALIFICACION'!D83)","v":"Cubierta sin aislar. Condensación y/o mucho calor en verano"}]
[{"$f":"IF('DEFINICION INDICADORES'!B60=\"\",\"\",'DEFINICION INDICADORES'!B60)","v":""},{"$f":"IF('DEFINICION INDICADORES'!C60=\"\",\"\",'DEFINICION INDICADORES'!C60)","v":5},{"$f":"IF('DEFINICION INDICADORES'!D60=\"\",\"\",'DEFINICION INDICADORES'!D60)","v":"R"},{"$f":"IF('DEFINICION INDICADORES'!E60=\"\",\"\",'DEFINICION INDICADORES'!E60)","v":"Monitorización de explotación"},{"$f":"IF('DEFINICION INDICADORES'!F60=\"\",\"\",'DEFINICION INDICADORES'!F60)","v":1},{"$f":"IF('DEFINICION INDICADORES'!G60=\"\",\"\",'DEFINICION INDICADORES'!G60)","v":3},{"$f":"IF('HOJA DIAGNOSTICO REDUCE'!$E$13=\"\",\"\",'HOJA DIAGNOSTICO REDUCE'!E17)","v":""},"",null,null,null,null,null,null,null,null,null,null,null,null,null,null,null,null,null,null,null,null,null,null,null,null,"Dimensionado y Ventilación",4,{"$f":"IF('CRITERIOS CALIFICACION'!D84=\"\",\"\",'CRITERIOS CALIFICACION'!D84)","v":"Volumen estático, entradas ny salidas de aire y velocidad del aire adecuadas. Medición sistemática del ambiente d ela nave."}]
[{"$f":"IF('DEFINICION INDICADORES'!B61=\"\",\"\",'DEFINICION INDICADORES'!B61)","v":""},{"$f":"IF('DEFINICION INDICADORES'!C61=\"\",\"\",'DEFINICION INDICADORES'!C61)","v":""},{"$f":"IF('DEFINICION INDICADORES'!D61=\"\",\"\",'DEFINICION INDICADORES'!D61)","v":""},"Evaluación GOBAL \"REDUCE\"",{"$f":"IF('DEFINICION INDICADORES'!F61=\"\",\"\",'DEFINICION INDICADORES'!F61)","v":20},{"$f":"IF('DEFINICION INDICADORES'!G61=\"\",\"\",'DEFINICION INDICADORES'!G61)","v":15},{"$f":"IF(G99=\"\",\"\",SUM(G99:G103))","v":""},{"$f":"IF(G104=\"\",\"\",((G104-F104)/F104)+1)","v":""},null,null,null,null,null,null,null,null,null,null,null,null,null,null,null,null,null,null,null,null,null,null,null,null,null,3,{"$f":"IF('CRITERIOS CALIFICACION'!D85=\"\",\"\",'CRITERIOS CALIFICACION'!D85)","v":"Volumen estático, entradas y salidas de aire y velocidad del aire adecuadas. "}]
[{"$f":"IF('DEFINICION INDICADORES'!B62=\"\",\"\",'DEFINICION INDICADORES'!B62)","v":""},{"$f":"IF('DEFINICION INDICADORES'!C62=\"\",\"\",'DEFINICION INDICADORES'!C62)","v":""},{"$f":"IF('DEFINICION INDICADORES'!D62=\"\",\"\",'DEFINICION INDICADORES'!D62)","v":""},{"$f":"IF('DEFINICION INDICADORES'!E62=\"\",\"\",'DEFINICION INDICADORES'!E62)","v":""},null,null,null,null,null,null,null,null,null,null,null,null,null,null,null,null,null,null,null,null,null,null,null,null,null,null,null,null,null,2,{"$f":"IF('CRITERIOS CALIFICACION'!D86=\"\",\"\",'CRITERIOS CALIFICACION'!D86)","v":"Volumen estático, entradas y salidas de aire adecuadas. Corrientes en invierno o poco aire en verano"}]
[null,null,null,null,null,null,{"$f":"IF('DEFINICION INDICADORES'!H61=\"\",\"\",'DEFINICION INDICADORES'!H61)","v":0.75},{"$f":"IF(G104=\"\",\"\",G104/E104)","v":""},null,null,null,null,null,null,null,null,null,null,null,null,null,null,null,null,null,null,null,null,null,null,null,null,null,1,{"$f":"IF('CRITERIOS CALIFICACION'!D87=\"\",\"\",'CRITERIOS CALIFICACION'!D87)","v":"Volumen estático o entradas y salidas adecuadas."}]
[null,null,null,null,null,null,null,null,null,null,null,null,null,null,null,null,null,null,null,null,null,null,null,null,null,null,null,null,null,null,null,null,null,0,{"$f":"IF('CRITERIOS CALIFICACION'!D88=\"\",\"\",'CRITERIOS CALIFICACION'!D88)","v":"No cumple ni volumen estático ni entradas y salidas de aire."}]
[null,null,null,null,null,null,null,null,null,null,null,null,null,null,null,null,null,null,null,null,null,null,null,null,null,null,null,null,null,null,null,null,"Densidad animal",4,{"$f":"IF('CRITERIOS CALIFICACION'!D96=\"\",\"\",'CRITERIOS CALIFICACION'!D96)","v":"Mas de 2 m2 por oveja"}]
[null,null,null,null,null,null,null,null,null,null,null,null,null,null,null,null,null,null,null,null,null,null,null,null,null,null,null,null,null,null,null,null,null,3,{"$f":"IF('CRITERIOS CALIFICACION'!D97=\"\",\"\",'CRITERIOS CALIFICACION'!D97)","v":"Entre 1.5 y 2 m2 por oveja"}]
[null,null,null,null,null,null,null,null,null,null,null,null,null,null,null,null,null,null,null,null,null,null,null,null,null,null,null,null,null,null,null,null,null,2,{"$f":"IF('CRITERIOS CALIFICACION'!D98=\"\",\"\",'CRITERIOS CALIFICACION'!D98)","v":"Entre 1 y 1.5 m2 por oveja"}]
[null,null,null,null,null,null,null,null,null,null,null,null,null,null,null,null,null,null,null,null,null,null,null,null,null,null,null,null,null,null,null,null,null,1,{"$f":"IF('CRITERIOS CALIFICACION'!D99=\"\",\"\",'CRITERIOS CALIFICACION'!D99)","v":"Menos de 1 m2 por oveja presente"}]
[null,null,null,null,null,null,null,null,null,null,null,null,null,null,null,null,null,null,null,null,null,null,null,null,null,null,null,null,null,null,null,null,null,0,{"$f":"IF('CRITERIOS CALIFICACION'!D100=\"\",\"\",'CRITERIOS CALIFICACION'!D100)","v":"Animales hacinados"}]
[null,null,null,null,null,null,null,null,null,null,null,null,null,null,null,null,null,null,null,null,null,null,null,null,null,null,null,null,null,null,null,null,"Calidad de cama",4,{"$f":"IF('CRITERIOS CALIFICACION'!D101=\"\",\"\",'CRITERIOS CALIFICACION'!D101)","v":"Cama limpia, seca y abundante y de renovado diario."}]
[null,null,null,null,null,null,null,null,null,null,null,null,null,null,null,null,null,null,null,null,null,null,null,null,null,null,null,null,null,null,null,null,null,3,{"$f":"IF('CRITERIOS CALIFICACION'!D102=\"\",\"\",'CRITERIOS CALIFICACION'!D102)","v":"Cama limpia, seca y abundante y de renovado no diario"}]
[null,null,null,null,null,null,null,null,null,null,null,null,null,null,null,null,null,null,null,null,null,null,null,null,null,null,null,null,null,null,null,null,null,2,{"$f":"IF('CRITERIOS CALIFICACION'!D103=\"\",\"\",'CRITERIOS CALIFICACION'!D103)","v":"Cumple al menos dos caracteristicas"}]
[null,null,null,null,null,null,null,null,null,null,null,null,null,null,null,null,null,null,null,null,null,null,null,null,null,null,null,null,null,null,null,null,null,1,{"$f":"IF('CRITERIOS CALIFICACION'!D104=\"\",\"\",'CRITERIOS CALIFICACION'!D104)","v":"Cumple solo una caracteristica"}]
[null,null,null,null,null,null,null,null,null,null,null,null,null,null,null,null,null,null,null,null,null,null,null,null,null,null,null,null,null,null,null,null,null,0,{"$f":"IF('CRITERIOS CALIFICACION'!D105=\"\",\"\",'CRITERIOS CALIFICACION'!D105)","v":"No cumple ninguna de las tres características"}]
[null,null,null,null,null,null,null,null,null,null,null,null,null,null,null,null,null,null,null,null,null,null,null,null,null,null,null,null,null,null,null,null,"Alteración conducta. Estrés",4,{"$f":"IF('CRITERIOS CALIFICACION'!D106=\"\",\"\",'CRITERIOS CALIFICACION'!D106)","v":"Más del 90% de animales tumbados y no se ven esterotipias"}]
[null,null,null,null,null,null,null,null,null,null,null,null,null,null,null,null,null,null,null,null,null,null,null,null,null,null,null,null,null,null,null,null,null,3,{"$f":"IF('CRITERIOS CALIFICACION'!D107=\"\",\"\",'CRITERIOS CALIFICACION'!D107)","v":"Entre 80 y 90% de animales tumbados. No esterotipias"}]
[null,null,null,null,null,null,null,null,null,null,null,null,null,null,null,null,null,null,null,null,null,null,null,null,null,null,null,null,null,null,null,null,null,2,{"$f":"IF('CRITERIOS CALIFICACION'!D108=\"\",\"\",'CRITERIOS CALIFICACION'!D108)","v":"Entre 60 y 80% de animales tumbados o se ven esteritipias"}]
[null,null,null,null,null,null,null,null,null,null,null,null,null,null,null,null,null,null,null,null,null,null,null,null,null,null,null,null,null,null,null,null,null,1,{"$f":"IF('CRITERIOS CALIFICACION'!D109=\"\",\"\",'CRITERIOS CALIFICACION'!D109)","v":"Menos del 60% de animales tumbados o se ven esterotipias"}]
[null,null,null,null,null,null,null,null,null,null,null,null,null,null,null,null,null,null,null,null,null,null,null,null,null,null,null,null,null,null,null,null,null,0,{"$f":"IF('CRITERIOS CALIFICACION'!D110=\"\",\"\",'CRITERIOS CALIFICACION'!D110)","v":"Esterotipias claras y animales estresados"}]
[null,null,null,null,null,null,null,null,null,null,null,null,null,null,null,null,null,null,null,null,null,null,null,null,null,null,null,null,null,null,null,null,"Condiciones Carga y Descarga",4,{"$f":"IF('CRITERIOS CALIFICACION'!D111=\"\",\"\",'CRITERIOS CALIFICACION'!D111)","v":"Nula incidencia de cojeras. Lana perfecta"}]
[null,null,null,null,null,null,null,null,null,null,null,null,null,null,null,null,null,null,null,null,null,null,null,null,null,null,null,null,null,null,null,null,null,3,{"$f":"IF('CRITERIOS CALIFICACION'!D112=\"\",\"\",'CRITERIOS CALIFICACION'!D112)","v":"Escasa incidencia de cojeras. Lana perfecta"}]
[null,null,null,null,null,null,null,null,null,null,null,null,null,null,null,null,null,null,null,null,null,null,null,null,null,null,null,null,null,null,null,null,null,2,{"$f":"IF('CRITERIOS CALIFICACION'!D113=\"\",\"\",'CRITERIOS CALIFICACION'!D113)","v":"Baja incidencia de cojeras con diagnostico claro y medidas de prevencion. Algunas ovejas peladas"}]
[null,null,null,null,null,null,null,null,null,null,null,null,null,null,null,null,null,null,null,null,null,null,null,null,null,null,null,null,null,null,null,null,null,1,{"$f":"IF('CRITERIOS CALIFICACION'!D114=\"\",\"\",'CRITERIOS CALIFICACION'!D114)","v":"Evidente incidencia de cojeras sin diagnostico confirmado y/o ovejas con mala calidad de lana"}]
[null,null,null,null,null,null,null,null,null,null,null,null,null,null,null,null,null,null,null,null,null,null,null,null,null,null,null,null,null,null,null,null,null,0,{"$f":"IF('CRITERIOS CALIFICACION'!D115=\"\",\"\",'CRITERIOS CALIFICACION'!D115)","v":"Alta incidencia de animales con mala apariencia y/o cojeras"}]
[null,null,null,null,null,null,null,null,null,null,null,null,null,null,null,null,null,null,null,null,null,null,null,null,null,null,null,null,null,null,null,null,"Estado externo animales",4,{"$f":"IF('CRITERIOS CALIFICACION'!D116=\"\",\"\",'CRITERIOS CALIFICACION'!D116)","v":"Capa limpia y brillante, estado corporal bueno y adecuado a animales de cebo"}]
[null,null,null,null,null,null,null,null,null,null,null,null,null,null,null,null,null,null,null,null,null,null,null,null,null,null,null,null,null,null,null,null,null,3,{"$f":"IF('CRITERIOS CALIFICACION'!D117=\"\",\"\",'CRITERIOS CALIFICACION'!D117)","v":"Capa limpia y suciedad solo en pezuñas.. Buen estado corporal"}]
[null,null,null,null,null,null,null,null,null,null,null,null,null,null,null,null,null,null,null,null,null,null,null,null,null,null,null,null,null,null,null,null,null,2,{"$f":"IF('CRITERIOS CALIFICACION'!D118=\"\",\"\",'CRITERIOS CALIFICACION'!D118)","v":"Suciedad hasta corvejones. Capa limpia y buen estado corporal."}]
[null,null,null,null,null,null,null,null,null,null,null,null,null,null,null,null,null,null,null,null,null,null,null,null,null,null,null,null,null,null,null,null,null,1,{"$f":"IF('CRITERIOS CALIFICACION'!D119=\"\",\"\",'CRITERIOS CALIFICACION'!D119)","v":"Capa sucia y buen estado corporal."}]
[null,null,null,null,null,null,null,null,null,null,null,null,null,null,null,null,null,null,null,null,null,null,null,null,null,null,null,null,null,null,null,null,null,0,{"$f":"IF('CRITERIOS CALIFICACION'!D120=\"\",\"\",'CRITERIOS CALIFICACION'!D120)","v":"Mal estado corporal"}]
[null,null,null,null,null,null,null,null,null,null,null,null,null,null,null,null,null,null,null,null,null,null,null,null,null,null,null,null,null,null,null,null,"Libro de explotacion",4,{"$f":"IF('CRITERIOS CALIFICACION'!D128=\"\",\"\",'CRITERIOS CALIFICACION'!D128)","v":"Libro de esxplotación en el que figure el censo actualizado y movimientos de los animales. Entradas y salidas y tratamientos veterinarios. Entradas de alimentos"}]
[null,null,null,null,null,null,null,null,null,null,null,null,null,null,null,null,null,null,null,null,null,null,null,null,null,null,null,null,null,null,null,null,null,3,{"$f":"IF('CRITERIOS CALIFICACION'!D129=\"\",\"\",'CRITERIOS CALIFICACION'!D129)","v":"Libro de esxplotación en el que figure el censo actualizado y movimientos de los animales. Entradas y salidas y tratamientos veterinarios."}]
[null,null,null,null,null,null,null,null,null,null,null,null,null,null,null,null,null,null,null,null,null,null,null,null,null,null,null,null,null,null,null,null,null,2,{"$f":"IF('CRITERIOS CALIFICACION'!D130=\"\",\"\",'CRITERIOS CALIFICACION'!D130)","v":"Libro de esxplotación en el que figure el censo actualizado. Entradas y salidas y tratamientos veterinarios."}]
[null,null,null,null,null,null,null,null,null,null,null,null,null,null,null,null,null,null,null,null,null,null,null,null,null,null,null,null,null,null,null,null,null,1,{"$f":"IF('CRITERIOS CALIFICACION'!D131=\"\",\"\",'CRITERIOS CALIFICACION'!D131)","v":"Libro de esxplotación en el que figure el censo actualizado.Tratamientos veterinarios."}]
[null,null,null,null,null,null,null,null,null,null,null,null,null,null,null,null,null,null,null,null,null,null,null,null,null,null,null,null,null,null,null,null,null,0,{"$f":"IF('CRITERIOS CALIFICACION'!D132=\"\",\"\",'CRITERIOS CALIFICACION'!D132)","v":"Libro de explotación inexistente o sin rellenar"}]
[null,null,null,null,null,null,null,null,null,null,null,null,null,null,null,null,null,null,null,null,null,null,null,null,null,null,null,null,null,null,null,null,"Formación del Ganadero",4,{"$f":"IF('CRITERIOS CALIFICACION'!D133=\"\",\"\",'CRITERIOS CALIFICACION'!D133)","v":"Alta cualificación del ganadero. Conocimientos aplicados a la explotación."}]
[null,null,null,null,null,null,null,null,null,null,null,null,null,null,null,null,null,null,null,null,null,null,null,null,null,null,null,null,null,null,null,null,null,3,{"$f":"IF('CRITERIOS CALIFICACION'!D134=\"\",\"\",'CRITERIOS CALIFICACION'!D134)","v":"Titulación obligatoria y algunas titulaciones complementarias"}]
[null,null,null,null,null,null,null,null,null,null,null,null,null,null,null,null,null,null,null,null,null,null,null,null,null,null,null,null,null,null,null,null,null,2,{"$f":"IF('CRITERIOS CALIFICACION'!D135=\"\",\"\",'CRITERIOS CALIFICACION'!D135)","v":"Titulación obligatoria solamente"}]
[null,null,null,null,null,null,null,null,null,null,null,null,null,null,null,null,null,null,null,null,null,null,null,null,null,null,null,null,null,null,null,null,null,1,{"$f":"IF('CRITERIOS CALIFICACION'!D136=\"\",\"\",'CRITERIOS CALIFICACION'!D136)","v":"Sin titulación pero con larga experiencia"}]
[null,null,null,null,null,null,null,null,null,null,null,null,null,null,null,null,null,null,null,null,null,null,null,null,null,null,null,null,null,null,null,null,null,0,{"$f":"IF('CRITERIOS CALIFICACION'!D137=\"\",\"\",'CRITERIOS CALIFICACION'!D137)","v":"Calificaión nula o inexistente"}]
[null,null,null,null,null,null,null,null,null,null,null,null,null,null,null,null,null,null,null,null,null,null,null,null,null,null,null,null,null,null,null,null,"Gestión Medioambiental",4,{"$f":"IF('CRITERIOS CALIFICACION'!D138=\"\",\"\",'CRITERIOS CALIFICACION'!D138)","v":"Gestión de residuos documentada. Vacíos sanitarios de al menos dos veces al año con documentación cuplimentada.Tratamientos DDD realizados y documentados"}]
[null,null,null,null,null,null,null,null,null,null,null,null,null,null,null,null,null,null,null,null,null,null,null,null,null,null,null,null,null,null,null,null,null,3,{"$f":"IF('CRITERIOS CALIFICACION'!D139=\"\",\"\",'CRITERIOS CALIFICACION'!D139)","v":"Documentación ajustada a la normativa y actualizada."}]
[null,null,null,null,null,null,null,null,null,null,null,null,null,null,null,null,null,null,null,null,null,null,null,null,null,null,null,null,null,null,null,null,null,2,{"$f":"IF('CRITERIOS CALIFICACION'!D140=\"\",\"\",'CRITERIOS CALIFICACION'!D140)","v":"Documentación existente pero no actualizada. Gestión medioambiental programada"}]
[null,null,null,null,null,null,null,null,null,null,null,null,null,null,null,null,null,null,null,null,null,null,null,null,null,null,null,null,null,null,null,null,null,1,{"$f":"IF('CRITERIOS CALIFICACION'!D141=\"\",\"\",'CRITERIOS CALIFICACION'!D141)","v":"No hay documentación pero realiza una gestión medioambiental opcasional."}]
[null,null,null,null,null,null,null,null,null,null,null,null,null,null,null,null,null,null,null,null,null,null,null,null,null,null,null,null,null,null,null,null,null,0,{"$f":"IF('CRITERIOS CALIFICACION'!D142=\"\",\"\",'CRITERIOS CALIFICACION'!D142)","v":"No existen registros ni hay vacíos sanitarios programados"}]
[null,null,null,null,null,null,null,null,null,null,null,null,null,null,null,null,null,null,null,null,null,null,null,null,null,null,null,null,null,null,null,null,"Bioseguridad",4,{"$f":"IF('CRITERIOS CALIFICACION'!D143=\"\",\"\",'CRITERIOS CALIFICACION'!D143)","v":"Medidas de bioseguridad excepcionales"}]
[null,null,null,null,null,null,null,null,null,null,null,null,null,null,null,null,null,null,null,null,null,null,null,null,null,null,null,null,null,null,null,null,null,3,{"$f":"IF('CRITERIOS CALIFICACION'!D144=\"\",\"\",'CRITERIOS CALIFICACION'!D144)","v":"Medidas de bioseguridad   adecuadas en alimentación, control de animales externos, cadaveres y limpieza"}]
[null,null,null,null,null,null,null,null,null,null,null,null,null,null,null,null,null,null,null,null,null,null,null,null,null,null,null,null,null,null,null,null,null,2,{"$f":"IF('CRITERIOS CALIFICACION'!D145=\"\",\"\",'CRITERIOS CALIFICACION'!D145)","v":"Medidas de bioseguridad   adecuadas en alimentación, control de animales externos, cadaveres."}]
[null,null,null,null,null,null,null,null,null,null,null,null,null,null,null,null,null,null,null,null,null,null,null,null,null,null,null,null,null,null,null,null,null,1,{"$f":"IF('CRITERIOS CALIFICACION'!D146=\"\",\"\",'CRITERIOS CALIFICACION'!D146)","v":"Medidas de bioseguridad   adecuadas en alimentación , cadaveres."}]
[null,null,null,null,null,null,null,null,null,null,null,null,null,null,null,null,null,null,null,null,null,null,null,null,null,null,null,null,null,null,null,null,null,0,{"$f":"IF('CRITERIOS CALIFICACION'!D147=\"\",\"\",'CRITERIOS CALIFICACION'!D147)","v":"No hay medidad de bioseguridad"}]
[null,null,null,null,null,null,null,null,null,null,null,null,null,null,null,null,null,null,null,null,null,null,null,null,null,null,null,null,null,null,null,null,"Carga de Trabajo",4,{"$f":"IF('CRITERIOS CALIFICACION'!D148=\"\",\"\",'CRITERIOS CALIFICACION'!D148)","v":"Mano de obra suficiente. Horarios laborales flexibles.Excelente cualificación y  motivación"}]
[null,null,null,null,null,null,null,null,null,null,null,null,null,null,null,null,null,null,null,null,null,null,null,null,null,null,null,null,null,null,null,null,null,3,{"$f":"IF('CRITERIOS CALIFICACION'!D149=\"\",\"\",'CRITERIOS CALIFICACION'!D149)","v":"Mano de obra suficiente. Horarios laborales flexibles.  Motivación"}]
[null,null,null,null,null,null,null,null,null,null,null,null,null,null,null,null,null,null,null,null,null,null,null,null,null,null,null,null,null,null,null,null,null,2,{"$f":"IF('CRITERIOS CALIFICACION'!D150=\"\",\"\",'CRITERIOS CALIFICACION'!D150)","v":"Mano de obra ajustada. Horarios laborales flexibles.  Motivación"}]
[null,null,null,null,null,null,null,null,null,null,null,null,null,null,null,null,null,null,null,null,null,null,null,null,null,null,null,null,null,null,null,null,null,1,{"$f":"IF('CRITERIOS CALIFICACION'!D151=\"\",\"\",'CRITERIOS CALIFICACION'!D151)","v":"Mano de obra ajustada. Horarios laborales poco flexibles."}]

{"sheet":"HOJA DIAGNOSTICO","index":3,"n_rows":38,"n_cols":8,"rows_kept":38,"cut":false,"hidden":false,"merged":[[28,0,32,0],[33,0,37,0],[13,0,17,0],[18,0,22,0],[23,0,27,0]]}
[]
[]
[]
["HOJA DE DIAGNÓSTICO",null,null,null,null,{"$f":"A4","v":"HOJA DE DIAGNÓSTICO"}]
[]
[]
["GANADERO",null,"ejemplo",null,null,"GANADERO",null,{"$f":"IF(C7=\"\",\"\",C7)","v":"ejemplo"}]
["FECHA DIAGNOSTICO",null,"2021-09-01",null,null,"FECHA DIAGNOSTICO",null,{"$f":"IF(C8=\"\",\"\",C8)","v":"2021-09-01"}]
["TIPO EXPLOTACION",null,{"$f":"IF('DEFINICION INDICADORES'!E15=\"\",\"\",'DEFINICION INDICADORES'!E15)","v":"CEBO CORDEROS"},null,null,"TIPO EXPLOTACION",null,{"$f":"IF(C9=\"\",\"\",C9)","v":"CEBO CORDEROS"}]
[]
[]
[]
["BASES",null,"INDICADORES","CALIFICACIÓN (0-4)",null,"COMENTARIOS"]
[{"$f":"IF('DEFINICION INDICADORES'!B9=\"\",\"\",'DEFINICION INDICADORES'!B9)","v":"ALIMENTACION"},1,{"$f":"IF('DEFINICION INDICADORES'!E18=\"\",\"\",'DEFINICION INDICADORES'!E18)","v":"Programa adecuado y adaptado"},4]
[null,2,{"$f":"IF('DEFINICION INDICADORES'!E19=\"\",\"\",'DEFINICION INDICADORES'!E19)","v":"Depósitos y silos pienso"},4]
[null,3,{"$f":"IF('DEFINICION INDICADORES'!E20=\"\",\"\",'DEFINICION INDICADORES'!E20)","v":"Agua de bebida"},4]
[null,4,{"$f":"IF('DEFINICION INDICADORES'!E21=\"\",\"\",'DEFINICION INDICADORES'!E21)","v":"Depósitos y conducción de agua"},3]
[null,5,{"$f":"IF('DEFINICION INDICADORES'!E22=\"\",\"\",'DEFINICION INDICADORES'!E22)","v":"Automatización adecuada"},2]
[{"$f":"IF('DEFINICION INDICADORES'!B10=\"\",\"\",'DEFINICION INDICADORES'!B10)","v":"SANIDAD"},1,{"$f":"IF('DEFINICION INDICADORES'!E23=\"\",\"\",'DEFINICION INDICADORES'!E23)","v":"Ratios mortalidad y desvieje"},4]
[null,2,{"$f":"IF('DEFINICION INDICADORES'!E24=\"\",\"\",'DEFINICION INDICADORES'!E24)","v":"Incidencia de abortos"},1]
[null,3,{"$f":"IF('DEFINICION INDICADORES'!E25=\"\",\"\",'DEFINICION INDICADORES'!E25)","v":"Plan Sanitario"},1]
[null,4,{"$f":"IF('DEFINICION INDICADORES'!E26=\"\",\"\",'DEFINICION INDICADORES'!E26)","v":"Incidencia de enfermedades crónicas"},1]
[null,5,{"$f":"IF('DEFINICION INDICADORES'!E27=\"\",\"\",'DEFINICION INDICADORES'!E27)","v":"Control animales extraños"},2]
[{"$f":"IF('DEFINICION INDICADORES'!B11=\"\",\"\",'DEFINICION INDICADORES'!B11)","v":"INSTALACIONES"},1,{"$f":"IF('DEFINICION INDICADORES'!E28=\"\",\"\",'DEFINICION INDICADORES'!E28)","v":"Comederos y forrajeras"},3]
[null,2,{"$f":"IF('DEFINICION INDICADORES'!E29=\"\",\"\",'DEFINICION INDICADORES'!E29)","v":"Bebederos"},2]
[null,3,{"$f":"IF('DEFINICION INDICADORES'!E30=\"\",\"\",'DEFINICION INDICADORES'!E30)","v":"Carga Ambiental"},2]
[null,4,{"$f":"IF('DEFINICION INDICADORES'!E31=\"\",\"\",'DEFINICION INDICADORES'!E31)","v":"Aislamiento cubierta"},2]
[null,5,{"$f":"IF('DEFINICION INDICADORES'!E32=\"\",\"\",'DEFINICION INDICADORES'!E32)","v":"Dimensionado y Ventilación"},3]
[{"$f":"IF('DEFINICION INDICADORES'!B12=\"\",\"\",'DEFINICION INDICADORES'!B12)","v":"BIENESTAR"},1,{"$f":"IF('DEFINICION INDICADORES'!E33=\"\",\"\",'DEFINICION INDICADORES'!E33)","v":"Densidad animal"},3]
[null,2,{"$f":"IF('DEFINICION INDICADORES'!E34=\"\",\"\",'DEFINICION INDICADORES'!E34)","v":"Calidad de cama"},3]
[null,3,{"$f":"IF('DEFINICION INDICADORES'!E35=\"\",\"\",'DEFINICION INDICADORES'!E35)","v":"Alteración conducta. Estrés"},3]
[null,4,{"$f":"IF('DEFINICION INDICADORES'!E36=\"\",\"\",'DEFINICION INDICADORES'!E36)","v":"Estado de lana y pezuñas"},4]
[null,5,{"$f":"IF('DEFINICION INDICADORES'!E37=\"\",\"\",'DEFINICION INDICADORES'!E37)","v":"Estado externo animales, CC"},3]
[{"$f":"IF('DEFINICION INDICADORES'!B13=\"\",\"\",'DEFINICION INDICADORES'!B13)","v":"FORMACION Y REGISTRO"},1,{"$f":"IF('DEFINICION INDICADORES'!E38=\"\",\"\",'DEFINICION INDICADORES'!E38)","v":"Libro de Explotación actualizado"},3]
[null,2,{"$f":"IF('DEFINICION INDICADORES'!E39=\"\",\"\",'DEFINICION INDICADORES'!E39)","v":"Formación del Ganadero"},3]
[null,3,{"$f":"IF('DEFINICION INDICADORES'!E40=\"\",\"\",'DEFINICION INDICADORES'!E40)","v":"Gestión Medioambiental"},3]
[null,4,{"$f":"IF('DEFINICION INDICADORES'!E41=\"\",\"\",'DEFINICION INDICADORES'!E41)","v":"Bioseguridad"},2]
[null,5,{"$f":"IF('DEFINICION INDICADORES'!E42=\"\",\"\",'DEFINICION INDICADORES'!E42)","v":"Carga de Trabajo"},3]

{"sheet":"INFORME DIAGNOSTICO","index":4,"n_rows":40,"n_cols":28,"rows_kept":40,"cut":false,"hidden":false,"merged":[[8,27,8,29],[9,27,9,29],[10,27,10,29],[12,27,12,29],[33,6,37,6],[18,6,22,6],[18,7,22,7],[18,8,22,8],[18,9,22,9],[13,6,17,6],[23,6,27,6],[33,7,37,7],[33,8,37,8],[33,9,37,9],[8,6,8,8],[9,6,9,8],[13,0,17,0],[18,0,22,0],[23,0,27,0],[28,0,32,0],[33,0,37,0],[13,5,17,5],[18,5,22,5],[23,5,27,5],[28,5,32,5],[33,5,37,5],[10,6,10,8],[23,7,27,7],[23,8,27,8],[23,9,27,9],[28,6,32,6],[28,7,32,7],[28,8,32,8],[28,9,32,9],[13,7,17,7],[13,8,17,8],[13,9,17,9],[8,19,8,21],[9,19,9,21],[10,19,10,21],[8,12,8,14],[9,12,9,14],[10,12,10,14]]}
[]
[]
[]
[]
["INFORME DIAGNÓSTICO",null,null,null,null,{"$f":"A5","v":"INFORME DIAGNÓSTICO"},null,null,null,null,null,{"$f":"F5","v":"INFORME DIAGNÓSTICO"},null,null,null,null,null,null,{"$f":"L5","v":"INFORME DIAGNÓSTICO"},null,null,null,null,null,null,null,{"$f":"S5","v":"INFORME DIAGNÓSTICO"}]
[]
[]
[]
["GANADERO",null,{"$f":"IF('HOJA DIAGNOSTICO'!C7=\"\",\"\",'HOJA DIAGNOSTICO'!C7)","v":"ejemplo"},null,null,{"$f":"A9","v":"GANADERO"},{"$f":"IF(C9=\"\",\"\",C9)","v":"ejemplo"},null,null,null,null,{"$f":"F9","v":"GANADERO"},{"$f":"IF(C9=\"\",\"\",C9)","v":"ejemplo"},null,null,null,null,null,{"$f":"L9","v":"GANADERO"},{"$f":"IF(M9=\"\",\"\",M9)","v":"ejemplo"},null,null,null,null,null,null,{"$f":"S9","v":"GANADERO"},{"$f":"IF(T9=\"\",\"\",T9)","v":"ejemplo"}]
["FECHA DIAGNOSTICO",null,{"$f":"IF('HOJA DIAGNOSTICO'!C8=\"\",\"\",'HOJA DIAGNOSTICO'!C8)","v":"2021-09-01"},null,null,{"$f":"A10","v":"FECHA DIAGNOSTICO"},{"$f":"IF(C10=\"\",\"\",C10)","v":"2021-09-01"},null,null,null,null,{"$f":"F10","v":"FECHA DIAGNOSTICO"},{"$f":"IF(C10=\"\",\"\",C10)","v":"2021-09-01"},null,null,null,null,null,{"$f":"L10","v":"FECHA DIAGNOSTICO"},{"$f":"IF(M10=\"\",\"\",M10)","v":"2021-09-01"},null,null,null,null,null,null,{"$f":"S10","v":"FECHA DIAGNOSTICO"},{"$f":"IF(T10=\"\",\"\",T10)","v":"2021-09-01"}]
["TIPO EXPLOTACION",null,{"$f":"IF('HOJA DIAGNOSTICO'!C9=\"\",\"\",'HOJA DIAGNOSTICO'!C9)","v":"CEBO CORDEROS"},null,null,"TIPO EXPLOTACION",{"$f":"IF(C11=\"\",\"\",C11)","v":"CEBO CORDEROS"},null,null,null,null,"TIPO EXPLOTACION",{"$f":"IF(C11=\"\",\"\",C11)","v":"CEBO CORDEROS"},null,null,null,null,null,"TIPO EXPLOTACION","CEBO CORDEROS",null,null,null,null,null,null,"TIPO EXPLOTACION","CEBO CORDEROS"]
[]
["BASES",null,"INDICADORES",null,null,"BASES","NOTA","% ","% UMBRAL","CALIFICACIÓN",null,"COMENTARIOS",null,null,null,null,null,null,null,null,null,null,null,null,null,null,"TRONCO","INSTALACIONES"]
[{"$f":"IF('DEFINICION INDICADORES'!B9=\"\",\"\",'DEFINICION INDICADORES'!B9)","v":"ALIMENTACION"},1,{"$f":"IF('DEFINICION INDICADORES'!E18=\"\",\"\",'DEFINICION INDICADORES'!E18)","v":"Programa adecuado y adaptado"},{"$f":"IF('ENLACES DATOS'!F14=\"\",\"\",'ENLACES DATOS'!F14)","v":4},null,{"$f":"IF(A14=\"\",\"\",A14)","v":"ALIMENTACION"},{"$f":"IF('ENLACES DATOS'!J14:J18=\"\",\"\",'ENLACES DATOS'!J14:J18)","v":80},{"$f":"IF('ENLACES DATOS'!M14:M18=\"\",\"\",'ENLACES DATOS'!M14:M18)","v":0.86956521739130432},{"$f":"IF('ENLACES DATOS'!N14:N18=\"\",\"\",'ENLACES DATOS'!N14:N18)","v":0.75},{"$f":"IF('ENLACES DATOS'!O14:O18=\"\",\"\",'ENLACES DATOS'!O14:O18)","v":"CONFORME. Intentar mejorar aspectos negativos"}]
[null,2,{"$f":"IF('DEFINICION INDICADORES'!E19=\"\",\"\",'DEFINICION INDICADORES'!E19)","v":"Depósitos y silos pienso"},{"$f":"IF('ENLACES DATOS'!F15=\"\",\"\",'ENLACES DATOS'!F15)","v":4},null,null,{"$f":"IF('ENLACES DATOS'!J15:J19=\"\",\"\",'ENLACES DATOS'!J15:J19)","v":""},{"$f":"IF('ENLACES DATOS'!K15:K19=\"\",\"\",'ENLACES DATOS'!K15:K19)","v":""},{"$f":"IF('ENLACES DATOS'!N15:N19=\"\",\"\",'ENLACES DATOS'!N15:N19)","v":""},{"$f":"IF('ENLACES DATOS'!O15:O19=\"\",\"\",'ENLACES DATOS'!O15:O19)","v":""},null,{"$f":"IF('HOJA DIAGNOSTICO'!F14=\"\",\"\",'HOJA DIAGNOSTICO'!F14)","v":""}]
[null,3,{"$f":"IF('DEFINICION INDICADORES'!E20=\"\",\"\",'DEFINICION INDICADORES'!E20)","v":"Agua de bebida"},{"$f":"IF('ENLACES DATOS'!F16=\"\",\"\",'ENLACES DATOS'!F16)","v":4},null,null,{"$f":"IF('ENLACES DATOS'!J16:J20=\"\",\"\",'ENLACES DATOS'!J16:J20)","v":""},{"$f":"IF('ENLACES DATOS'!K16:K20=\"\",\"\",'ENLACES DATOS'!K16:K20)","v":""},{"$f":"IF('ENLACES DATOS'!N16:N20=\"\",\"\",'ENLACES DATOS'!N16:N20)","v":""},{"$f":"IF('ENLACES DATOS'!O16:O20=\"\",\"\",'ENLACES DATOS'!O16:O20)","v":""},null,{"$f":"IF('HOJA DIAGNOSTICO'!F15=\"\",\"\",'HOJA DIAGNOSTICO'!F15)","v":""}]
[null,4,{"$f":"IF('DEFINICION INDICADORES'!E21=\"\",\"\",'DEFINICION INDICADORES'!E21)","v":"Depósitos y conducción de agua"},{"$f":"IF('ENLACES DATOS'!F17=\"\",\"\",'ENLACES DATOS'!F17)","v":3},null,null,{"$f":"IF('ENLACES DATOS'!J17:J21=\"\",\"\",'ENLACES DATOS'!J17:J21)","v":""},{"$f":"IF('ENLACES DATOS'!K17:K21=\"\",\"\",'ENLACES DATOS'!K17:K21)","v":""},{"$f":"IF('ENLACES DATOS'!N17:N21=\"\",\"\",'ENLACES DATOS'!N17:N21)","v":""},{"$f":"IF('ENLACES DATOS'!O17:O21=\"\",\"\",'ENLACES DATOS'!O17:O21)","v":""},null,{"$f":"IF('HOJA DIAGNOSTICO'!F16=\"\",\"\",'HOJA DIAGNOSTICO'!F16)","v":""}]
[null,5,{"$f":"IF('DEFINICION INDICADORES'!E22=\"\",\"\",'DEFINICION INDICADORES'!E22)","v":"Automatización adecuada"},{"$f":"IF('ENLACES DATOS'!F18=\"\",\"\",'ENLACES DATOS'!F18)","v":2},null,null,{"$f":"IF('ENLACES DATOS'!J18:J22=\"\",\"\",'ENLACES DATOS'!J18:J22)","v":""},{"$f":"IF('ENLACES DATOS'!K18:K22=\"\",\"\",'ENLACES DATOS'!K18:K22)","v":""},{"$f":"IF('ENLACES DATOS'!N18:N22=\"\",\"\",'ENLACES DATOS'!N18:N22)","v":""},{"$f":"IF('ENLACES DATOS'!O18:O22=\"\",\"\",'ENLACES DATOS'!O18:O22)","v":""},null,{"$f":"IF('HOJA DIAGNOSTICO'!F17=\"\",\"\",'HOJA DIAGNOSTICO'!F17)","v":""}]
[{"$f":"IF('DEFINICION INDICADORES'!B10=\"\",\"\",'DEFINICION INDICADORES'!B10)","v":"SANIDAD"},1,{"$f":"IF('DEFINICION INDICADORES'!E23=\"\",\"\",'DEFINICION INDICADORES'!E23)","v":"Ratios mortalidad y desvieje"},{"$f":"IF('ENLACES DATOS'!F19=\"\",\"\",'ENLACES DATOS'!F19)","v":4},null,{"$f":"IF(A19=\"\",\"\",A19)","v":"SANIDAD"},{"$f":"IF('ENLACES DATOS'!J19:J23=\"\",\"\",'ENLACES DATOS'!J19:J23)","v":46},{"$f":"IF('ENLACES DATOS'!M19:M23=\"\",\"\",'ENLACES DATOS'!M19:M23)","v":0.46},{"$f":"IF('ENLACES DATOS'!N19:N23=\"\",\"\",'ENLACES DATOS'!N19:N23)","v":0.8},{"$f":"IF('ENLACES DATOS'!O19:O23=\"\",\"\",'ENLACES DATOS'!O19:O23)","v":"NO CONFORME: Es fundamental corregir los aspectos negativos"},null,{"$f":"IF('HOJA DIAGNOSTICO'!F18=\"\",\"\",'HOJA DIAGNOSTICO'!F18)","v":""}]
[null,2,{"$f":"IF('DEFINICION INDICADORES'!E24=\"\",\"\",'DEFINICION INDICADORES'!E24)","v":"Incidencia de abortos"},{"$f":"IF('ENLACES DATOS'!F20=\"\",\"\",'ENLACES DATOS'!F20)","v":1},null,null,{"$f":"IF('ENLACES DATOS'!J20:J24=\"\",\"\",'ENLACES DATOS'!J20:J24)","v":""},{"$f":"IF('ENLACES DATOS'!K20:K24=\"\",\"\",'ENLACES DATOS'!K20:K24)","v":""},{"$f":"IF('ENLACES DATOS'!N20:N24=\"\",\"\",'ENLACES DATOS'!N20:N24)","v":""},{"$f":"IF('ENLACES DATOS'!O20:O24=\"\",\"\",'ENLACES DATOS'!O20:O24)","v":""},null,{"$f":"IF('HOJA DIAGNOSTICO'!F19=\"\",\"\",'HOJA DIAGNOSTICO'!F19)","v":""}]
[null,3,{"$f":"IF('DEFINICION INDICADORES'!E25=\"\",\"\",'DEFINICION INDICADORES'!E25)","v":"Plan Sanitario"},{"$f":"IF('ENLACES DATOS'!F21=\"\",\"\",'ENLACES DATOS'!F21)","v":1},null,null,{"$f":"IF('ENLACES DATOS'!J21:J25=\"\",\"\",'ENLACES DATOS'!J21:J25)","v":""},{"$f":"IF('ENLACES DATOS'!K21:K25=\"\",\"\",'ENLACES DATOS'!K21:K25)","v":""},{"$f":"IF('ENLACES DATOS'!N21:N25=\"\",\"\",'ENLACES DATOS'!N21:N25)","v":""},{"$f":"IF('ENLACES DATOS'!O21:O25=\"\",\"\",'ENLACES DATOS'!O21:O25)","v":""},null,{"$f":"IF('HOJA DIAGNOSTICO'!F20=\"\",\"\",'HOJA DIAGNOSTICO'!F20)","v":""}]
[null,4,{"$f":"IF('DEFINICION INDICADORES'!E26=\"\",\"\",'DEFINICION INDICADORES'!E26)","v":"Incidencia de enfermedades crónicas"},{"$f":"IF('ENLACES DATOS'!F22=\"\",\"\",'ENLACES DATOS'!F22)","v":1},null,null,{"$f":"IF('ENLACES DATOS'!J22:J26=\"\",\"\",'ENLACES DATOS'!J22:J26)","v":""},{"$f":"IF('ENLACES DATOS'!K22:K26=\"\",\"\",'ENLACES DATOS'!K22:K26)","v":""},{"$f":"IF('ENLACES DATOS'!N22:N26=\"\",\"\",'ENLACES DATOS'!N22:N26)","v":""},{"$f":"IF('ENLACES DATOS'!O22:O26=\"\",\"\",'ENLACES DATOS'!O22:O26)","v":""},null,{"$f":"IF('HOJA DIAGNOSTICO'!F21=\"\",\"\",'HOJA DIAGNOSTICO'!F21)","v":""}]
[null,5,{"$f":"IF('DEFINICION INDICADORES'!E27=\"\",\"\",'DEFINICION INDICADORES'!E27)","v":"Control animales extraños"},{"$f":"IF('ENLACES DATOS'!F23=\"\",\"\",'ENLACES DATOS'!F23)","v":2},null,null,{"$f":"IF('ENLACES DATOS'!J23:J27=\"\",\"\",'ENLACES DATOS'!J23:J27)","v":""},{"$f":"IF('ENLACES DATOS'!K23:K27=\"\",\"\",'ENLACES DATOS'!K23:K27)","v":""},{"$f":"IF('ENLACES DATOS'!N23:N27=\"\",\"\",'ENLACES DATOS'!N23:N27)","v":""},{"$f":"IF('ENLACES DATOS'!O23:O27=\"\",\"\",'ENLACES DATOS'!O23:O27)","v":""},null,{"$f":"IF('HOJA DIAGNOSTICO'!F22=\"\",\"\",'HOJA DIAGNOSTICO'!F22)","v":""}]
[{"$f":"IF('DEFINICION INDICADORES'!B11=\"\",\"\",'DEFINICION INDICADORES'!B11)","v":"INSTALACIONES"},1,{"$f":"IF('DEFINICION INDICADORES'!E28=\"\",\"\",'DEFINICION INDICADORES'!E28)","v":"Comederos y forrajeras"},{"$f":"IF('ENLACES DATOS'!F24=\"\",\"\",'ENLACES DATOS'!F24)","v":3},null,{"$f":"IF(A24=\"\",\"\",A24)","v":"INSTALACIONES"},{"$f":"IF('ENLACES DATOS'!J24:J28=\"\",\"\",'ENLACES DATOS'!J24:J28)","v":51},{"$f":"IF('ENLACES DATOS'!M24:M28=\"\",\"\",'ENLACES DATOS'!M24:M28)","v":0.6071428571428571},{"$f":"IF('ENLACES DATOS'!N24:N28=\"\",\"\",'ENLACES DATOS'!N24:N28)","v":0.75},{"$f":"IF('ENLACES DATOS'!O24:O28=\"\",\"\",'ENLACES DATOS'!O24:O28)","v":"NO CONFORME: Es fundamental corregir los aspectos negativos"},null,{"$f":"IF('HOJA DIAGNOSTICO'!F23=\"\",\"\",'HOJA DIAGNOSTICO'!F23)","v":""}]
[null,2,{"$f":"IF('DEFINICION INDICADORES'!E29=\"\",\"\",'DEFINICION INDICADORES'!E29)","v":"Bebederos"},{"$f":"IF('ENLACES DATOS'!F25=\"\",\"\",'ENLACES DATOS'!F25)","v":2},null,null,{"$f":"IF('ENLACES DATOS'!J25:J29=\"\",\"\",'ENLACES DATOS'!J25:J29)","v":""},{"$f":"IF('ENLACES DATOS'!K25:K29=\"\",\"\",'ENLACES DATOS'!K25:K29)","v":""},{"$f":"IF('ENLACES DATOS'!N25:N29=\"\",\"\",'ENLACES DATOS'!N25:N29)","v":""},{"$f":"IF('ENLACES DATOS'!O25:O29=\"\",\"\",'ENLACES DATOS'!O25:O29)","v":""},null,{"$f":"IF('HOJA DIAGNOSTICO'!F24=\"\",\"\",'HOJA DIAGNOSTICO'!F24)","v":""}]
[null,3,{"$f":"IF('DEFINICION INDICADORES'!E30=\"\",\"\",'DEFINICION INDICADORES'!E30)","v":"Carga Ambiental"},{"$f":"IF('ENLACES DATOS'!F26=\"\",\"\",'ENLACES DATOS'!F26)","v":2},null,null,{"$f":"IF('ENLACES DATOS'!J26:J30=\"\",\"\",'ENLACES DATOS'!J26:J30)","v":""},{"$f":"IF('ENLACES DATOS'!K26:K30=\"\",\"\",'ENLACES DATOS'!K26:K30)","v":""},{"$f":"IF('ENLACES DATOS'!N26:N30=\"\",\"\",'ENLACES DATOS'!N26:N30)","v":""},{"$f":"IF('ENLACES DATOS'!O26:O30=\"\",\"\",'ENLACES DATOS'!O26:O30)","v":""},null,{"$f":"IF('HOJA DIAGNOSTICO'!F25=\"\",\"\",'HOJA DIAGNOSTICO'!F25)","v":""}]
[null,4,{"$f":"IF('DEFINICION INDICADORES'!E31=\"\",\"\",'DEFINICION INDICADORES'!E31)","v":"Aislamiento cubierta"},{"$f":"IF('ENLACES DATOS'!F27=\"\",\"\",'ENLACES DATOS'!F27)","v":2},null,null,{"$f":"IF('ENLACES DATOS'!J27:J31=\"\",\"\",'ENLACES DATOS'!J27:J31)","v":""},{"$f":"IF('ENLACES DATOS'!K27:K31=\"\",\"\",'ENLACES DATOS'!K27:K31)","v":""},{"$f":"IF('ENLACES DATOS'!N27:N31=\"\",\"\",'ENLACES DATOS'!N27:N31)","v":""},{"$f":"IF('ENLACES DATOS'!O27:O31=\"\",\"\",'ENLACES DATOS'!O27:O31)","v":""},null,{"$f":"IF('HOJA DIAGNOSTICO'!F26=\"\",\"\",'HOJA DIAGNOSTICO'!F26)","v":""}]
[null,5,{"$f":"IF('DEFINICION INDICADORES'!E32=\"\",\"\",'DEFINICION INDICADORES'!E32)","v":"Dimensionado y Ventilación"},{"$f":"IF('ENLACES DATOS'!F28=\"\",\"\",'ENLACES DATOS'!F28)","v":3},null,null,{"$f":"IF('ENLACES DATOS'!J28:J32=\"\",\"\",'ENLACES DATOS'!J28:J32)","v":""},{"$f":"IF('ENLACES DATOS'!K28:K32=\"\",\"\",'ENLACES DATOS'!K28:K32)","v":""},{"$f":"IF('ENLACES DATOS'!N28:N32=\"\",\"\",'ENLACES DATOS'!N28:N32)","v":""},{"$f":"IF('ENLACES DATOS'!O28:O32=\"\",\"\",'ENLACES DATOS'!O28:O32)","v":""},null,{"$f":"IF('HOJA DIAGNOSTICO'!F27=\"\",\"\",'HOJA DIAGNOSTICO'!F27)","v":""}]
[{"$f":"IF('DEFINICION INDICADORES'!B12=\"\",\"\",'DEFINICION INDICADORES'!B12)","v":"BIENESTAR"},1,{"$f":"IF('DEFINICION INDICADORES'!E33=\"\",\"\",'DEFINICION INDICADORES'!E33)","v":"Densidad animal"},{"$f":"IF('ENLACES DATOS'!F29=\"\",\"\",'ENLACES DATOS'!F29)","v":3},null,{"$f":"IF(A29=\"\",\"\",A29)","v":"BIENESTAR"},{"$f":"IF('ENLACES DATOS'!J29:J33=\"\",\"\",'ENLACES DATOS'!J29:J33)","v":60},{"$f":"IF('ENLACES DATOS'!M29:M33=\"\",\"\",'ENLACES DATOS'!M29:M33)","v":0.78947368421052633},{"$f":"IF('ENLACES DATOS'!N29:N33=\"\",\"\",'ENLACES DATOS'!N29:N33)","v":0.7},{"$f":"IF('ENLACES DATOS'!O29:O33=\"\",\"\",'ENLACES DATOS'!O29:O33)","v":"CONFORME. Intentar mejorar aspectos negativos"},null,{"$f":"IF('HOJA DIAGNOSTICO'!F28=\"\",\"\",'HOJA DIAGNOSTICO'!F28)","v":""}]
[null,2,{"$f":"IF('DEFINICION INDICADORES'!E34=\"\",\"\",'DEFINICION INDICADORES'!E34)","v":"Calidad de cama"},{"$f":"IF('ENLACES DATOS'!F30=\"\",\"\",'ENLACES DATOS'!F30)","v":3},null,null,{"$f":"IF('ENLACES DATOS'!J30:J34=\"\",\"\",'ENLACES DATOS'!J30:J34)","v":""},{"$f":"IF('ENLACES DATOS'!K30:K34=\"\",\"\",'ENLACES DATOS'!K30:K34)","v":""},{"$f":"IF('ENLACES DATOS'!N30:N34=\"\",\"\",'ENLACES DATOS'!N30:N34)","v":""},{"$f":"IF('ENLACES DATOS'!O30:O34=\"\",\"\",'ENLACES DATOS'!O30:O34)","v":""},null,{"$f":"IF('HOJA DIAGNOSTICO'!F29=\"\",\"\",'HOJA DIAGNOSTICO'!F29)","v":""}]
[null,3,{"$f":"IF('DEFINICION INDICADORES'!E35=\"\",\"\",'DEFINICION INDICADORES'!E35)","v":"Alteración conducta. Estrés"},{"$f":"IF('ENLACES DATOS'!F31=\"\",\"\",'ENLACES DATOS'!F31)","v":3},null,null,{"$f":"IF('ENLACES DATOS'!J31:J35=\"\",\"\",'ENLACES DATOS'!J31:J35)","v":""},{"$f":"IF('ENLACES DATOS'!K31:K35=\"\",\"\",'ENLACES DATOS'!K31:K35)","v":""},{"$f":"IF('ENLACES DATOS'!N31:N35=\"\",\"\",'ENLACES DATOS'!N31:N35)","v":""},{"$f":"IF('ENLACES DATOS'!O31:O35=\"\",\"\",'ENLACES DATOS'!O31:O35)","v":""},null,{"$f":"IF('HOJA DIAGNOSTICO'!F30=\"\",\"\",'HOJA DIAGNOSTICO'!F30)","v":""}]
[null,4,{"$f":"IF('DEFINICION INDICADORES'!E36=\"\",\"\",'DEFINICION INDICADORES'!E36)","v":"Estado de lana y pezuñas"},{"$f":"IF('ENLACES DATOS'!F32=\"\",\"\",'ENLACES DATOS'!F32)","v":4},null,null,{"$f":"IF('ENLACES DATOS'!J32:J36=\"\",\"\",'ENLACES DATOS'!J32:J36)","v":""},{"$f":"IF('ENLACES DATOS'!K32:K36=\"\",\"\",'ENLACES DATOS'!K32:K36)","v":""},{"$f":"IF('ENLACES DATOS'!N32:N36=\"\",\"\",'ENLACES DATOS'!N32:N36)","v":""},{"$f":"IF('ENLACES DATOS'!O32:O36=\"\",\"\",'ENLACES DATOS'!O32:O36)","v":""},null,{"$f":"IF('HOJA DIAGNOSTICO'!F31=\"\",\"\",'HOJA DIAGNOSTICO'!F31)","v":""}]
[null,5,{"$f":"IF('DEFINICION INDICADORES'!E37=\"\",\"\",'DEFINICION INDICADORES'!E37)","v":"Estado externo animales, CC"},{"$f":"IF('ENLACES DATOS'!F33=\"\",\"\",'ENLACES DATOS'!F33)","v":3},null,null,{"$f":"IF('ENLACES DATOS'!J33:J37=\"\",\"\",'ENLACES DATOS'!J33:J37)","v":""},{"$f":"IF('ENLACES DATOS'!K33:K37=\"\",\"\",'ENLACES DATOS'!K33:K37)","v":""},{"$f":"IF('ENLACES DATOS'!N33:N37=\"\",\"\",'ENLACES DATOS'!N33:N37)","v":""},{"$f":"IF('ENLACES DATOS'!O33:O37=\"\",\"\",'ENLACES DATOS'!O33:O37)","v":""},null,{"$f":"IF('HOJA DIAGNOSTICO'!F32=\"\",\"\",'HOJA DIAGNOSTICO'!F32)","v":""}]
[{"$f":"IF('DEFINICION INDICADORES'!B13=\"\",\"\",'DEFINICION INDICADORES'!B13)","v":"FORMACION Y REGISTRO"},1,{"$f":"IF('DEFINICION INDICADORES'!E38=\"\",\"\",'DEFINICION INDICADORES'!E38)","v":"Libro de Explotación actualizado"},{"$f":"IF('ENLACES DATOS'!F34=\"\",\"\",'ENLACES DATOS'!F34)","v":3},null,{"$f":"IF(A34=\"\",\"\",A34)","v":"FORMACION Y REGISTRO"},{"$f":"IF('ENLACES DATOS'!J34:J38=\"\",\"\",'ENLACES DATOS'!J34:J38)","v":33},{"$f":"IF('ENLACES DATOS'!M34:M38=\"\",\"\",'ENLACES DATOS'!M34:M38)","v":0.6875},{"$f":"IF('ENLACES DATOS'!N34:N38=\"\",\"\",'ENLACES DATOS'!N34:N38)","v":0.65},{"$f":"IF('ENLACES DATOS'!O34:O38=\"\",\"\",'ENLACES DATOS'!O34:O38)","v":"CONFORME. Intentar mejorar aspectos negativos"},null,{"$f":"IF('HOJA DIAGNOSTICO'!F33=\"\",\"\",'HOJA DIAGNOSTICO'!F33)","v":""}]
[null,2,{"$f":"IF('DEFINICION INDICADORES'!E39=\"\",\"\",'DEFINICION INDICADORES'!E39)","v":"Formación del Ganadero"},{"$f":"IF('ENLACES DATOS'!F35=\"\",\"\",'ENLACES DATOS'!F35)","v":3},null,null,{"$f":"IF('ENLACES DATOS'!J35:J39=\"\",\"\",'ENLACES DATOS'!J35:J39)","v":""},{"$f":"IF('ENLACES DATOS'!K35:K39=\"\",\"\",'ENLACES DATOS'!K35:K39)","v":""},{"$f":"IF('ENLACES DATOS'!N35:N39=\"\",\"\",'ENLACES DATOS'!N35:N39)","v":""},{"$f":"IF('ENLACES DATOS'!O35:O39=\"\",\"\",'ENLACES DATOS'!O35:O39)","v":""},null,{"$f":"IF('HOJA DIAGNOSTICO'!F34=\"\",\"\",'HOJA DIAGNOSTICO'!F34)","v":""}]
[null,3,{"$f":"IF('DEFINICION INDICADORES'!E40=\"\",\"\",'DEFINICION INDICADORES'!E40)","v":"Gestión Medioambiental"},{"$f":"IF('ENLACES DATOS'!F36=\"\",\"\",'ENLACES DATOS'!F36)","v":3},null,null,{"$f":"IF('ENLACES DATOS'!J36:J40=\"\",\"\",'ENLACES DATOS'!J36:J40)","v":""},{"$f":"IF('ENLACES DATOS'!K36:K40=\"\",\"\",'ENLACES DATOS'!K36:K40)","v":""},{"$f":"IF('ENLACES DATOS'!N36:N40=\"\",\"\",'ENLACES DATOS'!N36:N40)","v":""},{"$f":"IF('ENLACES DATOS'!O36:O40=\"\",\"\",'ENLACES DATOS'!O36:O40)","v":""},null,{"$f":"IF('HOJA DIAGNOSTICO'!F35=\"\",\"\",'HOJA DIAGNOSTICO'!F35)","v":""}]
[null,4,{"$f":"IF('DEFINICION INDICADORES'!E41=\"\",\"\",'DEFINICION INDICADORES'!E41)","v":"Bioseguridad"},{"$f":"IF('ENLACES DATOS'!F37=\"\",\"\",'ENLACES DATOS'!F37)","v":2},null,null,{"$f":"IF('ENLACES DATOS'!J37:J41=\"\",\"\",'ENLACES DATOS'!J37:J41)","v":""},{"$f":"IF('ENLACES DATOS'!K37:K41=\"\",\"\",'ENLACES DATOS'!K37:K41)","v":""},{"$f":"IF('ENLACES DATOS'!N37:N41=\"\",\"\",'ENLACES DATOS'!N37:N41)","v":""},{"$f":"IF('ENLACES DATOS'!O37:O41=\"\",\"\",'ENLACES DATOS'!O37:O41)","v":""},null,{"$f":"IF('HOJA DIAGNOSTICO'!F36=\"\",\"\",'HOJA DIAGNOSTICO'!F36)","v":""}]
[null,5,{"$f":"IF('DEFINICION INDICADORES'!E42=\"\",\"\",'DEFINICION INDICADORES'!E42)","v":"Carga de Trabajo"},{"$f":"IF('ENLACES DATOS'!F38=\"\",\"\",'ENLACES DATOS'!F38)","v":3},null,null,{"$f":"IF('ENLACES DATOS'!J38:J42=\"\",\"\",'ENLACES DATOS'!J38:J42)","v":""},{"$f":"IF('ENLACES DATOS'!K38:K42=\"\",\"\",'ENLACES DATOS'!K38:K42)","v":""},{"$f":"IF('ENLACES DATOS'!N38:N42=\"\",\"\",'ENLACES DATOS'!N38:N42)","v":""},{"$f":"IF('ENLACES DATOS'!O38:O42=\"\",\"\",'ENLACES DATOS'!O38:O42)","v":""},null,{"$f":"IF('HOJA DIAGNOSTICO'!F37=\"\",\"\",'HOJA DIAGNOSTICO'!F37)","v":""}]
[]
[null,null,null,null,null,"CALIFICACIÓN GLOBAL",{"$f":"IF('ENLACES DATOS'!J39=\"\",\"\",'ENLACES DATOS'!J39)","v":270},{"$f":"IF('ENLACES DATOS'!M39=\"\",\"\",'ENLACES DATOS'!M39)","v":0.68273635174893754},{"$f":"IF('ENLACES DATOS'!N39=\"\",\"\",'ENLACES DATOS'!N39)","v":0.73},{"$f":"IF('ENLACES DATOS'!O39=\"\",\"\",'ENLACES DATOS'!O39)","v":"NO CONFORME: Es fundamental corregir los aspectos negativos"}]

{"sheet":"GRAFICOS INFORME","index":5,"n_rows":37,"n_cols":11,"rows_kept":37,"cut":false,"hidden":false,"merged":[[8,2,8,3],[9,2,9,3],[10,2,10,3]]}
[]
[]
[]
[]
["GRAFICOS DIAGNOSTICO",null,null,null,null,{"$f":"A5","v":"GRAFICOS DIAGNOSTICO"},null,null,null,null,{"$f":"F5","v":"GRAFICOS DIAGNOSTICO"}]
[]
[null,null,null,null,null,{"$f":"IF('DEFINICION INDICADORES'!B10=\"\",\"\",'DEFINICION INDICADORES'!B10)","v":"SANIDAD"},null,null,null,null,{"$f":"IF('DEFINICION INDICADORES'!B12=\"\",\"\",'DEFINICION INDICADORES'!B12)","v":"BIENESTAR"}]
[]
["GANADERO",null,{"$f":"IF('HOJA DIAGNOSTICO'!C7=\"\",\"\",'HOJA DIAGNOSTICO'!C7)","v":"ejemplo"}]
["FECHA DIAGNOSTICO",null,{"$f":"IF('HOJA DIAGNOSTICO'!C8=\"\",\"\",'HOJA DIAGNOSTICO'!C8)","v":"2021-09-01"}]
["TIPO EXPLOTACION",null,{"$f":"IF('HOJA DIAGNOSTICO'!C9=\"\",\"\",'HOJA DIAGNOSTICO'!C9)","v":"CEBO CORDEROS"}]
[]
[{"$f":"IF('DEFINICION INDICADORES'!B9=\"\",\"\",'DEFINICION INDICADORES'!B9)","v":"ALIMENTACION"}]
[]
[]
[]
[]
[]
[]
[]
[]
[]
[null,null,null,null,null,{"$f":"IF('DEFINICION INDICADORES'!B11=\"\",\"\",'DEFINICION INDICADORES'!B11)","v":"INSTALACIONES"},null,null,null,null,{"$f":"IF('DEFINICION INDICADORES'!B13=\"\",\"\",'DEFINICION INDICADORES'!B13)","v":"FORMACION Y REGISTRO"}]
[]
[]
[]
[]
[]
[]
[]
[]
[]
[]
[]
[]
[null,"NOTA","% ","% UMBRAL"]
["CALIFICACIÓN GLOBAL",{"$f":"IF('ENLACES DATOS'!J39=\"\",\"\",'ENLACES DATOS'!J39)","v":270},{"$f":"IF('ENLACES DATOS'!M39=\"\",\"\",'ENLACES DATOS'!M39)","v":0.68273635174893754},{"$f":"IF('ENLACES DATOS'!N39=\"\",\"\",'ENLACES DATOS'!N39)","v":0.73},{"$f":"IF('ENLACES DATOS'!O39=\"\",\"\",'ENLACES DATOS'!O39)","v":"NO CONFORME: Es fundamental corregir los aspectos negativos"}]

{"sheet":"CRITERIOS CALIFICACION","index":6,"n_rows":184,"n_cols":6,"rows_kept":184,"cut":false,"hidden":false,"merged":[[159,0,183,0],[159,1,163,1],[159,2,163,2],[164,1,168,1],[164,2,168,2],[169,1,173,1],[169,2,173,2],[174,1,178,1],[174,2,178,2],[179,1,183,1],[179,2,183,2],[63,0,87,0],[95,0,119,0],[127,0,151,0],[142,1,146,1],[142,2,146,2],[147,1,151,1],[147,2,151,2],[127,1,131,1],[127,2,131,2],[132,1,136,1],[132,2,136,2],[137,1,141,1],[137,2,141,2],[95,1,99,1],[95,2,99,2],[100,1,104,1],[32,2,36,2],[78,1,82,1],[78,2,82,2],[32,0,56,0],[83,1,87,1],[83,2,87,2],[63,1,67,1],[63,2,67,2],[68,1,72,1],[68,2,72,2],[73,1,77,1],[73,2,77,2],[32,1,36,1],[47,1,51,1],[47,2,51,2],[52,1,56,1],[4,0,28,0],[4,2,8,2],[9,1,13,1],[9,2,13,2],[14,1,18,1],[14,2,18,2],[4,1,8,1],[19,1,23,1],[19,2,23,2],[24,1,28,1],[24,2,28,2],[100,2,104,2],[37,1,41,1],[37,2,41,2],[42,1,46,1],[42,2,46,2],[52,2,56,2],[115,1,119,1],[115,2,119,2],[105,1,109,1],[105,2,109,2],[110,1,114,1],[110,2,114,2]]}
[]
[null,null,null,"HOJA DE CALIFICACION"]
[]
[null,null,"INDICADORES","CRITERIOS",null,"CAL"]
[{"$f":"IF('DEFINICION INDICADORES'!B9=\"\",\"\",'DEFINICION INDICADORES'!B9)","v":"ALIMENTACION"},1,{"$f":"IF('DEFINICION INDICADORES'!E18=\"\",\"\",'DEFINICION INDICADORES'!E18)","v":"Programa adecuado y adaptado"},"Piensos adecuados y suficientes. Buen manejo. Adaptados a las diferentes producciones. Equilibrio nutricional. Cobertura necesidades. Separa machos y hembras",4]
[null,null,null,"Piensos adecuados y suficientes. Buen manejo. Adaptados a las diferentes producciones. Equilibrio nutricional. Cobertura necesidades. ",3]
[null,null,null,"Piensos equlibrados con cobertura nutricional. Tiene que adpatar los piensos a los lotes",2]
[null,null,null,"Manejo y grupos adaptados a los piensos.",1]
[null,null,null,"Desequilibrio nutricional o no cobertura de necesidades.",0]
[null,2,{"$f":"IF('DEFINICION INDICADORES'!E19=\"\",\"\",'DEFINICION INDICADORES'!E19)","v":"Depósitos y silos pienso"},"Suficientes depósitos o silos. Limpieza periódica de los mismos.",4]
[null,null,null,"Suficientes depósitos o silos pero limpieza no planificada",3]
[null,null,null,"Silos limpios pero insuficientes",2]
[null,null,null,"Insuficientes silos. Limpieza no planificada",1]
[null,null,null,"Silos claramente  sucios e insuficientes",0]
[null,3,{"$f":"IF('DEFINICION INDICADORES'!E20=\"\",\"\",'DEFINICION INDICADORES'!E20)","v":"Agua de bebida"},"Calidad química y bacteriológica del agua. Acuíferos. Análisis y control periódicos. Sistema de tratamiento de aguas.",4]
[null,null,null,"Calidad química y bacteriológica del agua. Acuíferos. Sistema de tratamiento de aguas.",3]
[null,null,null,"Calidad química y bacteriológica del agua. Sistema de tratamiento de aguas.",2]
[null,null,null,"Calidad química y bacteriológica del agua insuficiente. Sistema de tratamiento de aguas.",1]
[null,null,null,"Calidad química y bacteriológica del agua insuficiente. Sistema de tratamiento de aguas no existe o insuficiente",0]
[null,4,{"$f":"IF('DEFINICION INDICADORES'!E21=\"\",\"\",'DEFINICION INDICADORES'!E21)","v":"Depósitos y conducción de agua"},"Suficientes depósitos adpatados al tamaño de la explotación.Doble via para tratamientos en todas las cuadras Limpieza periódica de tuberías. Ausencia de biofilm",4]
[null,null,null,"Suficientes depósitos adpatados al tamaño de la explotación.Doble via para tratamientos en algunas cuadras Limpieza periódica de tuberías. Ausencia de biofilm",3]
[null,null,null,"Depósitos adecuado y limpios pero con una sola linea de agua. Limpieza periódica de tuberías. Ausencia de biofilm",2]
[null,null,null,"Depósitos adecuado y limpios pero con una sola linea de agua. Limpieza no planificada de tuberías. Ausencia de biofilm",1]
[null,null,null,"Depósitos poco adecuados o sucios. Limpieza no planificada de tuberías. Presencia de biofilm",0]
[null,5,{"$f":"IF('DEFINICION INDICADORES'!E22=\"\",\"\",'DEFINICION INDICADORES'!E22)","v":"Automatización adecuada"},"Alimentación automatizada que asegure suministro de alimento suficiente. Tiempo empleado en suministro corto. No hay finos . Limpieza diaria",4]
[null,null,null,"Alimentación automatizada que asegure suministro de alimento suficiente. Tiempo empleado en suministro corto. Algo de finos pero limpieza diaria",3]
[null,null,null,"Alimentación automatizada que asegure suministro de alimento suficiente. Tiempo empleado en suministro corto. Algo de finos. No limpieza diaria",2]
[null,null,null,"Alimentación automatizada que asegure suministro de alimento suficiente. Tiempo empleado en suministro corto. Evidente presencia de finos que afectan al consumo",1]
[null,null,null,"Alimentación no  automatizada . Tiempos en que los animales están sin pienso. ",0]
[]
[]
[null,null,"INDICADORES","CRITERIOS",null,"CAL"]
[{"$f":"IF('DEFINICION INDICADORES'!B10=\"\",\"\",'DEFINICION INDICADORES'!B10)","v":"SANIDAD"},1,{"$f":"IF('DEFINICION INDICADORES'!E23=\"\",\"\",'DEFINICION INDICADORES'!E23)","v":"Ratios mortalidad y desvieje"},"Mortalidad adultas y desvieje <15% ",4]
[null,null,null,"Mortalidad adultas y desvieje entre  15% y 20%",3]
[null,null,null,"Mortalidad adulktas y desvieje entre 20 y 25%",2]
[null,null,null,"Mortalidad adultas y desvieje entre 25 y 40%",1]
[null,null,null,"Alta mortalidad y desvieje. Ambos > 40%",0]
[null,2,{"$f":"IF('DEFINICION INDICADORES'!E24=\"\",\"\",'DEFINICION INDICADORES'!E24)","v":"Incidencia de abortos"},"Abortos inferiores al 3% con vacuna de clamidia y mas agentes a la reposicion o/y adultas",4]
[null,null,null,"Abortos inferiores al 3% con vacuna de clamidia a la reposicion",3]
[null,null,null,"Abortos ocasionales con diagnostico claro y ovejas vacunadas",2]
[null,null,null,"Abortos habituales con dfagnostico claro de varios procesos",1]
[null,null,null,"Tormentas de abortos no diagnosticados",0]
[null,3,{"$f":"IF('DEFINICION INDICADORES'!E25=\"\",\"\",'DEFINICION INDICADORES'!E25)","v":"Plan Sanitario"},"Establecimiento de protocolos de prevención y curación. Cumplimiento de los mismos. Bioseguridad.",4]
[null,null,null,"Existe protocolo pero no siempre se cumple",3]
[null,null,null,"No existe protocolo pero obtiene unos resultados aceptables en sanidad.",2]
[null,null,null,"Vacunación o desparasitación ocasional",1]
[null,null,null,"No existe protocolo sanitario y no existe profilaxis ni siquiera ocasionalmente",0]
[null,4,{"$f":"IF('DEFINICION INDICADORES'!E26=\"\",\"\",'DEFINICION INDICADORES'!E26)","v":"Incidencia de enfermedades crónicas"},"Nula incidencia de procesos crónicos y medidas de vacunación y bioseguridad",4]
[null,null,null,"Escasa incidencia de procesos crónicos y medidas de vacunación y bioseguridad",3]
[null,null,null,"Baja incidencia de una enfermedad cronica predominante y diagnosticada",2]
[null,null,null,"Incidencia media de enfermedades crónicas con diagnostico",1]
[null,null,null,"Alta incidencia de enfermedades crónicas sin diagnostico claro",0]
[null,5,{"$f":"IF('DEFINICION INDICADORES'!E27=\"\",\"\",'DEFINICION INDICADORES'!E27)","v":"Control animales extraños"},"Programa DDD y su cumplimiento. Vigila perros y gatos de la explotación. Dersparasitación perros. Control animales externos sistematizado.",4]
[null,null,null,"Programa DDD y su cumplimiento. Vigila perros y gatos de la explotación. Dersparasitación perros. No controla siempre animales externos",3]
[null,null,null,"Programa DDD y su cumplimiento. Vigila perros y gatos de la explotación. No desparasita perros siempre. No controla siempre animales externos",2]
[null,null,null,"Programa DDD y su cumplimiento. No vigila perros ni gatos.",1]
[null,null,null,"Ningún control sobre animales externos.",0]
[]
[]
[]
[]
[]
[null,null,"INDICADORES","CRITERIOS",null,"CAL"]
[{"$f":"IF('DEFINICION INDICADORES'!B11=\"\",\"\",'DEFINICION INDICADORES'!B11)","v":"INSTALACIONES"},1,{"$f":"IF('DEFINICION INDICADORES'!E28=\"\",\"\",'DEFINICION INDICADORES'!E28)","v":"Comederos y forrajeras"},"Disponibilidad sobrada de comederos y pajeras , limpios y de facil acceso a los animales. Suelo limpio y seco en espacio de comederos y pajeras.",4]
[null,null,null,"Disponibilidad sobrada de comederos y pajeras , limpios y situados solo en una parte de la cuadra. Suelo limpio y seco.",3]
[null,null,null,"Adecuada disponibilidad de comederos y pajeras. Limpios y suelo algo húmedo",2]
[null,null,null,"Adecuada disponibilidad de comederos y pajeras. Sucios.",1]
[null,null,null,"Insuficiente  disponibilidad de comederos y pajeras.",0]
[null,2,{"$f":"IF('DEFINICION INDICADORES'!E29=\"\",\"\",'DEFINICION INDICADORES'!E29)","v":"Bebederos"},"Número y/o superficie de bebederos sobrado respecto  a la densidad de los animales. Bebederos limpios y bien repartidos en las cuadras. Suelo seco",4]
[null,null,null,"Número y/o superficie de bebederos adecuado respecto  a la densidad de los animales. Bebederos limpios y bien repartidos en las cuadras. Suelo seco",3]
[null,null,null,"Número y/o superficie de bebederos adecuado respecto  a la densidad de los animales. Bebederos limpios en un solo emplazamiento. Suelo seco",2]
[null,null,null,"Número y/o superficie de bebederos adecuado respecto  a la densidad de los animales. Bebederos sucios o suelo húmedo",1]
[null,null,null,"Número y/o superficie de bebederos inadecuado respecto  a la densidad de los animales. ",0]
[null,3,{"$f":"IF('DEFINICION INDICADORES'!E30=\"\",\"\",'DEFINICION INDICADORES'!E30)","v":"Carga Ambiental"},"Detección de carga de amoniaco cuantificada y sin olor ni carga ambiental",4]
[null,null,null,"No olor ni carga ambiental.",3]
[null,null,null,"Olor ligeramente perceptible pero que no queda impregnado en la ropa",2]
[null,null,null,"Olor claramente perceptible. Quede impregnado en la ropa.",1]
[null,null,null,"Olor y carga ambiental claramente nocivo.",0]
[null,4,{"$f":"IF('DEFINICION INDICADORES'!E31=\"\",\"\",'DEFINICION INDICADORES'!E31)","v":"Aislamiento cubierta"},"Cubierta bien aislada. Sin condensación en la nave. Diferencias de temperatura y humedad con el exterior adecuadas según estación del año. Instrumentos de control",4]
[null,null,null,"Cubierta bien aislada. Sin condensación en la nave. Diferencias de temperatura y humedad con el exterior adecuadas según estación del año.",3]
[null,null,null,"Cubierta aislada pero con algún defecto. En general buenas coindiciones ambientales pero se nota el calor o frío extremo.",2]
[null,null,null,"Cubierta sin aislar pero no hay condensación y mantiene condiciones ambientales adecuadas",1]
[null,null,null,"Cubierta sin aislar. Condensación y/o mucho calor en verano",0]
[null,5,{"$f":"IF('DEFINICION INDICADORES'!E32=\"\",\"\",'DEFINICION INDICADORES'!E32)","v":"Dimensionado y Ventilación"},"Volumen estático, entradas ny salidas de aire y velocidad del aire adecuadas. Medición sistemática del ambiente d ela nave.",4]
[null,null,null,"Volumen estático, entradas y salidas de aire y velocidad del aire adecuadas. ",3]
[null,null,null,"Volumen estático, entradas y salidas de aire adecuadas. Corrientes en invierno o poco aire en verano",2]
[null,null,null,"Volumen estático o entradas y salidas adecuadas.",1]
[null,null,null,"No cumple ni volumen estático ni entradas y salidas de aire.",0]
[]
[]
[]
[]
[]
[]
[null,null,"INDICADORES","CRITERIOS",null,"CAL"]
[{"$f":"IF('DEFINICION INDICADORES'!B12=\"\",\"\",'DEFINICION INDICADORES'!B12)","v":"BIENESTAR"},1,{"$f":"IF('DEFINICION INDICADORES'!E33=\"\",\"\",'DEFINICION INDICADORES'!E33)","v":"Densidad animal"},"Mas de 2 m2 por oveja",4]
[null,null,null,"Entre 1.5 y 2 m2 por oveja",3]
[null,null,null,"Entre 1 y 1.5 m2 por oveja",2]
[null,null,null,"Menos de 1 m2 por oveja presente",1]
[null,null,null,"Animales hacinados",0]
[null,2,{"$f":"IF('DEFINICION INDICADORES'!E34=\"\",\"\",'DEFINICION INDICADORES'!E34)","v":"Calidad de cama"},"Cama limpia, seca y abundante y de renovado diario.",4]
[null,null,null,"Cama limpia, seca y abundante y de renovado no diario",3]
[null,null,null,"Cumple al menos dos caracteristicas",2]
[null,null,null,"Cumple solo una caracteristica",1]
[null,null,null,"No cumple ninguna de las tres características",0]
[null,3,{"$f":"IF('DEFINICION INDICADORES'!E35=\"\",\"\",'DEFINICION INDICADORES'!E35)","v":"Alteración conducta. Estrés"},"Más del 90% de animales tumbados y no se ven esterotipias",4]
[null,null,null,"Entre 80 y 90% de animales tumbados. No esterotipias",3]
[null,null,null,"Entre 60 y 80% de animales tumbados o se ven esteritipias",2]
[null,null,null,"Menos del 60% de animales tumbados o se ven esterotipias",1]
[null,null,null,"Esterotipias claras y animales estresados",0]
[null,4,{"$f":"IF('DEFINICION INDICADORES'!E36=\"\",\"\",'DEFINICION INDICADORES'!E36)","v":"Estado de lana y pezuñas"},"Nula incidencia de cojeras. Lana perfecta",4]
[null,null,null,"Escasa incidencia de cojeras. Lana perfecta",3]
[null,null,null,"Baja incidencia de cojeras con diagnostico claro y medidas de prevencion. Algunas ovejas peladas",2]
[null,null,null,"Evidente incidencia de cojeras sin diagnostico confirmado y/o ovejas con mala calidad de lana",1]
[null,null,null,"Alta incidencia de animales con mala apariencia y/o cojeras",0]
[null,5,{"$f":"IF('DEFINICION INDICADORES'!E37=\"\",\"\",'DEFINICION INDICADORES'!E37)","v":"Estado externo animales, CC"},"Capa limpia y brillante, estado corporal bueno y adecuado a animales de cebo",4]
[null,null,null,"Capa limpia y suciedad solo en pezuñas.. Buen estado corporal",3]
[null,null,null,"Suciedad hasta corvejones. Capa limpia y buen estado corporal.",2]
[null,null,null,"Capa sucia y buen estado corporal.",1]
[null,null,null,"Mal estado corporal",0]
[]
[]
[]
[]
[]
[]
[null,null,"INDICADORES","CRITERIOS",null,"CAL"]
[{"$f":"IF('DEFINICION INDICADORES'!B13=\"\",\"\",'DEFINICION INDICADORES'!B13)","v":"FORMACION Y REGISTRO"},1,{"$f":"IF('DEFINICION INDICADORES'!E38=\"\",\"\",'DEFINICION INDICADORES'!E38)","v":"Libro de Explotación actualizado"},"Libro de esxplotación en el que figure el censo actualizado y movimientos de los animales. Entradas y salidas y tratamientos veterinarios. Entradas de alimentos",4]
[null,null,null,"Libro de esxplotación en el que figure el censo actualizado y movimientos de los animales. Entradas y salidas y tratamientos veterinarios.",3]
[null,null,null,"Libro de esxplotación en el que figure el censo actualizado. Entradas y salidas y tratamientos veterinarios.",2]
[null,null,null,"Libro de esxplotación en el que figure el censo actualizado.Tratamientos veterinarios.",1]
[null,null,null,"Libro de explotación inexistente o sin rellenar",0]
[null,2,{"$f":"IF('DEFINICION INDICADORES'!E39=\"\",\"\",'DEFINICION INDICADORES'!E39)","v":"Formación del Ganadero"},"Alta cualificación del ganadero. Conocimientos aplicados a la explotación.",4]
[null,null,null,"Titulación obligatoria y algunas titulaciones complementarias",3]
[null,null,null,"Titulación obligatoria solamente",2]
[null,null,null,"Sin titulación pero con larga experiencia",1]
[null,null,null,"Calificaión nula o inexistente",0]
[null,3,{"$f":"IF('DEFINICION INDICADORES'!E40=\"\",\"\",'DEFINICION INDICADORES'!E40)","v":"Gestión Medioambiental"},"Gestión de residuos documentada. Vacíos sanitarios de al menos dos veces al año con documentación cuplimentada.Tratamientos DDD realizados y documentados",4]
[null,null,null,"Documentación ajustada a la normativa y actualizada.",3]
[null,null,null,"Documentación existente pero no actualizada. Gestión medioambiental programada",2]
[null,null,null,"No hay documentación pero realiza una gestión medioambiental opcasional.",1]
[null,null,null,"No existen registros ni hay vacíos sanitarios programados",0]
[null,4,{"$f":"IF('DEFINICION INDICADORES'!E41=\"\",\"\",'DEFINICION INDICADORES'!E41)","v":"Bioseguridad"},"Medidas de bioseguridad excepcionales",4]
[null,null,null,"Medidas de bioseguridad   adecuadas en alimentación, control de animales externos, cadaveres y limpieza",3]
[null,null,null,"Medidas de bioseguridad   adecuadas en alimentación, control de animales externos, cadaveres.",2]
[null,null,null,"Medidas de bioseguridad   adecuadas en alimentación , cadaveres.",1]
[null,null,null,"No hay medidad de bioseguridad",0]
[null,5,{"$f":"IF('DEFINICION INDICADORES'!E42=\"\",\"\",'DEFINICION INDICADORES'!E42)","v":"Carga de Trabajo"},"Mano de obra suficiente. Horarios laborales flexibles.Excelente cualificación y  motivación",4]
[null,null,null,"Mano de obra suficiente. Horarios laborales flexibles.  Motivación",3]
[null,null,null,"Mano de obra ajustada. Horarios laborales flexibles.  Motivación",2]
[null,null,null,"Mano de obra ajustada. Horarios laborales poco flexibles.",1]
[null,null,null,"Mano de obra insuficiente y desmotivada",0]
[]
[]
[]
[]
[]
[]
[null,null,"INDICADORES","CRITERIOS",null,"CAL"]
[{"$f":"IF('DEFINICION INDICADORES'!B56=\"\",\"\",'DEFINICION INDICADORES'!B56)","v":"TRONCO \"REDUCE\""},1,{"$f":"IF('DEFINICION INDICADORES'!E56=\"\",\"\",'DEFINICION INDICADORES'!E56)","v":"Disminucion del uso de piensos medicamentosos"},"Eliminación o reducción de más del 90% del uso de piensos medicamentosos",4]
[null,null,null,"Reducción 50 - 90%",3]
[null,null,null,"Reducción 20 - 50%",2]
[null,null,null,"Reducción proyectada menor del 20%",1]
[null,null,null,"Sin reducción del uso de piensos medicamentosos",0]
[null,2,{"$f":"IF('DEFINICION INDICADORES'!E57=\"\",\"\",'DEFINICION INDICADORES'!E57)","v":"Uso de antibióticos CATEGORIA D"},"Ningún uso de antibióticos del grupo 2",4]
[null,null,null,"Uso puntual de antibióticos del grupo 2 con justificación analítica",3]
[null,null,null,"Uso puntual de antibióticos del grupo 2 sin justificación analítica",2]
[null,null,null,"Uso por sistema (en brotes o metafilaxia) de 1 o más antibióticos del grupo 2",1]
[null,null,null,"Sin criterio específico",0]
[null,3,{"$f":"IF('DEFINICION INDICADORES'!E58=\"\",\"\",'DEFINICION INDICADORES'!E58)","v":"Plan-Informe sanitario. Auditorías anuales"},"Plan e Informe Sanitario en vigor basado en datos evaluados y actualizados",4]
[null,null,null,"Plan -Informe Sanitario en vigor ",3]
[null,null,null,"No hay Plan-Informe Sanitario pero se conoce la problemática y se actua en consecuencia",2]
[null,null,null,"No hay Plan-Informe Sanitario pero se conoce la problemática y no se toman medidas especiales",1]
[null,null,null,"No hay ningún Plan-Informe Sanitario",0]
[null,4,{"$f":"IF('DEFINICION INDICADORES'!E59=\"\",\"\",'DEFINICION INDICADORES'!E59)","v":"%  de animales con tratamiento metafiláctico"},"No hay tratamientos metafilácticos.",4]
[null,null,null,"Tratamientos metafilácticos puntuales con justificación analítica a grupos reducidos",3]
[null,null,null,"Tratamientos metafilácticos puntuales con justificación analítica a varios grupos de animales",2]
[null,null,null,"Tratamientos metafilácticos constantes/habituales solo a la enfermería",1]
[null,null,null,"Tratamientos metafilácticos constantes/habituales",0]
[null,5,{"$f":"IF('DEFINICION INDICADORES'!E60=\"\",\"\",'DEFINICION INDICADORES'!E60)","v":"Monitorización de explotación"},"Hago un antibiograma al  menos cada tres meses con gestión de orígenes y auditorías de BA",4]
[null,null,null,"Hago un antibiograma al  menos cada tres meses y gestión de orígenes o auditorías de BA",3]
[null,null,null,"Hago un antibiograma al  menos cada seis meses",2]
[null,null,null,"Hago un antibiograma puntualmente frente a una patología grave",1]
[null,null,null,"Rara vez realizo aislamientos y antibiogramas",0]

{"sheet":"DEFINIR TOMAS DE MUESTRAS","index":7,"n_rows":33,"n_cols":7,"rows_kept":33,"cut":false,"hidden":false,"merged":[]}
[]
[]
[null,"DEFINIR TOMA DE MUESTRAS"]
[]
[]
[]
["ORIGEN","A PARTIR DE","ENVIO /CONSERVACION"]
["DIGESTIVO","HECES","REFRIGERADO"]
["RESPIRATORIO","NECROPSIA","CONGELADO"]
["ARTICULAR","ORGANOS","FORMOL 10%"]
["ORINA","RASPADO","FRESCO"]
["CUTANEO","HISOPO RECTAL"]
["ANIMAL ENTERO","HISOPO NASAL"]
["METABOLICO","HISOPO INTESTINAL"]
["NEUROLOGICO","HISOPO"]
["MAMARIO","LIQUIDO ARTICULAR"]
[null,"EXUDADO"]
[null,"ORINA ENTERA"]
[null,"CADAVER ENTERO"]
[null,"SUERO SANGUINEO"]
[null,"SUERO + ANTICOAGULANTE"]
[null,"LECHE UBRE"]
[null,"LECHE TANQUE"]
[null,"LAVADO TRAQUEO BRONQ."]
[]
[]
[]
[]
[]
[]
[]
["PLAN DE MUESTREO"]
["Nº MUESTRA","ORIGEN","A PARTIR DE","Nº DE MUESTRAS","PERIODICIDAD (CADA ….DIAS)","ENVIO /CONSERVACION","OBSERVACIONES"]

{"sheet":"INFORME TOMA DE MUESTRAS","index":8,"n_rows":41,"n_cols":6,"rows_kept":41,"cut":false,"hidden":false,"merged":[[30,0,31,0],[33,0,34,0],[36,0,37,0],[39,0,40,0],[12,0,13,0],[15,0,16,0],[18,0,19,0],[21,0,22,0],[24,0,25,0],[27,0,28,0],[36,1,37,1],[37,2,37,5],[39,1,40,1],[40,2,40,5],[27,1,28,1],[28,2,28,5],[30,1,31,1],[31,2,31,5],[33,1,34,1],[34,2,34,5],[18,1,19,1],[19,2,19,5],[21,1,22,1],[22,2,22,5],[24,1,25,1],[25,2,25,5],[6,3,6,4],[8,3,8,4],[13,2,13,5],[12,1,13,1],[15,1,16,1],[16,2,16,5],[7,3,7,4]]}
[]
[]
[]
[]
[null,"INFORME TOMA DE MUESTRAS"]
[]
[null,null,"GANADERO"]
[null,null,"FECHA"]
[null,null,"TIPO EXPLOTACION"]
[]
[]
["Nº","ORIGEN","A PARTIR DE","Nº DE MUESTRAS","PERIODICIDAD (CADA ….DIAS)","ENVIO/CONSERVACION"]
[{"$f":"IF('DEFINIR TOMAS DE MUESTRAS'!A34=\"\",\"\",'DEFINIR TOMAS DE MUESTRAS'!A34)","v":""},{"$f":"IF('DEFINIR TOMAS DE MUESTRAS'!B34=\"\",\"\",'DEFINIR TOMAS DE MUESTRAS'!B34)","v":""},{"$f":"IF('DEFINIR TOMAS DE MUESTRAS'!C34=\"\",\"\",'DEFINIR TOMAS DE MUESTRAS'!C34)","v":""},{"$f":"IF('DEFINIR TOMAS DE MUESTRAS'!D34=\"\",\"\",'DEFINIR TOMAS DE MUESTRAS'!D34)","v":""},{"$f":"IF('DEFINIR TOMAS DE MUESTRAS'!E34=\"\",\"\",'DEFINIR TOMAS DE MUESTRAS'!E34)","v":""},{"$f":"IF('DEFINIR TOMAS DE MUESTRAS'!F34=\"\",\"\",'DEFINIR TOMAS DE MUESTRAS'!F34)","v":""}]
[null,null,{"$f":"IF('DEFINIR TOMAS DE MUESTRAS'!G34=\"\",\"\",'DEFINIR TOMAS DE MUESTRAS'!G34)","v":""}]
[]
[{"$f":"IF('DEFINIR TOMAS DE MUESTRAS'!A35=\"\",\"\",'DEFINIR TOMAS DE MUESTRAS'!A35)","v":""},{"$f":"IF('DEFINIR TOMAS DE MUESTRAS'!B35=\"\",\"\",'DEFINIR TOMAS DE MUESTRAS'!B35)","v":""},{"$f":"IF('DEFINIR TOMAS DE MUESTRAS'!C35=\"\",\"\",'DEFINIR TOMAS DE MUESTRAS'!C35)","v":""},{"$f":"IF('DEFINIR TOMAS DE MUESTRAS'!D35=\"\",\"\",'DEFINIR TOMAS DE MUESTRAS'!D35)","v":""},{"$f":"IF('DEFINIR TOMAS DE MUESTRAS'!E35=\"\",\"\",'DEFINIR TOMAS DE MUESTRAS'!E35)","v":""},{"$f":"IF('DEFINIR TOMAS DE MUESTRAS'!F35=\"\",\"\",'DEFINIR TOMAS DE MUESTRAS'!F35)","v":""}]
[null,null,{"$f":"IF('DEFINIR TOMAS DE MUESTRAS'!G35=\"\",\"\",'DEFINIR TOMAS DE MUESTRAS'!G35)","v":""}]
[]
[{"$f":"IF('DEFINIR TOMAS DE MUESTRAS'!A36=\"\",\"\",'DEFINIR TOMAS DE MUESTRAS'!A36)","v":""},{"$f":"IF('DEFINIR TOMAS DE MUESTRAS'!B36=\"\",\"\",'DEFINIR TOMAS DE MUESTRAS'!B36)","v":""},{"$f":"IF('DEFINIR TOMAS DE MUESTRAS'!C36=\"\",\"\",'DEFINIR TOMAS DE MUESTRAS'!C36)","v":""},{"$f":"IF('DEFINIR TOMAS DE MUESTRAS'!D36=\"\",\"\",'DEFINIR TOMAS DE MUESTRAS'!D36)","v":""},{"$f":"IF('DEFINIR TOMAS DE MUESTRAS'!E36=\"\",\"\",'DEFINIR TOMAS DE MUESTRAS'!E36)","v":""},{"$f":"IF('DEFINIR TOMAS DE MUESTRAS'!F36=\"\",\"\",'DEFINIR TOMAS DE MUESTRAS'!F36)","v":""}]
[null,null,{"$f":"IF('DEFINIR TOMAS DE MUESTRAS'!G36=\"\",\"\",'DEFINIR TOMAS DE MUESTRAS'!G36)","v":""}]
[]
[{"$f":"IF('DEFINIR TOMAS DE MUESTRAS'!A37=\"\",\"\",'DEFINIR TOMAS DE MUESTRAS'!A37)","v":""},{"$f":"IF('DEFINIR TOMAS DE MUESTRAS'!B37=\"\",\"\",'DEFINIR TOMAS DE MUESTRAS'!B37)","v":""},{"$f":"IF('DEFINIR TOMAS DE MUESTRAS'!C37=\"\",\"\",'DEFINIR TOMAS DE MUESTRAS'!C37)","v":""},{"$f":"IF('DEFINIR TOMAS DE MUESTRAS'!D37=\"\",\"\",'DEFINIR TOMAS DE MUESTRAS'!D37)","v":""},{"$f":"IF('DEFINIR TOMAS DE MUESTRAS'!E37=\"\",\"\",'DEFINIR TOMAS DE MUESTRAS'!E37)","v":""},{"$f":"IF('DEFINIR TOMAS DE MUESTRAS'!F37=\"\",\"\",'DEFINIR TOMAS DE MUESTRAS'!F37)","v":""}]
[null,null,{"$f":"IF('DEFINIR TOMAS DE MUESTRAS'!G37=\"\",\"\",'DEFINIR TOMAS DE MUESTRAS'!G37)","v":""}]
[]
[{"$f":"IF('DEFINIR TOMAS DE MUESTRAS'!A38=\"\",\"\",'DEFINIR TOMAS DE MUESTRAS'!A38)","v":""},{"$f":"IF('DEFINIR TOMAS DE MUESTRAS'!B38=\"\",\"\",'DEFINIR TOMAS DE MUESTRAS'!B38)","v":""},{"$f":"IF('DEFINIR TOMAS DE MUESTRAS'!C38=\"\",\"\",'DEFINIR TOMAS DE MUESTRAS'!C38)","v":""},{"$f":"IF('DEFINIR TOMAS DE MUESTRAS'!D38=\"\",\"\",'DEFINIR TOMAS DE MUESTRAS'!D38)","v":""},{"$f":"IF('DEFINIR TOMAS DE MUESTRAS'!E38=\"\",\"\",'DEFINIR TOMAS DE MUESTRAS'!E38)","v":""},{"$f":"IF('DEFINIR TOMAS DE MUESTRAS'!F38=\"\",\"\",'DEFINIR TOMAS DE MUESTRAS'!F38)","v":""}]
[null,null,{"$f":"IF('DEFINIR TOMAS DE MUESTRAS'!G38=\"\",\"\",'DEFINIR TOMAS DE MUESTRAS'!G38)","v":""}]
[]
[{"$f":"IF('DEFINIR TOMAS DE MUESTRAS'!A39=\"\",\"\",'DEFINIR TOMAS DE MUESTRAS'!A39)","v":""},{"$f":"IF('DEFINIR TOMAS DE MUESTRAS'!B39=\"\",\"\",'DEFINIR TOMAS DE MUESTRAS'!B39)","v":""},{"$f":"IF('DEFINIR TOMAS DE MUESTRAS'!C39=\"\",\"\",'DEFINIR TOMAS DE MUESTRAS'!C39)","v":""},{"$f":"IF('DEFINIR TOMAS DE MUESTRAS'!D39=\"\",\"\",'DEFINIR TOMAS DE MUESTRAS'!D39)","v":""},{"$f":"IF('DEFINIR TOMAS DE MUESTRAS'!E39=\"\",\"\",'DEFINIR TOMAS DE MUESTRAS'!E39)","v":""},{"$f":"IF('DEFINIR TOMAS DE MUESTRAS'!F39=\"\",\"\",'DEFINIR TOMAS DE MUESTRAS'!F39)","v":""}]
[null,null,{"$f":"IF('DEFINIR TOMAS DE MUESTRAS'!G39=\"\",\"\",'DEFINIR TOMAS DE MUESTRAS'!G39)","v":""}]
[]
[{"$f":"IF('DEFINIR TOMAS DE MUESTRAS'!A40=\"\",\"\",'DEFINIR TOMAS DE MUESTRAS'!A40)","v":""},{"$f":"IF('DEFINIR TOMAS DE MUESTRAS'!B40=\"\",\"\",'DEFINIR TOMAS DE MUESTRAS'!B40)","v":""},{"$f":"IF('DEFINIR TOMAS DE MUESTRAS'!C40=\"\",\"\",'DEFINIR TOMAS DE MUESTRAS'!C40)","v":""},{"$f":"IF('DEFINIR TOMAS DE MUESTRAS'!D40=\"\",\"\",'DEFINIR TOMAS DE MUESTRAS'!D40)","v":""},{"$f":"IF('DEFINIR TOMAS DE MUESTRAS'!E40=\"\",\"\",'DEFINIR TOMAS DE MUESTRAS'!E40)","v":""},{"$f":"IF('DEFINIR TOMAS DE MUESTRAS'!F40=\"\",\"\",'DEFINIR TOMAS DE MUESTRAS'!F40)","v":""}]
[null,null,{"$f":"IF('DEFINIR TOMAS DE MUESTRAS'!G40=\"\",\"\",'DEFINIR TOMAS DE MUESTRAS'!G40)","v":""}]
[]
[{"$f":"IF('DEFINIR TOMAS DE MUESTRAS'!A41=\"\",\"\",'DEFINIR TOMAS DE MUESTRAS'!A41)","v":""},{"$f":"IF('DEFINIR TOMAS DE MUESTRAS'!B41=\"\",\"\",'DEFINIR TOMAS DE MUESTRAS'!B41)","v":""},{"$f":"IF('DEFINIR TOMAS DE MUESTRAS'!C41=\"\",\"\",'DEFINIR TOMAS DE MUESTRAS'!C41)","v":""},{"$f":"IF('DEFINIR TOMAS DE MUESTRAS'!D41=\"\",\"\",'DEFINIR TOMAS DE MUESTRAS'!D41)","v":""},{"$f":"IF('DEFINIR TOMAS DE MUESTRAS'!E41=\"\",\"\",'DEFINIR TOMAS DE MUESTRAS'!E41)","v":""},{"$f":"IF('DEFINIR TOMAS DE MUESTRAS'!F41=\"\",\"\",'DEFINIR TOMAS DE MUESTRAS'!F41)","v":""}]
[null,null,{"$f":"IF('DEFINIR TOMAS DE MUESTRAS'!G41=\"\",\"\",'DEFINIR TOMAS DE MUESTRAS'!G41)","v":""}]
[]
[{"$f":"IF('DEFINIR TOMAS DE MUESTRAS'!A42=\"\",\"\",'DEFINIR TOMAS DE MUESTRAS'!A42)","v":""},{"$f":"IF('DEFINIR TOMAS DE MUESTRAS'!B42=\"\",\"\",'DEFINIR TOMAS DE MUESTRAS'!B42)","v":""},{"$f":"IF('DEFINIR TOMAS DE MUESTRAS'!C42=\"\",\"\",'DEFINIR TOMAS DE MUESTRAS'!C42)","v":""},{"$f":"IF('DEFINIR TOMAS DE MUESTRAS'!D42=\"\",\"\",'DEFINIR TOMAS DE MUESTRAS'!D42)","v":""},{"$f":"IF('DEFINIR TOMAS DE MUESTRAS'!E42=\"\",\"\",'DEFINIR TOMAS DE MUESTRAS'!E42)","v":""},{"$f":"IF('DEFINIR TOMAS DE MUESTRAS'!F42=\"\",\"\",'DEFINIR TOMAS DE MUESTRAS'!F42)","v":""}]
[null,null,{"$f":"IF('DEFINIR TOMAS DE MUESTRAS'!G42=\"\",\"\",'DEFINIR TOMAS DE MUESTRAS'!G42)","v":""}]
[]
[{"$f":"IF('DEFINIR TOMAS DE MUESTRAS'!A43=\"\",\"\",'DEFINIR TOMAS DE MUESTRAS'!A43)","v":""},{"$f":"IF('DEFINIR TOMAS DE MUESTRAS'!B43=\"\",\"\",'DEFINIR TOMAS DE MUESTRAS'!B43)","v":""},{"$f":"IF('DEFINIR TOMAS DE MUESTRAS'!C43=\"\",\"\",'DEFINIR TOMAS DE MUESTRAS'!C43)","v":""},{"$f":"IF('DEFINIR TOMAS DE MUESTRAS'!D43=\"\",\"\",'DEFINIR TOMAS DE MUESTRAS'!D43)","v":""},{"$f":"IF('DEFINIR TOMAS DE MUESTRAS'!E43=\"\",\"\",'DEFINIR TOMAS DE MUESTRAS'!E43)","v":""},{"$f":"IF('DEFINIR TOMAS DE MUESTRAS'!F43=\"\",\"\",'DEFINIR TOMAS DE MUESTRAS'!F43)","v":""}]
[null,null,{"$f":"IF('DEFINIR TOMAS DE MUESTRAS'!G43=\"\",\"\",'DEFINIR TOMAS DE MUESTRAS'!G43)","v":""}]

{"sheet":"CALENDARIO TOMA DE MUESTRAS","index":9,"n_rows":37,"n_cols":8,"rows_kept":37,"cut":false,"hidden":false,"merged":[[8,3,8,5],[6,3,6,5],[7,3,7,5],[13,3,13,7]]}
[]
[]
[]
[]
[null,null,"CALENDARIO TOMA DE MUESTRAS"]
[]
[null,null,"GANADERO",{"$f":"IF('INFORME TOMA DE MUESTRAS'!D7:E7=\"\",\"\",'INFORME TOMA DE MUESTRAS'!D7:E7)","v":""}]
[null,null,"FECHA",{"$f":"IF('INFORME TOMA DE MUESTRAS'!D8:E8=\"\",\"\",'INFORME TOMA DE MUESTRAS'!D8:E8)","v":""}]
[null,null,"TIPO EXPLOTACION",{"$f":"IF('INFORME TOMA DE MUESTRAS'!D9:E9=\"\",\"\",'INFORME TOMA DE MUESTRAS'!D9:E9)","v":""}]
[null,null,null,{"$f":"IF('INFORME TOMA DE MUESTRAS'!D10:E10=\"\",\"\",'INFORME TOMA DE MUESTRAS'!D10:E10)","v":""}]
[]
[]
[null,null,"TIPO MUESTRA",null,null,{"$f":"IF(D13=\"\",\"\",'ENLACES DATOS'!B66)","v":""},null,{"$f":"IF(D13=\"\",\"\",'ENLACES DATOS'!E66)","v":""}]
[null,null,null,{"$f":"IF(D13=\"\",\"\",'ENLACES DATOS'!K66)","v":""},{"$f":"IF(A14=\"\",\"\",'ENLACES DATOS'!#REF!)","v":""},{"$f":"IF(B14=\"\",\"\",'ENLACES DATOS'!A67)","v":""},{"$f":"IF(C14=\"\",\"\",'ENLACES DATOS'!B67)","v":""},{"$f":"IF(D14=\"\",\"\",'ENLACES DATOS'!E67)","v":""}]
[]
[]
[null,null,null,"FECHA",null,"Nº MUESTRAS",null,"ENVIO"]
[]
[null,null,null,{"$f":"IF(D13=\"\",\"\",'ENLACES DATOS'!G52)","v":""},null,{"$f":"IF(D13=\"\",\"\",'ENLACES DATOS'!F66)","v":""},null,{"$f":"IF(D13=\"\",\"\",'ENLACES DATOS'!J66)","v":""}]
[]
[]
[null,null,null,{"$f":"IF($D$13=\"\",\"\",'ENLACES DATOS'!E68)","v":""},null,{"$f":"IF($D$13=\"\",\"\",'ENLACES DATOS'!F68)","v":""},null,{"$f":"IF(D13=\"\",\"\",'ENLACES DATOS'!J68)","v":""}]
[]
[]
[null,null,null,{"$f":"IF($D$13=\"\",\"\",'ENLACES DATOS'!E69)","v":""},null,{"$f":"IF($D$13=\"\",\"\",'ENLACES DATOS'!F69)","v":""},null,{"$f":"IF(D13=\"\",\"\",'ENLACES DATOS'!J69)","v":""}]
[]
[]
[null,null,null,{"$f":"IF($D$13=\"\",\"\",'ENLACES DATOS'!E70)","v":""},null,{"$f":"IF($D$13=\"\",\"\",'ENLACES DATOS'!F70)","v":""},null,{"$f":"IF($D$13=\"\",\"\",'ENLACES DATOS'!J70)","v":""}]
[]
[]
[null,null,null,{"$f":"IF($D$13=\"\",\"\",'ENLACES DATOS'!E71)","v":""},null,{"$f":"IF($D$13=\"\",\"\",'ENLACES DATOS'!F71)","v":""},null,{"$f":"IF($D$13=\"\",\"\",'ENLACES DATOS'!J71)","v":""}]
[]
[]
[null,null,null,{"$f":"IF($D$13=\"\",\"\",'ENLACES DATOS'!E72)","v":""},null,{"$f":"IF($D$13=\"\",\"\",'ENLACES DATOS'!F72)","v":""},null,{"$f":"IF($D$13=\"\",\"\",'ENLACES DATOS'!J72)","v":""}]
[]
[]
[null,null,null,{"$f":"IF($D$13=\"\",\"\",'ENLACES DATOS'!E73)","v":""},null,{"$f":"IF($D$13=\"\",\"\",'ENLACES DATOS'!F73)","v":""},null,{"$f":"IF($D$13=\"\",\"\",'ENLACES DATOS'!J73)","v":""}]

{"sheet":"MEDICACIONES AGUA","index":10,"n_rows":42,"n_cols":7,"rows_kept":42,"cut":false,"hidden":false,"merged":[[12,0,12,2],[24,0,25,0],[30,0,30,2],[31,0,32,0],[37,0,39,0],[23,0,23,2],[13,0,17,0],[19,0,20,0]]}
[]
[]
[]
["MEDICACIONES AGUA",null,null,null,null,{"$f":"A4","v":"MEDICACIONES AGUA"}]
[]
["GANADERO",null,null,null,null,"GANADERO",{"$f":"IF(B6=\"\",\"\",B6)","v":""}]
["FECHA ",null,null,null,null,"FECHA ",{"$f":"IF(B7=\"\",\"\",B7)","v":""}]
["TIPO EXPLOTACION",null,null,null,null,"TIPO EXPLOTACION",{"$f":"IF(B8=\"\",\"\",B8)","v":""}]
[]
[]
["PRODUCTO"]
[]
["CALCULO MEDICAMENTO NECESARIO"]
["ENTRADA DATOS TRATAMIENTO","Nº ANIMALES A TRATAR (N)"]
[null,"PESO VIVO MEDIO (KgPV)"]
[null,"DOSIS RECOMENDADA (D: mg/KgPV .dia)"]
[null,"CONCENTRACION MED. (grP.activo/kg)"]
[null,"CONSUMO AGUA POR ANIMAL Y DIA (litros)"]
[]
["CALCULOS","KG MEDICAMENTO AL DIA (Kg)",{"$f":"IF(C14=\"\",\"\",(C14*C15*C16)/(C17*1000))","v":""}]
[null,"LITROS AGUA/DIA (litros)",{"$f":"IF(C18=\"\",\"\",(C14*C18))","v":""}]
[]
[]
["CALCULO PREMEZCLA DOSIFICADOR"]
["ENTRADA DATOS DOSIFICADOR","REGULACION DEL DOSIFICADOR (%)"]
[null,"LITROS AGUA/DIA (litros)"]
[]
["CALCULOS","LITROS SOLUCION PREVIA (litros)",{"$f":"IF(C25=\"\",\"\",(C26*C25))","v":""}]
[]
[]
["CALCULO CAPACIDAD DEPOSITO"]
["DEPOSITO CILINDRICO","RADIO BASE (metros)"]
[null,"ALTURA DEPOSITO (metros)"]
[]
["CALCULOS","LITROS DE CAPACIDAD DE DEPOSITO (litros)",{"$f":"IF(C32=\"\",\"\",(3.1416*C32*C32*C33*1000))","v":""}]
[]
[]
["DEPOSITO ORTOEDRICO","LONGITUD DEPOSITO  (metros)"]
[null,"ANCHURA  DEPOSITO (metros)"]
[null,"ALTURA DEPOSITO (metros)"]
[]
["CALCULOS","LITROS DE CAPACIDAD DE DEPOSITO (litros)",{"$f":"IF(C38=\"\",\"\",(C38*C39*C40*1000))","v":""}]

{"sheet":"HOJA DIAGNOSTICO REDUCE","index":11,"n_rows":19,"n_cols":10,"rows_kept":19,"cut":false,"hidden":false,"merged":[[12,1,16,1],[18,9,19,9],[18,8,19,8]]}
[]
[]
[]
[null,"EVALUACIÓN OBJETIVO \"REDUCE\"",null,null,null,null,{"$f":"B4","v":"EVALUACIÓN OBJETIVO \"REDUCE\""}]
[]
[]
[null,"GANADERO",null,null,null,null,"GANADERO",null,{"$f":"IF(D7=\"\",\"\",D7)","v":""}]
[null,"FECHA DIAGNOSTICO",null,null,null,null,"FECHA DIAGNOSTICO",null,{"$f":"IF(D8=\"\",\"\",D8)","v":""}]
[null,"TIPO EXPLOTACION",null,{"$f":"IF('DEFINICION INDICADORES'!E15=\"\",\"\",'DEFINICION INDICADORES'!E15)","v":"CEBO CORDEROS"},null,null,"TIPO EXPLOTACION",null,{"$f":"IF(D9=\"\",\"\",D9)","v":"CEBO CORDEROS"}]
[]
[]
[null,"BASES",null,"INDICADORES","CALIF. (0-4)",null,"COMENTARIOS"]
[null,{"$f":"IF('DEFINICION INDICADORES'!B56=\"\",\"\",'DEFINICION INDICADORES'!B56)","v":"TRONCO \"REDUCE\""},1,{"$f":"IF('DEFINICION INDICADORES'!E56=\"\",\"\",'DEFINICION INDICADORES'!E56)","v":"Disminucion del uso de piensos medicamentosos"}]
[null,null,2,{"$f":"IF('DEFINICION INDICADORES'!E57=\"\",\"\",'DEFINICION INDICADORES'!E57)","v":"Uso de antibióticos CATEGORIA D"}]
[null,null,3,{"$f":"IF('DEFINICION INDICADORES'!E58=\"\",\"\",'DEFINICION INDICADORES'!E58)","v":"Plan-Informe sanitario. Auditorías anuales"}]
[null,null,4,{"$f":"IF('DEFINICION INDICADORES'!E59=\"\",\"\",'DEFINICION INDICADORES'!E59)","v":"%  de animales con tratamiento metafiláctico"}]
[null,null,5,{"$f":"IF('DEFINICION INDICADORES'!E60=\"\",\"\",'DEFINICION INDICADORES'!E60)","v":"Monitorización de explotación"}]
[]
[null,null,null,null,null,null,"CALIFICACION",null,"RESPECTO A MÁXIMO",{"$f":"IF('ENLACES DATOS'!H106=\"\",\"\",'ENLACES DATOS'!H106)","v":""}]

{"sheet":"HOJA DE AYUDA","index":12,"n_rows":34,"n_cols":2,"rows_kept":34,"cut":false,"hidden":false,"merged":[]}
[]
[]
[]
[null,"AYUDA E INSTRUCCIONES"]
[]
[]
[]
[null,"1.- DEFINICION INDICADORES Y CRITERIOS DE DIAGNOSTICO"]
[]
[null,"https://youtu.be/f82hZqPnVF4"]
[]
[null,"2.- DIAGNOSTICO DE GRANJA. INTERPRETACION DE AUDITORÍA"]
[]
[null,"https://youtu.be/dOeZQi3qRmg"]
[]
[]
[null,"3.- CALCULOS UTILES PARA LOS TRATAMIENTOS EN AGUA DE BEBIDA"]
[]
[null,"https://youtu.be/GHsiaquCqPQ"]
[]
[]
[null,"4.- PLAN DE TOMA DE MUESTRAS. MONITORIZACIÓN"]
[]
[null,"https://youtu.be/RY3zfkt0YP4"]
[]
[]
[null,"5.- AUDITORÍA PLAN REDUCE"]
[]
[null,"https://youtu.be/1IqzgOWfpQU"]
[]
[]
[null,"6.- PLAN DE EXPLOTACION"]
[]
[null,"https://youtu.be/7-rCTV6Etz4"]

{"sheet":"INFORME EXPLOTACION CREAR","index":13,"n_rows":38,"n_cols":4,"rows_kept":38,"cut":false,"hidden":false,"merged":[[38,2,55,2]]}
[]
[]
[]
[null,"CREAR INFORME EXPLOTACIÓN"]
[]
[null,"COMENTARIOS","PROPUESTOS","ALTERNATIVOS"]
[]
[null,{"$f":"IF('DEFINICION INDICADORES'!B18=\"\",\"\",'DEFINICION INDICADORES'!B18)","v":"ALIMENTACION"},{"$f":"IF('ENLACES DATOS'!AI3=\"\",\"\",'ENLACES DATOS'!AI3)","v":"Piensos adecuados y suficientes. Buen manejo. Adaptados a las diferentes producciones. Equilibrio nutricional. Cobertura necesidades. Separa machos y hembras"}]
[null,null,{"$f":"IF('ENLACES DATOS'!AI4=\"\",\"\",'ENLACES DATOS'!AI4)","v":"Suficientes depósitos o silos. Limpieza periódica de los mismos."}]
[null,null,{"$f":"IF('ENLACES DATOS'!AI5=\"\",\"\",'ENLACES DATOS'!AI5)","v":"Calidad química y bacteriológica del agua. Acuíferos. Análisis y control periódicos. Sistema de tratamiento de aguas."},"Recomendamos analiticas cada 6 meses de agua"]
[null,null,{"$f":"IF('ENLACES DATOS'!AI6=\"\",\"\",'ENLACES DATOS'!AI6)","v":"Suficientes depósitos adpatados al tamaño de la explotación.Doble via para tratamientos en algunas cuadras Limpieza periódica de tuberías. Ausencia de biofilm"}]
[null,null,{"$f":"IF('ENLACES DATOS'!AI7=\"\",\"\",'ENLACES DATOS'!AI7)","v":"Alimentación automatizada que asegure suministro de alimento suficiente. Tiempo empleado en suministro corto. Algo de finos. No limpieza diaria"}]
[null,{"$f":"IF('DEFINICION INDICADORES'!B23=\"\",\"\",'DEFINICION INDICADORES'!B23)","v":"SANIDAD"},{"$f":"IF('ENLACES DATOS'!AI8=\"\",\"\",'ENLACES DATOS'!AI8)","v":"Mortalidad adultas y desvieje <15% "}]
[null,null,{"$f":"IF('ENLACES DATOS'!AI9=\"\",\"\",'ENLACES DATOS'!AI9)","v":"Abortos habituales con dfagnostico claro de varios procesos"}]
[null,null,{"$f":"IF('ENLACES DATOS'!AI10=\"\",\"\",'ENLACES DATOS'!AI10)","v":"Vacunación o desparasitación ocasional"}]
[null,null,{"$f":"IF('ENLACES DATOS'!AI11=\"\",\"\",'ENLACES DATOS'!AI11)","v":"Incidencia media de enfermedades crónicas con diagnostico"}]
[null,null,{"$f":"IF('ENLACES DATOS'!AI12=\"\",\"\",'ENLACES DATOS'!AI12)","v":"Programa DDD y su cumplimiento. Vigila perros y gatos de la explotación. No desparasita perros siempre. No controla siempre animales externos"}]
[null,{"$f":"IF('DEFINICION INDICADORES'!B28=\"\",\"\",'DEFINICION INDICADORES'!B28)","v":"INSTALACIONES"},{"$f":"IF('ENLACES DATOS'!AI13=\"\",\"\",'ENLACES DATOS'!AI13)","v":"Disponibilidad sobrada de comederos y pajeras , limpios y situados solo en una parte de la cuadra. Suelo limpio y seco."}]
[null,null,{"$f":"IF('ENLACES DATOS'!AI14=\"\",\"\",'ENLACES DATOS'!AI14)","v":"Número y/o superficie de bebederos adecuado respecto  a la densidad de los animales. Bebederos limpios en un solo emplazamiento. Suelo seco"}]
[null,null,{"$f":"IF('ENLACES DATOS'!AI15=\"\",\"\",'ENLACES DATOS'!AI15)","v":"Olor ligeramente perceptible pero que no queda impregnado en la ropa"}]
[null,null,{"$f":"IF('ENLACES DATOS'!AI16=\"\",\"\",'ENLACES DATOS'!AI16)","v":"Cubierta aislada pero con algún defecto. En general buenas coindiciones ambientales pero se nota el calor o frío extremo."}]
[null,null,{"$f":"IF('ENLACES DATOS'!AI17=\"\",\"\",'ENLACES DATOS'!AI17)","v":"Volumen estático, entradas y salidas de aire y velocidad del aire adecuadas. "}]
[null,{"$f":"IF('DEFINICION INDICADORES'!B33=\"\",\"\",'DEFINICION INDICADORES'!B33)","v":"BIENESTAR"},{"$f":"IF('ENLACES DATOS'!AI18=\"\",\"\",'ENLACES DATOS'!AI18)","v":"Entre 1.5 y 2 m2 por oveja"}]
[null,null,{"$f":"IF('ENLACES DATOS'!AI19=\"\",\"\",'ENLACES DATOS'!AI19)","v":"Cama limpia, seca y abundante y de renovado no diario"}]
[null,null,{"$f":"IF('ENLACES DATOS'!AI20=\"\",\"\",'ENLACES DATOS'!AI20)","v":"Entre 80 y 90% de animales tumbados. No esterotipias"}]
[null,null,{"$f":"IF('ENLACES DATOS'!AI21=\"\",\"\",'ENLACES DATOS'!AI21)","v":"Nula incidencia de cojeras. Lana perfecta"}]
[null,null,{"$f":"IF('ENLACES DATOS'!AI22=\"\",\"\",'ENLACES DATOS'!AI22)","v":"Capa limpia y suciedad solo en pezuñas.. Buen estado corporal"}]
[null,{"$f":"IF('DEFINICION INDICADORES'!B38=\"\",\"\",'DEFINICION INDICADORES'!B38)","v":"FORMACION Y REGISTRO"},{"$f":"IF('ENLACES DATOS'!AI23=\"\",\"\",'ENLACES DATOS'!AI23)","v":"Libro de esxplotación en el que figure el censo actualizado y movimientos de los animales. Entradas y salidas y tratamientos veterinarios."}]
[null,null,{"$f":"IF('ENLACES DATOS'!AI24=\"\",\"\",'ENLACES DATOS'!AI24)","v":"Titulación obligatoria y algunas titulaciones complementarias"}]
[null,null,{"$f":"IF('ENLACES DATOS'!AI25=\"\",\"\",'ENLACES DATOS'!AI25)","v":"Documentación ajustada a la normativa y actualizada."}]
[null,null,{"$f":"IF('ENLACES DATOS'!AI26=\"\",\"\",'ENLACES DATOS'!AI26)","v":"Medidas de bioseguridad   adecuadas en alimentación, control de animales externos, cadaveres."}]
[null,null,{"$f":"IF('ENLACES DATOS'!AI27=\"\",\"\",'ENLACES DATOS'!AI27)","v":"Mano de obra suficiente. Horarios laborales flexibles.  Motivación"}]
[]
[]
[]
[]
[]
[null,"COMENTARIOS Y CONCLUSION"]

{"sheet":"INFORME EXPLOTACION DEF","index":14,"n_rows":33,"n_cols":6,"rows_kept":33,"cut":false,"hidden":false,"merged":[[28,1,32,1],[8,5,25,5],[8,1,12,1],[13,1,17,1],[18,1,22,1],[23,1,27,1]]}
[]
[]
[]
[null,"INFORME EXPLOTACIÓN"]
[]
[null,"GANADERIA",{"$f":"IF('HOJA DIAGNOSTICO'!C7=\"\",\"\",'HOJA DIAGNOSTICO'!C7)","v":"ejemplo"}]
[null,"FECHA",{"$f":"IF('HOJA DIAGNOSTICO'!C8=\"\",\"\",'HOJA DIAGNOSTICO'!C8)","v":"2021-09-01"}]
[null,null,null,null,null,"COMENTARIOS ADICIONALES Y CONCLUSIONES"]
[null,{"$f":"IF('DEFINICION INDICADORES'!B18=\"\",\"\",'DEFINICION INDICADORES'!B18)","v":"ALIMENTACION"},{"$f":"IF('ENLACES DATOS'!AK3=\"\",\"\",'ENLACES DATOS'!AK3)","v":"Piensos adecuados y suficientes. Buen manejo. Adaptados a las diferentes producciones. Equilibrio nutricional. Cobertura necesidades. Separa machos y hembras"},null,null,{"$f":"IF('INFORME EXPLOTACION CREAR'!C39=\"\",\"\",'INFORME EXPLOTACION CREAR'!C39)","v":""}]
[null,null,{"$f":"IF('ENLACES DATOS'!AK4=\"\",\"\",'ENLACES DATOS'!AK4)","v":"Suficientes depósitos o silos. Limpieza periódica de los mismos."}]
[null,null,{"$f":"IF('ENLACES DATOS'!AK5=\"\",\"\",'ENLACES DATOS'!AK5)","v":"Recomendamos analiticas cada 6 meses de agua"}]
[null,null,{"$f":"IF('ENLACES DATOS'!AK6=\"\",\"\",'ENLACES DATOS'!AK6)","v":"Suficientes depósitos adpatados al tamaño de la explotación.Doble via para tratamientos en algunas cuadras Limpieza periódica de tuberías. Ausencia de biofilm"}]
[null,null,{"$f":"IF('ENLACES DATOS'!AK7=\"\",\"\",'ENLACES DATOS'!AK7)","v":"Alimentación automatizada que asegure suministro de alimento suficiente. Tiempo empleado en suministro corto. Algo de finos. No limpieza diaria"}]
[null,{"$f":"IF('DEFINICION INDICADORES'!B23=\"\",\"\",'DEFINICION INDICADORES'!B23)","v":"SANIDAD"},{"$f":"IF('ENLACES DATOS'!AK8=\"\",\"\",'ENLACES DATOS'!AK8)","v":"Mortalidad adultas y desvieje <15% "}]
[null,null,{"$f":"IF('ENLACES DATOS'!AK9=\"\",\"\",'ENLACES DATOS'!AK9)","v":"Abortos habituales con dfagnostico claro de varios procesos"}]
[null,null,{"$f":"IF('ENLACES DATOS'!AK10=\"\",\"\",'ENLACES DATOS'!AK10)","v":"Vacunación o desparasitación ocasional"}]
[null,null,{"$f":"IF('ENLACES DATOS'!AK11=\"\",\"\",'ENLACES DATOS'!AK11)","v":"Incidencia media de enfermedades crónicas con diagnostico"}]
[null,null,{"$f":"IF('ENLACES DATOS'!AK12=\"\",\"\",'ENLACES DATOS'!AK12)","v":"Programa DDD y su cumplimiento. Vigila perros y gatos de la explotación. No desparasita perros siempre. No controla siempre animales externos"}]
[null,{"$f":"IF('DEFINICION INDICADORES'!B28=\"\",\"\",'DEFINICION INDICADORES'!B28)","v":"INSTALACIONES"},{"$f":"IF('ENLACES DATOS'!AK13=\"\",\"\",'ENLACES DATOS'!AK13)","v":"Disponibilidad sobrada de comederos y pajeras , limpios y situados solo en una parte de la cuadra. Suelo limpio y seco."}]
[null,null,{"$f":"IF('ENLACES DATOS'!AK14=\"\",\"\",'ENLACES DATOS'!AK14)","v":"Número y/o superficie de bebederos adecuado respecto  a la densidad de los animales. Bebederos limpios en un solo emplazamiento. Suelo seco"}]
[null,null,{"$f":"IF('ENLACES DATOS'!AK15=\"\",\"\",'ENLACES DATOS'!AK15)","v":"Olor ligeramente perceptible pero que no queda impregnado en la ropa"}]
[null,null,{"$f":"IF('ENLACES DATOS'!AK16=\"\",\"\",'ENLACES DATOS'!AK16)","v":"Cubierta aislada pero con algún defecto. En general buenas coindiciones ambientales pero se nota el calor o frío extremo."}]
[null,null,{"$f":"IF('ENLACES DATOS'!AK17=\"\",\"\",'ENLACES DATOS'!AK17)","v":"Volumen estático, entradas y salidas de aire y velocidad del aire adecuadas. "}]
[null,{"$f":"IF('DEFINICION INDICADORES'!B33=\"\",\"\",'DEFINICION INDICADORES'!B33)","v":"BIENESTAR"},{"$f":"IF('ENLACES DATOS'!AK18=\"\",\"\",'ENLACES DATOS'!AK18)","v":"Entre 1.5 y 2 m2 por oveja"}]
[null,null,{"$f":"IF('ENLACES DATOS'!AK19=\"\",\"\",'ENLACES DATOS'!AK19)","v":"Cama limpia, seca y abundante y de renovado no diario"}]
[null,null,{"$f":"IF('ENLACES DATOS'!AK20=\"\",\"\",'ENLACES DATOS'!AK20)","v":"Entre 80 y 90% de animales tumbados. No esterotipias"}]
[null,null,{"$f":"IF('ENLACES DATOS'!AK21=\"\",\"\",'ENLACES DATOS'!AK21)","v":"Nula incidencia de cojeras. Lana perfecta"}]
[null,null,{"$f":"IF('ENLACES DATOS'!AK22=\"\",\"\",'ENLACES DATOS'!AK22)","v":"Capa limpia y suciedad solo en pezuñas.. Buen estado corporal"}]
[null,{"$f":"IF('DEFINICION INDICADORES'!B38=\"\",\"\",'DEFINICION INDICADORES'!B38)","v":"FORMACION Y REGISTRO"},{"$f":"IF('ENLACES DATOS'!AK23=\"\",\"\",'ENLACES DATOS'!AK23)","v":"Libro de esxplotación en el que figure el censo actualizado y movimientos de los animales. Entradas y salidas y tratamientos veterinarios."}]
[null,null,{"$f":"IF('ENLACES DATOS'!AK24=\"\",\"\",'ENLACES DATOS'!AK24)","v":"Titulación obligatoria y algunas titulaciones complementarias"}]
[null,null,{"$f":"IF('ENLACES DATOS'!AK25=\"\",\"\",'ENLACES DATOS'!AK25)","v":"Documentación ajustada a la normativa y actualizada."}]
[null,null,{"$f":"IF('ENLACES DATOS'!AK26=\"\",\"\",'ENLACES DATOS'!AK26)","v":"Medidas de bioseguridad   adecuadas en alimentación, control de animales externos, cadaveres."}]
[null,null,{"$f":"IF('ENLACES DATOS'!AK27=\"\",\"\",'ENLACES DATOS'!AK27)","v":"Mano de obra suficiente. Horarios laborales flexibles.  Motivación"}]